Workbook

Sheet A
A1: Emissions and Efficiency Calculator
A4: Design Number | D4: Havyard | H4: LOA | K4: fill in | L4: m
A5: Project Number | D5: Hareid Sulesund Ferry | H5: Breadth | K5: fill in | L5: m
A6: Vessel Name | D6: TBN | H6: Depth to main deck | K6: fill in | L6: m
A7: Vessel Type | D7: Double ended Car Ferry | H7: Draft | K7: fill in | L7: m
A8: Owner | D8: TBA | H8: Main Engine | K8: ='B2'!C32 -> 2820.740741 | L8: kW
A9: Operation Area | D9: Hareid-Sulesund | H9: Shaft generator | K9: fill in | L9: kW
H10: Power supply | K10: to be filled in
H11: Year built | K11: fill in
A12: Date printed | D12: =TODAY() -> 2018-05-31 | H12: Loading Capacity | K12: 120 | L12: PBE
A13: Verson | D13: 1
A14: Made by | D14: JKO | G14: Date: | H14: 2018-05-27
A15: Verified by | G15: Date:
A16: Approced by | G16: Date:
A18: SHEET A | D18: FRONT PAGE
A19: SHEET B1 | D19: VARIABLES | H19: Simple
A20: SHEET B2 | D20: VARIABLES | H20: Predefined variables (advanced setup)
A21: SHEET C | D21: RESULTS
A22: SHEET D | D22: SHIP DESIGN
A23: SHEET E | D23: ROUTE STUDIES
A24: SHEET F | D24: ENGINE SETUP
A25: SHEET G | D25: COST AND ASSEMBLY
A26: This report is an energy analysis of the ship design specified above. Theoretical models and simulations are used to produce the current results. The model is ment to be a tool to evaluate different energy systems for a ship design. It contains data for efficiencies, losses, emissions, costs and more. The tool is not to be used as documentation of real-time performance, but for guidance for customer and end-user. The model was produced as a masterthesis at UiB august 2017-june 2018. No data in the report are representative for Havyard Group ASA's designs. To get the latest update, please send an email to jorgen.kopperstad@gmail.com © UIB 2018
A59: This document / specification is the property of COMPANY NAME, and must not be copied or the contents thereof or any information received in conjunction therewith must not be imparted to any unauthorised third party. It must not be used for any other project than for which it was originally ordered. The receipt of the drawing / specification implies that the conditions mentioned herein are accepted.

Sheet B1
A1: Project | B1: =A!D5 -> Hareid Sulesund Ferry | C1: B1. VARIABLES - Simple Setup
A2: Ship name | B2: =A!D6 -> TBN
A4: Ship Design
D5: Unit | P5: 2
A6: Cars/Personbileiningar | D6: PBE | G6: Forced Battery Charging Capacity | K6: 500 | L6: kWh
G7: (Only for hybridization)
A9: Route Study
D10: Unit
A11: Number of ports | D11: n | I11: Max Speed With Current Schedule | L11: =MAX(Data!G118:G122) -> 15.92493298 | M11: knots
I12: Is this less thant the max speed? | L12: =IF(L11<'B2'!L28,"Yes","No") -> Yes
G13: Are there sufficient charging for batteries? | L13: =IF('C '!I34="Yes",IF('C '!I35="Yes",IF('C '!I36="Yes",IF('C '!I37="Yes",IF('C '!I38="Yes","Yes","No"),"No"),"No"),"No"),"No") -> Yes
D15: Shore Charging [kW] | F15: Time in port [min] | H15: Transit to next port [min] | K15: Distance to next port [nm]
C16: Port 1 | E16: 4000 | F16: 10 | H16: 20 | K16: 4
C17: Port 2 | E17: 4000 | F17: 10 | H17: 19 | K17: 4
C18: Port 3 | E18: 4000 | F18: 10 | H18: 22 | K18: 4
D22: Unit
A23: Number of roundtrips per day | D23: n | E23: 18
A25: Sea margin level [Serice Area] | D25: 1,2,3,4
A26: Capability level [Serice Area] | D26: 1,2,3,4

Sheet B2
A1: Project | B1: =A!D5 -> Hareid Sulesund Ferry | C1: B2. VARIABLES - Predefined variables/functions
A2: Ship name | B2: =A!D6 -> TBN
A4: Ship Design
J5: constant | K5: x | L5: x2 | M5: x3
A6: Ship Power Speed Curve Setting | E6: 2 | G6: Ship-Power Curve | J6: =Data!N30 -> 0.8067041375 | K6: =Data!M30 -> 0 | L6: =Data!L30 -> 0.8067041375 | M6: =Data!K30 -> 0.84916225
D8: LOA | E8: LPP | F8: LWL | G8: Breadth | H8: Draft | I8: Deadwgt. | J8: Lightwgt | K8: Ballast | L8: Service Area
B9: Dimensions | D9: =Data!E3 -> 125 | E9: =Data!F3 -> na | F9: =Data!G3 -> na | G9: =Data!H3 -> 20 | H9: =Data!I3 -> 0 | I9: =Data!K3 -> na | J9: =Data!L3 -> na | K9: =Data!J3 -> na | L9: =Data!A19 -> 1
C11: Loading | D11: Entering harbour | F11: Leaving Harbour | H11: Acceleration | J11: Passive retardation | L11: Active retardation
A12: Operational Loads | C12: =Data!S3 -> 0 | D12: =Data!N3 -> 350 | F12: =Data!O3 -> 250 | H12: =Data!P3 -> 700 | J12: =Data!Q3 -> 55 | L12: =Data!R3 -> 200
A13: Connected to shore | C13: yes
A16: Route Studies
H17: =1-H18 -> 0.95
A18: Capability | D18: =Data!G39 -> 0.7 | E18: Sea Service Area Margin | H18: =IF(L9=1,5%,IF(L9=2,12%,IF(L9=3,18%,IF(L9=4,40%,"")))) -> 0.05 | J18: Minutes in port | L18: =(24*60)-L19 -> 258 | U18: =60*60 -> 3600 | V18: s/t
J19: Minutes at sea | L19: =SUM(D22:M26)+C19 -> 1182
C20: Time in different ports [s]
B21: Shore | C21: Loading | D21: Entering harbour | F21: Leaving Harbour | H21: Acceleration | J21: Passive retardation | L21: Active retardation
A22: Port 1 | C22: 600 | D22: 90 | F22: 30 | H22: 124 | J22: 120 | L22: 30 | O22: s=1/2 at^2
A23: Port 2 | C23: 600 | D23: 90 | F23: 30 | H23: 124 | J23: 120 | L23: 30
A24: Port 3 | C24: 600 | D24: 90 | F24: 30 | H24: 124 | J24: 120 | L24: 30
O25: entering harbour | Q25: leaving harbour | S25: Acceleration | U25: Passive retardation | W25: active retardation
N26: =SUM(O26:W26) -> 0.6953923686 | O26: =2*(D22/3600) -> 0.05 | Q26: =2*(F22/3600) -> 0.01666666667 | S26: =(0.5*0.05*(H22^2))/1852 -> 0.2075593952 | U26: =700/1852 -> 0.3779697624 | W26: =80/1852 -> 0.04319654428
N27: =SUM(O27:W27) -> 0.6953923686 | O27: =2*(D23/3600) -> 0.05 | Q27: =2*(F23/3600) -> 0.01666666667 | S27: =(0.5*0.05*(H23^2))/1852 -> 0.2075593952 | U27: =700/1852 -> 0.3779697624 | W27: =80/1852 -> 0.04319654428
A28: Design speed | C28: 12 | D28: knots | E28: Distance for maneuvring | H28: 0.7 | I28: nm | J28: Max Speed | L28: 16 | M28: knots | N28: 0.6953923686 | O28: 0.05 | Q28: 0.01666666667 | S28: =(0.5*0.05*(H24^2))/1852 -> 0.2075593952 | U28: =IF(J24>0,(700/1852),"") -> 0.3779697624 | W28: =IF(L24>0,(80/1852),"") -> 0.04319654428
N29: 0 | O29: 0 | Q29: 0 | S29: 0 | U29: =IF(J25>0,(700/1852),"") ->  | W29: =IF(L25>0,(80/1852),"") -> 
A30: Engine Setup | N30: 0 | O30: 0 | Q30: 0 | S30: 0 | U30: =IF(J26>0,(700/1852),"") ->  | W30: =IF(L26>0,(80/1852),"") -> 
A32: Max Power | C32: =Data!G40 -> 2820.740741 | D32: kW | I32: Hotel Power | K32: =Data!D3 -> 60 | L32: kW
A33: Design Speed Power | C33: =Data!C3 -> 700 | D33: kW
B35: Generator | D35: Drives/Converter | F35: DC/DC Converters | H35: Switchboard | J35: El-motors | K35: Gear | L35: Cabling | M35: Open
A36: Losses | B36: 0.05 | D36: 0.05 | F36: 0.05 | H36: 0.03 | J36: 0.059 | K36: 0.05 | L36: 0.03 | M36: 0
D38: Emissions
D39: CO2 per kg fuel, kg | F39: Nox per kWh, g | H39: CO per kWh, g | J39: PM per kWh, g | L39: SO per kWh, g
A40: Diesel Variable RPM | E40: 3.17 | G40: 7.85 | I40: 5 | K40: 0.5 | M40: 1
A41: Diesel Constant RPM | E41: 3.17 | G41: 7.85 | I41: 5 | K41: 0.5 | M41: 1
A42: LNG Constant RPM | E42: 2.756 | G42: 1.5 | I42: 0.05 | K42: 0.005 | M42: 0.01

Sheet C
A1: Project | B1: =A!D5 -> Hareid Sulesund Ferry | C1: C. RESULTS
A2: Ship name | B2: =A!D6 -> TBN
A4: Daily emissions
E5: CO2 [kg] | F5: NOx [g] | G5: CO [g] | H5: PM [g] | I5: SO [g] | J5: Carbon Footprint [t] | L5: In addition comes the emissions from producing the engine. These are not included in the calculations
A6: Diesel variable RPM | E6: =Data!DP70*Data!$CT$74 -> 14940.24411 | F6: =Data!DQ70*Data!$CT$74 -> 77817.64342 | G6: =Data!DR70*Data!$CT$74 -> 102678.2886 | H6: =Data!DS70*Data!$CT$74 -> 10267.82886 | I6: =Data!DT70*Data!$CT$74 -> 20535.65773 | K6: =(E16*F!$E$60)/1000000+(E6/1000) -> 15.748205
A7: Diesel Constant RPM - Hybrid | E7: =Data!DP83*Data!$CT$74 -> 15608.81801 | F7: =Data!DQ83*Data!$CT$74 -> 77817.64342 | G7: =Data!DR83*Data!$CT$74 -> 102678.2886 | H7: =Data!DS83*Data!$CT$74 -> 10267.82886 | I7: =Data!DT83*Data!$CT$74 -> 20535.65773 | K7: =(E17*F!$E$60)/1000000+(E7/1000) -> 16.47200996
A8: Diesel Constant RPM (Diesel-Electric) | E8: =Data!DP110*Data!$CT$74 -> 10692.68571 | F8: =Data!DQ110*Data!$CT$74 -> 57819.02152 | G8: =Data!DR110*Data!$CT$74 -> 70972.48353 | H8: =Data!DS110*Data!$CT$74 -> 7097.248353 | I8: =Data!DT110*Data!$CT$74 -> 14194.49671 | K8: =(E18*F!$E$60)/1000000+(E8/1000)+((I18*F!E62)/1000000) -> 13.11121805
A9: LNG Constant RPM - Hybrid | E9: =Data!DP120*Data!$CT$74 -> 10365.4878 | F9: =Data!DQ120*Data!$CT$74 -> 31704.12264 | G9: =Data!DR120*Data!$CT$74 -> 1056.804088 | H9: =Data!DS120*Data!$CT$74 -> 105.6804088 | I9: =Data!DT120*Data!$CT$74 -> 211.3608176 | K9: =(E19*F!$E$61)/1000000+(E9/1000) -> 11.02311361
A10: LNG Constant RPM (LNG-Electric) | E10: =Data!DP148*Data!$CT$74 -> 6085.547549 | F10: =Data!DQ148*Data!$CT$74 -> 20353.29974 | G10: =Data!DR148*Data!$CT$74 -> 678.4433247 | H10: =Data!DS148*Data!$CT$74 -> 67.84433247 | I10: =Data!DT148*Data!$CT$74 -> 135.6886649 | K10: =(E20*F!$E$61)/1000000+(E10/1000)+((I20*F!E62)/1000000) -> 8.319502723
A11: Hydrogen | E11: =Data!DP177*Data!$CT$74 -> 0 | F11: =Data!DQ177*Data!$CT$74 -> 0 | G11: =Data!DR177*Data!$CT$74 -> 0 | H11: =Data!DS177*Data!$CT$74 -> 0 | I11: =Data!DT177*Data!$CT$74 -> 0 | K11: =(((G21/0.6)*F!E62)/1000000)+((I21*F!E62)/1000000) -> 4.160719805
A12: Batteries | E12: 0 | F12: 0 | G12: 0 | H12: 0 | I12: 0 | K12: =(I22*F!E62)/1000000 -> 1.217025303
A14: Daily Consumptions
E15: Fuel [kg] | F15: Energy, fuel [kWh] | H15: Energy, electricity [kWh] | K15: Used [kWh] | L15: Incl WTWE [kWh]
A16: Diesel variable RPM | E16: =Data!DN70*Data!CT74 -> 2034.038787 | G16: =Data!DC74+(Data!DM70*Data!CT74) -> 56756.7388 | K16: =G16+I16 -> 56756.7388 | L16: =IF((G16+I16)*F!$G$60=0,"NA",(G16+I16)*F!$G$60) -> NA
A17: Diesel Constant RPM | E17: =Data!DN83*Data!CT87 -> 2173.082793 | G17: =(Data!DC87+(Data!DM83*Data!CT87)) -> 59281.29073 | K17: =G17+I17 -> 59281.29073 | L17: =IF((G17+I17)*F!$G$60=0,"NA",(G17+I17)*F!$G$60) -> NA
A18: Diesel Constant RPM (Diesel-Electric) | E18: =Data!DN110*Data!CT114 -> 1625.125477 | G18: =(+(Data!DM110*Data!CT114)) -> 76375.85107 | I18: =Data!DG114*Data!CT114 -> 35460 | K18: 111835.8511 | L18: =IF((G18+I18)*F!$G$60=0,"NA",(G18+I18)*F!$G$60) -> NA
A19: LNG Constant RPM | E19: =Data!DN120*Data!CT124 -> 1612.460298 | G19: =(Data!DC124+(Data!DM120*Data!CT124)) -> 48135.34788 | K19: 48135.34788 | L19: =IF((G19+I19)*F!$G$61=0,"NA",(G19+I19)*F!$G$61) -> NA
A20: LNG Constant RPM (LNG-Electric) | E20: =Data!DN148*Data!CT152 -> 1130.235324 | G20: =(Data!DC152+(Data!DM148*Data!CT152)) -> 30571.00796 | I20: =Data!DG152*Data!CT152 -> 35460 | K20: 66031.00796 | L20: =IF((G20+I20)*F!$G$61=0,"NA",(G20+I20)*F!$G$61) -> NA
A21: Hydrogen | E21: =Data!DN177*Data!CT181 -> 359.3475621 | G21: =(Data!DC181+(Data!DM177*Data!CT181)) -> 28652.63766 | I21: =Data!DG181*Data!CT181 -> 35460 | K21: =G21+I21 -> 64112.63766 | L21: =IF((G21+I21)*F!$G$62=0,"NA",(G21+I21)*F!$G$62*0.6) -> NA
A22: Batteries | E22: 0 | I22: =(Data!E190+Data!E189) -> 24340.50605 | K22: 24340.50605 | L22: =IF((G22+I22)*F!$G$62=0,"NA",(G22+I22)*F!$G$62) -> NA
A24: Hybridization
E25: Diesel Hybrid | G25: LNG Hybrid | I25: Hydrogen
E26: % Battery | F26: kWh | G26: % Battery | H26: kWh | I26: % Battery | J26: kWh
D27: ='B1'!C16 -> Port 1 | E27: =IF(Data!O92>0,Data!O92,"") -> 0.2803199253 | F27: =IF(Data!N92>0,Data!N92,"") -> 770.2057647 | G27: =IF(Data!O130>0,Data!O130,"") -> 0.3408646477 | H27: =IF(Data!N130>0,Data!N130,"") -> 580.1147376 | I27: =IF(Data!O157>0,Data!O157,"") -> 0.3522336516 | J27: =IF(Data!N157>0,Data!N157,"") -> 551.7073785
D28: ='B1'!C17 -> Port 2 | E28: =IF(Data!O93>0,Data!O93,"") -> 0.2404493836 | F28: =IF(Data!N93>0,Data!N93,"") -> 947.6638349 | G28: =IF(Data!O131>0,Data!O131,"") -> 0.2972509327 | H28: =IF(Data!N131>0,Data!N131,"") -> 709.248305 | I28: =IF(Data!O158>0,Data!O158,"") -> 0.2956256798 | J28: =IF(Data!N158>0,Data!N158,"") -> 714.7968209
D29: =IF('B1'!C18="Port 3",'B1'!C18,"") -> Port 3 | E29: =IF(Data!O94>0,Data!O94,"") -> 0.3635335882 | F29: =IF(Data!N94>0,Data!N94,"") -> 525.2332376 | G29: =IF(Data!O132>0,Data!O132,"") -> 0.4252112762 | H29: =IF(Data!N132>0,Data!N132,"") -> 405.5316188 | I29: =IF(Data!O159>0,Data!O159,"") -> 0.4714690475 | J29: =IF(Data!N159>0,Data!N159,"") -> 336.3090039
D30: =IF('B1'!C19="Port 4",'B1'!C19,"") ->  | E30: =IF(Data!O95>0,Data!O95,"") ->  | F30: =IF(Data!N95>0,Data!N95,"") ->  | G30: =IF(Data!O133>0,Data!O133,"") ->  | H30: =IF(Data!N133>0,Data!N133,"") ->  | I30: =IF(Data!O160>0,Data!O160,"") ->  | J30: =IF(Data!N160>0,Data!N160,"") -> 
D31: =IF('B1'!C20="Port 5",'B1'!C20,"") ->  | E31: =IF(Data!O96>0,Data!O96,"") ->  | F31: =IF(Data!N96>0,Data!N96,"") ->  | G31: =IF(Data!O134>0,Data!O134,"") ->  | H31: =IF(Data!N134>0,Data!N134,"") ->  | I31: =IF(Data!O161>0,Data!O161,"") ->  | J31: =IF(Data!N161>0,Data!N161,"") -> 
A32: BATTERIES
D33: Available Charging | F33: Need | H33: Is it enough?
C34: =D27 -> Port 1 | E34: =Data!C134 -> 656.6666667 | G34: =Data!I185 -> 464.4372645 | I34: =Data!J185 -> Yes
C35: =D28 -> Port 2 | E35: =Data!C135 -> 656.6666667 | G35: =Data!I186 -> 528.3954783 | I35: =Data!J186 -> Yes
C36: Port 3 | E36: =Data!C136 -> 656.6666667 | G36: =Data!I187 -> 369.9175935 | I36: =Data!J187 -> Yes
E37: =Data!C137 -> 0 | G37: =Data!I188 -> 0 | I37: =Data!J188 -> Yes
E38: =Data!C138 -> 0 | G38: =Data!I189 -> 0 | I38: =Data!J189 -> Yes
A39: Lifetime Costs estimation
C40: Diesel Var. | D40: Diesel const | F40: Diesel-Battery | H40: LNG Const | J40: LNG-Battery | L40: Batteries | M40: Hydrogen
C41: ='G '!C28 -> 135.1999547 | E41: ='G '!E28 -> 140.8619006 | G41: ='G '!G28 -> 189.3154285 | I41: ='G '!I28 -> 134.31775 | K41: ='G '!K28 -> 183.1471974 | L41: ='G '!M28 -> 429.7509911 | M41: ='G '!O28 -> 79.90338803

Sheet D
A1: Project | B1: =A!D5 -> Hareid Sulesund Ferry | C1: D. SHIP DESIGN - Ferry
A2: Ship name | B2: =A!D6 -> TBN
A4: Power-speed Curve
A24: Main Dimensions
D27: LOA | E27: LPP | F27: LWL | G27: Breadth | H27: Draught | I27: Deadwgt. | J27: Lightwgt | K27: Ballast | L27: Service Area
B28: Dimensions | D28: ='B2'!D9 -> 125 | E28: ='B2'!E9 -> na | F28: ='B2'!F9 -> na | G28: ='B2'!G9 -> 20 | H28: ='B2'!H9 -> 0 | I28: ='B2'!I9 -> na | J28: ='B2'!J9 -> na | K28: ='B2'!K9 -> na | L28: ='B2'!L9:M9 -> 1

Sheet E
A1: Project | B1: =A!D5 -> Hareid Sulesund Ferry | C1: E. ROUTE STUDIES
A2: Ship name | B2: =A!D6 -> TBN
A4: Input from simple setup - route studies
A6: Loading/offloading | D6: =(SUM(Table3[Time in port '[min']]))*'B1'!E23 -> 540 | E6: min | P6: =D6 -> 540 | Q6: =P6/60 -> 9
A7: Leaving harbour | D7: =(SUM('B2'!F22:F26)/60)*'B1'!E23 -> 27 | E7: min | P7: =D7 -> 27 | Q7: =P7/60 -> 0.45
A8: Acceleration | D8: =(SUM('B2'!H22:H26)/60)*'B1'!E23 -> 111.6 | E8: min | P8: 111.6 | Q8: 1.86 | S8: hotel power
A9: Transit | D9: =(SUM(Table3[Distance to next port, without manouevring])*'B1'!E23) -> 743.4 | E9: min | P9: 743.4 | Q9: 12.39 | S9: =100/0.97 -> 103.0927835
A10: Active Retardation | D10: =(SUM('B2'!L22:L26)/60)*'B1'!E23 -> 27 | E10: min | P10: 27 | Q10: 0.45
A11: Passive Retardation | D11: =(SUM('B2'!J22:J26)/60)*'B1'!E23 -> 108 | E11: min | P11: 108 | Q11: 1.8
A12: Entering Harbour | D12: =(SUM('B2'!D22:D26)/60)*'B1'!E23 -> 81 | E12: min | P12: 81 | Q12: 1.35
A13: Stand by (night mode) | D13: =Data!CX87*60 -> -198 | E13: min | P13: -198 | Q13: -3.3
Q14: =SUM(Q6:Q13) -> 24
A26: Loading/offloading | D26: =(SUM(Table3[Time in port '[min']])/60)*Data!D3*'B1'!E23 -> 540 | E26: kWh
A27: Leaving harbour | D27: =Data!V194*SUM(Data!B49:B53)*'B1'!E23 -> 179.9961839 | E27: kWh
A28: Acceleration | D28: =Data!V195*SUM(Data!B49:B53)*'B1'!E23 -> 1846.59327 | E28: kWh
A29: Transit | D29: =Data!E188*'B1'!E23 -> 24529.50605 | E29: kWh
A30: Active Retardation | D30: =Data!V197*SUM(Data!B49:B53)*'B2'!K32 -> 501.1871863 | E30: kWh
A31: Passive Retardation | D31: =Data!V196*SUM(Data!B49:B53)*'B1'!E23 -> 257.6002982 | E31: kWh
A32: Entering Harbour | D32: =Data!V193*SUM(Data!B49:B53)*'B1'!E23 -> 717.8287201 | E32: kWh
A33: Stand by (night mode) | D33: ='B2'!K32*Data!CX181 -> -198 | E33: kWh
A44: Capabilites and Sea Margin
B45: Capabilites | E45: Sea Margin
B46: Level | C46: % | E46: Level | F46: %
B47: 1 | C47: 20 | E47: 1 | F47: 5
B48: 2 | C48: 40 | E48: 2 | F48: 12
B49: 3 | C49: 70 | E49: 3 | F49: 18
B50: 4 | C50: 100 | E50: 4 | F50: 40

Sheet F
A1: Project | B1: =A!D5 -> Hareid Sulesund Ferry | C1: F. ENGINE SETUP
A2: Ship name | B2: =A!D6 -> TBN | C2: 1 | K2: 1 | O2: yes
O3: no
A4: Efficiency, propulsion
C5: Diesel Var. | D5: Diesel const | F5: Diesel-Battery | H5: LNG Const | J5: LNG-Battery | L5: Batteries | M5: Hydrogen | AN5: Batteries | AO5: Hydrogen
A6: Generator | C6: 2 | E6: 2 | G6: 1 | I6: 1 | K6: 1 | L6: 2 | M6: 2 | AN6: =IF(Z6=1,"95%","1") -> 1 | AO6: =IF(AA6=1,"95%","1") -> 1
A7: Drives/Converter | C7: 2 | E7: 2 | G7: 1 | I7: 1 | K7: 1 | L7: 1 | M7: 1 | AN7: =IF(Z7=1,"95%","1") -> 1 | AO7: =IF(AA7=1,"95%","1") -> 1
A8: Cabling | C8: 2 | E8: 2 | G8: 1 | I8: 1 | K8: 1 | L8: 1 | M8: 1 | AN8: =IF(Z8=1,"97%","1") -> 1 | AO8: =IF(AA8=1,"97%","1") -> 1
A9: Switchboard | C9: 2 | E9: 2 | G9: 1 | I9: 1 | K9: 1 | L9: 1 | M9: 1 | AN9: =IF(Z9=1,"97%","1") -> 1 | AO9: =IF(AA9=1,"97%","1") -> 1
A10: El-motors | C10: 2 | E10: 2 | G10: 1 | I10: 1 | K10: 1 | L10: 1 | M10: 1 | AN10: =IF(Z10=1,"94,1%","1") -> 1 | AO10: =IF(AA10=1,"94,1%","1") -> 1
A11: DC/DC converters | C11: 2 | E11: 2 | G11: 2 | I11: 2 | K11: 2 | L11: 2 | M11: 1 | AN11: =IF(Z11=1,"95%","1") -> 1 | AO11: =IF(AA11=1,"95%","1") -> 1
A12: Gear | C12: 1 | E12: 1 | G12: 1 | I12: 2 | K12: 2 | L12: 1 | M12: 1 | AN12: =IF(Z12=1,"96%","1") -> 1 | AO12: =IF(AA12=1,"96%","1") -> 1
AN13: =IF(Z13=1,"98,9%","1") -> 1 | AO13: =IF(AA13=1,"98,9%","1") -> 1
A14: Overall | C14: =Data!J19 -> 0.95 | E14: =Data!K19 -> 0.95 | G14: =Data!L19 -> 0.7591085934 | I14: =Data!N19 -> 0.7990616772 | K14: =Data!P19 -> 0.7990616772 | L14: =Data!R19 -> 0.7990616772 | M14: =Data!T19 -> 0.7591085934 | AN14: =IF(Z14=1,"93,9%","1") -> 1 | AO14: =IF(AA14=1,"93,9%","1") -> 1
AN15: =IF(Z15=1,"97%","1") -> 1 | AO15: =IF(AA15=1,"97%","1") -> 1
A16: Efficiency, electricity production
C17: Diesel Var. | D17: Diesel const | F17: Diesel-Battery | H17: LNG Const | J17: LNG-Battery | L17: Batteries | M17: Hydrogen
A18: Generator | C18: 1 | E18: 1 | G18: 1 | I18: 1 | K18: 1 | L18: 2 | M18: 2 | AN18: DC/DC Converters
A19: Drives/converter | C19: 1 | E19: 1 | G19: 1 | I19: 1 | K19: 1 | L19: 1 | M19: 1 | AN19: 0.05
A20: Cabling | C20: 1 | E20: 1 | G20: 1 | I20: 1 | K20: 1 | L20: 1 | M20: 1
A21: Switchboard | C21: 1 | E21: 1 | G21: 1 | I21: 1 | K21: 1 | L21: 1 | M21: 1
A22: DC/DC Converters | C22: 2 | E22: 2 | G22: 1 | I22: 1 | K22: 1 | L22: 1 | M22: 1
A23: ='B2'!M35 -> Open | C23: 2 | E23: 2 | G23: 1 | I23: 1 | K23: 1 | L23: 1 | M23: 2
B25: Overall | C25: =Data!J30 -> 0.84916225 | E25: =Data!K30 -> 0.84916225 | G25: =Data!L30 -> 0.8067041375 | I25: =Data!N30 -> 0.8067041375 | K25: =Data!P30 -> 0.8067041375 | L25: =Data!R30 -> 0.84916225 | M25: =Data!T30 -> 0.84916225
A27: Efficiency, fossile fuels
C28: Const | D28: x | E28: x2 | F28: x3 | G28: x4 | H28: x5 | I28: x6
A29: Diesel Variable RPM | C29: 0.3099 | D29: 0.58 | E29: -4.0844 | F29: 15.441 | G29: -29.665 | H29: 27.841 | I29: -10.15
A30: Diesel Constant RPM | C30: 0.1667 | D30: 1.1482 | E30: -3.1976 | F30: 5.072 | G30: -4.1771 | H30: 1.3626
A31: LNG | C31: 0.1406 | D31: 1.7576 | E31: -3.8877 | F31: 4.0406 | G31: -1.5559
A33: Efficiency, electricity production, Hydrogen
A35: Max power | C35: =Data!C159 -> 1746.588694 | E35: Number of cells | G35: =ROUNDUP(Data!C161,0) -> 15 | I35: 54% until | K35: =Data!C163*G35 -> 525 | L35: kW
A36: Hours of operation | C36: 25000 | D36: h | I36: Peak Power efficiency | K36: 35 | L36: kW
A37: Design lifetime | C37: =ROUNDUP(C36/Data!P59,0) -> 3 | D37: years | F37: Weight | G37: =G35*360 -> 5400 | H37: kg | I37: Peak Efficiency | K37: 0.54
A38: Design Stack Size | C38: 120 | D38: kW | F38: Cost cells | G38: =G35*1.55 -> 23.25 | H38: MNOK | P38: 0.494
A39: From max efficiency to mac performance
A40: const | B40: x | C40: x2 | D40: x3 | E40: x4
A41: 0.44 | B41: 0.84 | C41: -2.54 | D41: 2.96 | E41: -1.25
A42: Efficiency, electricity production, Batteries
A44: Design lifetime | C44: 10 | D44: years | E44: Design Capacity | G44: =Data!E184 -> 3357.011354 | H44: kWh
A45: Cycluses | C45: =Data!C185 -> 19710 | E45: Number of stacks | G45: =G44/135.6 -> 24.7567209 | H45: Stacks
A46: Allowed discharge | C46: =IF(C45<=6000,"80",IF(AND(6001<=C45,C45<=9000),"60",IF(AND(9001<=C45,C45<=14000),"50",IF(AND(14001<=C45,C45<=22000),"40",IF(AND(22001<=C45,C45<=41000),"30",IF(AND(41001<=C45,C45<=95000),"20",IF(AND(95001<=C45,C45<=160000),"15",IF(AND(160001<=C45,C45<=350000),"10","")))))))) -> 40 | D46: % | E46: Weight of stacks | G46: =G45*1762 -> 43621.34223 | H46: kg
A48: Power | B48: =0.5*G44 -> 1678.505677 | C48: =1*G44 -> 3357.011354 | D48: =1.5*G44 -> 5035.517031 | E48: =2*G44 -> 6714.022708 | F48: =2.5*G44 -> 8392.528385 | G48: =3*G44 -> 10071.03406
A49: Losses | B49: 0.0095 | C49: 0.0175 | D49: 0.0255 | E49: 0.035 | F49: 0.043 | G49: 0.0525
A57: Carbon footprint and well to wheel efficiency fromproduction
D58: CO2-equivalents | F58: Well to wheel efficiency
D59: per kg fuel, g | F59: %
A60: Diesel variable rpm | E60: 397.22
A61: LNG | E61: 407.84
A62: Electricity, Norwegian mix | E62: 50

Sheet G
A1: Project | B1: =A!D5 -> Hareid Sulesund Ferry | C1: G. COST AND ASSEMBLY
A2: Ship name | B2: =A!D6 -> TBN
A4: Price development and investments
B5: Disel Variable RPM | D5: Diesel Constan RPM | F5: Diesel Electric | H5: LNG | J5: LNG Electric | L5: Hydrogen | N5: Batteries
B6: CAPEX | C6: OPEX | D6: CAPEX | E6: OPEX | F6: CAPEX | G6: OPEX | H6: CAPEX | I6: OPEX | J6: CAPEX | K6: OPEX | L6: CAPEX | M6: OPEX | N6: CAPEX | O6: OPEX
A7: 1 | B7: =(('B2'!$C$32)*$G$53)/1000000 -> 8.462222222 | C7: =(('B2'!$C$32*$M$53)+($D$53*'C '!$G$16*365))/1000000 -> 12.0154016 | D7: =(('B2'!$C$32)*$G$53)/1000000 -> 8.462222222 | E7: =(('B2'!$C$32*$M$53)+($D$53*'C '!$G$17*365))/1000000 -> 12.54984925 | F7: =(((('B2'!$C$32)*$G$53)/1000000)+N("Batteries")+((Data!C102*G56)/1000000)) -> 12.55722222 | G7: =(('B2'!$C$32*$M$53)+($M$56*Data!$C$102)+($D$53*(Data!$DM$110*365*Data!$CT$181))+($D$56*Data!$DG$114*365))/1000000 -> 16.57862617 | H7: =(('B2'!$C$32)*$G$54)/1000000 -> 28.20740741 | I7: =(('B2'!$C$32*$M$54)+($D$54*'C '!$G$19*365))/1000000 -> 10.19025315 | J7: =(((('B2'!$C$32)*$G$54)/1000000)+N("Batteries")+((Data!C140*G56)/1000000)) -> 35.03240741 | K7: =(('B2'!$C$32*$M$54)+($M$56*Data!$C$140)+($D$54*(Data!$DM$148*365*Data!$CT$152))+($D$56*Data!$DG$152*365*Data!$CT$152))/1000000 -> 13.89125199 | L7: =((((((G55*F!C35)/1000000))+N("Batteries")+((Data!$C$140*G56)/1000000)))) -> 29.53065302 | M7: =((F!$C$35*$M$55)+($M$56*Data!$C$140)+($D$55*Data!$DM$177*365*Data!$CT$181)+($D$56*Data!$DG$181*365*Data!$CT$181))/1000000 -> 31.38695366 | N7: =((F!G44)*$G$56)/1000000 -> 18.32928199 | O7: =((F!$G$44*$M$56)+($D$56*Data!$E$189*365))/1000000 -> 5.103363735
A8: 2 | B8: =IF($I$53>19,0,IF($I$53=1,$B$7,0)) -> 0 | C8: =(('B2'!$C$32*$M$53)+($D$53*'C '!$G$16*365))/1000000 -> 12.0154016 | D8: =IF($I$53>19,0,IF($I$53=1,$B$7,0)) -> 0 | E8: =(('B2'!$C$32*$M$53)+($D$53*'C '!$G$17*365))/1000000 -> 12.54984925 | F8: =IF($I$53>19,0,IF($I$53=1,((('B2'!$C$32)*$G$53)/1000000),0))+N("Batteries")+IF($I$56>19,0,IF($I$56=1,((Data!C102*G56)/1000000))) -> 0 | G8: =(('B2'!$C$32*$M$53)+($M$56*Data!$C$102)+($D$53*(Data!$DM$110*365*Data!$CT$181))+($D$56*Data!$DG$114*365))/1000000 -> 16.57862617 | H8: =IF($I$54>19,0,IF($I$54=1,$H$7,0)) -> 0 | I8: =(('B2'!$C$32*$M$54)+($D$54*'C '!$G$19*365))/1000000 -> 10.19025315 | J8: =IF($I$54>19,0,IF($I$54=1,((('B2'!$C$32)*$G$54)/1000000),0))+N("Batteries")+IF($I$56>19,0,IF($I$56=1,((Data!C140*G56)/1000000))) -> 0 | K8: =(('B2'!$C$32*$M$54)+($M$56*Data!$C$140)+($D$54*(Data!$DM$148*365*Data!$CT$152))+($D$56*Data!$DG$152*365*Data!$CT$152))/1000000 -> 13.89125199 | L8: =IF($I$55>19,0,IF($I$55=1,(((G55*F!C35)/1000000)),0)+N("Batteries")+IF($I$56>19,0,IF($I$56=1,((Data!$C$140*G56)/1000000)))) -> 0 | M8: =((F!$C$35*$M$55)+($M$56*Data!$C$140)+($D$55*Data!$DM$177*365*Data!$CT$181)+($D$56*Data!$DG$181*365*Data!$CT$181))/1000000 -> 31.38695366 | N8: =IF($I$56>19,0,IF($I$56=1,$N$7,0)) -> 0 | O8: =((F!$G$44*$M$56)+($D$56*Data!$E$189*365))/1000000 -> 5.103363735
A9: 3 | B9: =IF($I$53>19,0,IF($I$53=1,$B$7,IF($I$53=2,$B$7,0))) -> 0 | C9: =(('B2'!$C$32*$M$53)+($D$53*'C '!$G$16*365))/1000000 -> 12.0154016 | D9: =IF($I$53>19,0,IF($I$53=1,$B$7,IF($I$53=2,$B$7,0))) -> 0 | E9: =(('B2'!$C$32*$M$53)+($D$53*'C '!$G$17*365))/1000000 -> 12.54984925 | F9: =IF($I$53>19,0,IF($I$53=1,((('B2'!$C$32)*$G$53)/1000000),IF($I$53=2,((('B2'!$C$32)*$G$53)/1000000),0)))+N("Batteries")+IF($I$56>19,0,IF($I$56=1,((Data!C102*G56)/1000000),IF($I$56=2,((Data!C102*G56)/1000000),0))) -> 0 | G9: =(('B2'!$C$32*$M$53)+($M$56*Data!$C$102)+($D$53*(Data!$DM$110*365*Data!$CT$181))+($D$56*Data!$DG$114*365))/1000000 -> 16.57862617 | H9: =IF($I$54>19,0,IF($I$54=1,$H$7,IF($I$54=2,$H$7,0))) -> 0 | I9: =(('B2'!$C$32*$M$54)+($D$54*'C '!$G$19*365))/1000000 -> 10.19025315 | J9: =IF($I$54>19,0,IF($I$54=1,((('B2'!$C$32)*$G$54)/1000000),IF($I$54=2,((('B2'!$C$32)*$G$54)/1000000),0)))+N("Batteries")+IF($I$56>19,0,IF($I$56=1,((Data!C140*G56)/1000000),IF($I$56=2,((Data!C140*G56)/1000000),0))) -> 0 | K9: =(('B2'!$C$32*$M$54)+($M$56*Data!$C$140)+($D$54*(Data!$DM$148*365*Data!$CT$152))+($D$56*Data!$DG$152*365*Data!$CT$152))/1000000 -> 13.89125199 | L9: =IF($I$55>19,0,IF($I$55=1,((G55*F!C35)/1000000),IF($I$55=2,((G55*F!C35)/1000000),0)))+N("Batteries")+IF($I$56>19,0,IF($I$56=1,((Data!$C$140*G56)/1000000),IF($I$56=2,((Data!$C$140*G56)/1000000),0))) -> 0 | M9: =((F!$C$35*$M$55)+($M$56*Data!$C$140)+($D$55*Data!$DM$177*365*Data!$CT$181)+($D$56*Data!$DG$181*365*Data!$CT$181))/1000000 -> 31.38695366 | N9: =IF($I$56>19,0,IF($I$56=1,$N$7,IF($I$56=2,$N$7,0))) -> 0 | O9: =((F!$G$44*$M$56)+($D$56*Data!$E$189*365))/1000000 -> 5.103363735
A10: 4 | B10: =IF($I$53>19,0,IF($I$53=1,$B$7,IF($I$53=3,$B$7,0))) -> 0 | C10: =(('B2'!$C$32*$M$53)+($D$53*'C '!$G$16*365))/1000000 -> 12.0154016 | D10: =IF($I$53>19,0,IF($I$53=1,$B$7,IF($I$53=3,$B$7,0))) -> 0 | E10: =(('B2'!$C$32*$M$53)+($D$53*'C '!$G$17*365))/1000000 -> 12.54984925 | F10: =IF($I$53>19,0,IF($I$53=1,((('B2'!$C$32)*$G$53)/1000000),IF($I$53=3,((('B2'!$C$32)*$G$53)/1000000),0)))+N("Batteries")+IF($I$56>19,0,IF($I$56=1,((Data!C102*G56)/1000000),IF($I$56=3,((Data!C102*G56)/1000000),0))) -> 0 | G10: =(('B2'!$C$32*$M$53)+($M$56*Data!$C$102)+($D$53*(Data!$DM$110*365*Data!$CT$181))+($D$56*Data!$DG$114*365))/1000000 -> 16.57862617 | H10: =IF($I$54>19,0,IF($I$54=1,$H$7,IF($I$54=3,$H$7,0))) -> 0 | I10: =(('B2'!$C$32*$M$54)+($D$54*'C '!$G$19*365))/1000000 -> 10.19025315 | J10: =IF($I$54>19,0,IF($I$54=1,((('B2'!$C$32)*$G$54)/1000000),IF($I$54=3,((('B2'!$C$32)*$G$54)/1000000),0)))+N("Batteries")+IF($I$56>19,0,IF($I$56=1,((Data!C140*G56)/1000000),IF($I$56=3,((Data!C140*G56)/1000000),0))) -> 0 | K10: =(('B2'!$C$32*$M$54)+($M$56*Data!$C$140)+($D$54*(Data!$DM$148*365*Data!$CT$152))+($D$56*Data!$DG$152*365*Data!$CT$152))/1000000 -> 13.89125199 | L10: =IF($I$55>19,0,IF($I$55=1,((G55*F!C35)/1000000),IF($I$55=3,((G55*F!C35)/1000000),0)))+N("Batteries")+IF($I$56>19,0,IF($I$56=1,((Data!$C$140*G56)/1000000),IF($I$56=3,((Data!$C$140*G56)/1000000),0))) -> 22.70565302 | M10: =((F!$C$35*$M$55)+($M$56*Data!$C$140)+($D$55*Data!$DM$177*365*Data!$CT$181)+($D$56*Data!$DG$181*365*Data!$CT$181))/1000000 -> 31.38695366 | N10: =IF($I$56>19,0,IF($I$56=1,$N$7,IF($I$56=3,$N$7,0))) -> 0 | O10: =((F!$G$44*$M$56)+($D$56*Data!$E$189*365))/1000000 -> 5.103363735
A11: 5 | B11: =IF($I$53>19,0,IF($I$53=1,$B$7,IF($I$53=4,$B$7,IF($I$53=2,$B$7,0)))) -> 0 | C11: =(('B2'!$C$32*$M$53)+($D$53*'C '!$G$16*365))/1000000 -> 12.0154016 | D11: =IF($I$53>19,0,IF($I$53=1,$B$7,IF($I$53=4,$B$7,IF($I$53=2,$B$7,0)))) -> 0 | E11: =(('B2'!$C$32*$M$53)+($D$53*'C '!$G$17*365))/1000000 -> 12.54984925 | F11: =IF($I$53>19,0,IF($I$53=1,((('B2'!$C$32)*$G$53)/1000000),IF($I$53=4,((('B2'!$C$32)*$G$53)/1000000),IF($I$53=2,((('B2'!$C$32)*$G$53)/1000000),0))))+N("Batteries")+IF($I$56>19,0,IF($I$56=1,((Data!C102*G56)/1000000),IF($I$56=4,((Data!C102*G56)/1000000),IF($I$56=2,((Data!C102*G56)/1000000),0)))) -> 0 | G11: =(('B2'!$C$32*$M$53)+($M$56*Data!$C$102)+($D$53*(Data!$DM$110*365*Data!$CT$181))+($D$56*Data!$DG$114*365))/1000000 -> 16.57862617 | H11: =IF($I$54>19,0,IF($I$54=1,$H$7,IF($I$54=4,$H$7,IF($I$54=2,$H$7,0)))) -> 0 | I11: =(('B2'!$C$32*$M$54)+($D$54*'C '!$G$19*365))/1000000 -> 10.19025315 | J11: =IF($I$54>19,0,IF($I$54=1,((('B2'!$C$32)*$G$54)/1000000),IF($I$54=4,((('B2'!$C$32)*$G$54)/1000000),IF($I$54=2,((('B2'!$C$32)*$G$54)/1000000),0))))+N("Batteries")+IF($I$56>19,0,IF($I$56=1,((Data!C140*G56)/1000000),IF($I$56=4,((Data!C140*G56)/1000000),IF($I$56=2,((Data!C140*G56)/1000000),0)))) -> 0 | K11: =(('B2'!$C$32*$M$54)+($M$56*Data!$C$140)+($D$54*(Data!$DM$148*365*Data!$CT$152))+($D$56*Data!$DG$152*365*Data!$CT$152))/1000000 -> 13.89125199 | L11: =IF($I$55>19,0,IF($I$55=1,((G55*F!C35)/1000000),IF($I$55=4,((G55*F!C35)/1000000),IF($I$55=2,((G55*F!C35)/1000000),0))))+N("Batteries")+IF($I$56>19,0,IF($I$56=1,((Data!$C$140*G56)/1000000),IF($I$56=4,((Data!$C$140*G56)/1000000),IF($I$56=2,((Data!$C$140*G56)/1000000),0)))) -> 0 | M11: =((F!$C$35*$M$55)+($M$56*Data!$C$140)+($D$55*Data!$DM$177*365*Data!$CT$181)+($D$56*Data!$DG$181*365*Data!$CT$181))/1000000 -> 31.38695366 | N11: =IF($I$56>19,0,IF($I$56=1,$N$7,IF($I$56=4,$N$7,IF($I$56=2,$N$7,0)))) -> 0 | O11: =((F!$G$44*$M$56)+($D$56*Data!$E$189*365))/1000000 -> 5.103363735
A12: 6 | B12: =IF($I$53>19,0,IF($I$53=1,$B$7,IF($I$53=5,$B$7,0))) -> 0 | C12: =(('B2'!$C$32*$M$53)+($D$53*'C '!$G$16*365))/1000000 -> 12.0154016 | D12: =IF($I$53>19,0,IF($I$53=1,$B$7,IF($I$53=5,$B$7,0))) -> 0 | E12: =(('B2'!$C$32*$M$53)+($D$53*'C '!$G$17*365))/1000000 -> 12.54984925 | F12: =IF($I$53>19,0,IF($I$53=1,((('B2'!$C$32)*$G$53)/1000000),IF($I$53=5,((('B2'!$C$32)*$G$53)/1000000),0)))+N("Batteries")+IF($I$56>19,0,IF($I$56=1,((Data!C102*G56)/1000000),IF($I$56=5,((Data!C102*G56)/1000000),0))) -> 0 | G12: =(('B2'!$C$32*$M$53)+($M$56*Data!$C$102)+($D$53*(Data!$DM$110*365*Data!$CT$181))+($D$56*Data!$DG$114*365))/1000000 -> 16.57862617 | H12: =IF($I$54>19,0,IF($I$54=1,$H$7,IF($I$54=5,$H$7,0))) -> 0 | I12: =(('B2'!$C$32*$M$54)+($D$54*'C '!$G$19*365))/1000000 -> 10.19025315 | J12: =IF($I$54>19,0,IF($I$54=1,((('B2'!$C$32)*$G$54)/1000000),IF($I$54=5,((('B2'!$C$32)*$G$54)/1000000),0)))+N("Batteries")+IF($I$56>19,0,IF($I$56=1,((Data!C140*G56)/1000000),IF($I$56=5,((Data!C140*G56)/1000000),0))) -> 0 | K12: =(('B2'!$C$32*$M$54)+($M$56*Data!$C$140)+($D$54*(Data!$DM$148*365*Data!$CT$152))+($D$56*Data!$DG$152*365*Data!$CT$152))/1000000 -> 13.89125199 | L12: =IF($I$55>19,0,IF($I$55=1,((G55*F!C35)/1000000),IF($I$55=5,((G55*F!C35)/1000000),0)))+N("Batteries")+IF($I$56>19,0,IF($I$56=1,((Data!$C$140*G56)/1000000),IF($I$56=5,((Data!$C$140*G56)/1000000),0))) -> 0 | M12: =((F!$C$35*$M$55)+($M$56*Data!$C$140)+($D$55*Data!$DM$177*365*Data!$CT$181)+($D$56*Data!$DG$181*365*Data!$CT$181))/1000000 -> 31.38695366 | N12: =IF($I$56>19,0,IF($I$56=1,$N$7,IF($I$56=5,$N$7,0))) -> 0 | O12: =((F!$G$44*$M$56)+($D$56*Data!$E$189*365))/1000000 -> 5.103363735
A13: 7 | B13: =IF($I$53>19,0,IF($I$53=1,$B$7,IF($I$53=2,$B$7,IF($I$53=6,$B$7,IF($I$53=3,$B$7,0))))) -> 0 | C13: =(('B2'!$C$32*$M$53)+($D$53*'C '!$G$16*365))/1000000 -> 12.0154016 | D13: =IF($I$53>19,0,IF($I$53=1,$B$7,IF($I$53=2,$B$7,IF($I$53=6,$B$7,IF($I$53=3,$B$7,0))))) -> 0 | E13: =(('B2'!$C$32*$M$53)+($D$53*'C '!$G$17*365))/1000000 -> 12.54984925 | F13: =IF($I$53>19,0,IF($I$53=1,((('B2'!$C$32)*$G$53)/1000000),IF($I$53=2,((('B2'!$C$32)*$G$53)/1000000),IF($I$53=6,((('B2'!$C$32)*$G$53)/1000000),IF($I$53=3,((('B2'!$C$32)*$G$53)/1000000),0)))))+N("Batteries")+IF($I$56>19,0,IF($I$56=1,((Data!C102*G56)/1000000),IF($I$56=2,((Data!C102*G56)/1000000),IF($I$56=6,((Data!C102*G56)/1000000),IF($I$56=3,((Data!C102*G56)/1000000),0))))) -> 0 | G13: =(('B2'!$C$32*$M$53)+($M$56*Data!$C$102)+($D$53*(Data!$DM$110*365*Data!$CT$181))+($D$56*Data!$DG$114*365))/1000000 -> 16.57862617 | H13: =IF($I$54>19,0,IF($I$54=1,$H$7,IF($I$54=2,$H$7,IF($I$54=6,$H$7,IF($I$54=3,$H$7,0))))) -> 0 | I13: =(('B2'!$C$32*$M$54)+($D$54*'C '!$G$19*365))/1000000 -> 10.19025315 | J13: =IF($I$54>19,0,IF($I$54=1,((('B2'!$C$32)*$G$54)/1000000),IF($I$54=2,((('B2'!$C$32)*$G$54)/1000000),IF($I$54=6,((('B2'!$C$32)*$G$54)/1000000),IF($I$54=3,((('B2'!$C$32)*$G$54)/1000000),0)))))+N("Batteries")+IF($I$56>19,0,IF($I$56=1,((Data!C140*G56)/1000000),IF($I$56=2,((Data!C140*G56)/1000000),IF($I$56=6,((Data!C140*G56)/1000000),IF($I$56=3,((Data!C140*G56)/1000000),0))))) -> 0 | K13: =(('B2'!$C$32*$M$54)+($M$56*Data!$C$140)+($D$54*(Data!$DM$148*365*Data!$CT$152))+($D$56*Data!$DG$152*365*Data!$CT$152))/1000000 -> 13.89125199 | L13: =IF($I$55>19,0,IF($I$55=1,((G55*F!C35)/1000000),IF($I$55=2,((G55*F!C35)/1000000),IF($I$55=6,((G55*F!C35)/1000000),IF($I$55=3,((G55*F!C35)/1000000),0)))))+N("Batteries")+IF($I$56>19,0,IF($I$56=1,((Data!$C$140*G56)/1000000),IF($I$56=2,((Data!$C$140*G56)/1000000),IF($I$56=6,((Data!$C$140*G56)/1000000),IF($I$56=3,((Data!$C$140*G56)/1000000),0))))) -> 22.70565302 | M13: =((F!$C$35*$M$55)+($M$56*Data!$C$140)+($D$55*Data!$DM$177*365*Data!$CT$181)+($D$56*Data!$DG$181*365*Data!$CT$181))/1000000 -> 31.38695366 | N13: =IF($I$56>19,0,IF($I$56=1,$N$7,IF($I$56=2,$N$7,IF($I$56=6,$N$7,IF($I$56=3,$N$7,0))))) -> 0 | O13: =((F!$G$44*$M$56)+($D$56*Data!$E$189*365))/1000000 -> 5.103363735
A14: 8 | B14: =IF($I$53>19,0,IF($I$53=1,$B$7,IF($I$53=7,$B$7,0))) -> 0 | C14: =(('B2'!$C$32*$M$53)+($D$53*'C '!$G$16*365))/1000000 -> 12.0154016 | D14: =IF($I$53>19,0,IF($I$53=1,$B$7,IF($I$53=7,$B$7,0))) -> 0 | E14: =(('B2'!$C$32*$M$53)+($D$53*'C '!$G$17*365))/1000000 -> 12.54984925 | F14: =IF($I$53>19,0,IF($I$53=1,((('B2'!$C$32)*$G$53)/1000000),IF($I$53=7,((('B2'!$C$32)*$G$53)/1000000),0)))+N("Batteries")+IF($I$56>19,0,IF($I$56=1,((Data!C102*G56)/1000000),IF($I$56=7,((Data!C102*G56)/1000000),0))) -> 0 | G14: =(('B2'!$C$32*$M$53)+($M$56*Data!$C$102)+($D$53*(Data!$DM$110*365*Data!$CT$181))+($D$56*Data!$DG$114*365))/1000000 -> 16.57862617 | H14: =IF($I$54>19,0,IF($I$54=1,$H$7,IF($I$54=7,$H$7,0))) -> 0 | I14: =(('B2'!$C$32*$M$54)+($D$54*'C '!$G$19*365))/1000000 -> 10.19025315 | J14: =IF($I$54>19,0,IF($I$54=1,((('B2'!$C$32)*$G$54)/1000000),IF($I$54=7,((('B2'!$C$32)*$G$54)/1000000),0)))+N("Batteries")+IF($I$56>19,0,IF($I$56=1,((Data!C140*G56)/1000000),IF($I$56=7,((Data!C140*G56)/1000000),0))) -> 0 | K14: =(('B2'!$C$32*$M$54)+($M$56*Data!$C$140)+($D$54*(Data!$DM$148*365*Data!$CT$152))+($D$56*Data!$DG$152*365*Data!$CT$152))/1000000 -> 13.89125199 | L14: =IF($I$55>19,0,IF($I$55=1,((G55*F!C35)/1000000),IF($I$55=7,((G55*F!C35)/1000000),0)))+N("Batteries")+IF($I$56>19,0,IF($I$56=1,((Data!$C$140*G56)/1000000),IF($I$56=7,((Data!$C$140*G56)/1000000),0))) -> 0 | M14: =((F!$C$35*$M$55)+($M$56*Data!$C$140)+($D$55*Data!$DM$177*365*Data!$CT$181)+($D$56*Data!$DG$181*365*Data!$CT$181))/1000000 -> 31.38695366 | N14: =IF($I$56>19,0,IF($I$56=1,$N$7,IF($I$56=7,$N$7,0))) -> 0 | O14: =((F!$G$44*$M$56)+($D$56*Data!$E$189*365))/1000000 -> 5.103363735
A15: 9 | B15: =IF($I$53>19,0,IF($I$53=1,$B$7,IF($I$53=8,$B$7,IF($I$53=4,$B$7,IF($I$53=2,$B$7,0))))) -> 0 | C15: =(('B2'!$C$32*$M$53)+($D$53*'C '!$G$16*365))/1000000 -> 12.0154016 | D15: =IF($I$53>19,0,IF($I$53=1,$B$7,IF($I$53=8,$B$7,IF($I$53=4,$B$7,IF($I$53=2,$B$7,0))))) -> 0 | E15: =(('B2'!$C$32*$M$53)+($D$53*'C '!$G$17*365))/1000000 -> 12.54984925 | F15: =IF($I$53>19,0,IF($I$53=1,((('B2'!$C$32)*$G$53)/1000000),IF($I$53=8,((('B2'!$C$32)*$G$53)/1000000),IF($I$53=4,((('B2'!$C$32)*$G$53)/1000000),IF($I$53=2,((('B2'!$C$32)*$G$53)/1000000),0)))))+N("Batteries")+IF($I$56>19,0,IF($I$56=1,((Data!C102*G56)/1000000),IF($I$56=8,((Data!C102*G56)/1000000),IF($I$56=4,((Data!C102*G56)/1000000),IF($I$56=2,((Data!C102*G56)/1000000),0))))) -> 0 | G15: =(('B2'!$C$32*$M$53)+($M$56*Data!$C$102)+($D$53*(Data!$DM$110*365*Data!$CT$181))+($D$56*Data!$DG$114*365))/1000000 -> 16.57862617 | H15: =IF($I$54>19,0,IF($I$54=1,$H$7,IF($I$54=8,$H$7,IF($I$54=4,$H$7,IF($I$54=2,$H$7,0))))) -> 0 | I15: =(('B2'!$C$32*$M$54)+($D$54*'C '!$G$19*365))/1000000 -> 10.19025315 | J15: =IF($I$54>19,0,IF($I$54=1,((('B2'!$C$32)*$G$54)/1000000),IF($I$54=8,((('B2'!$C$32)*$G$54)/1000000),IF($I$54=4,((('B2'!$C$32)*$G$54)/1000000),IF($I$54=2,((('B2'!$C$32)*$G$54)/1000000),0)))))+N("Batteries")+IF($I$56>19,0,IF($I$56=1,((Data!C140*G56)/1000000),IF($I$56=8,((Data!C140*G56)/1000000),IF($I$56=4,((Data!C140*G56)/1000000),IF($I$56=2,((Data!C140*G56)/1000000),0))))) -> 0 | K15: =(('B2'!$C$32*$M$54)+($M$56*Data!$C$140)+($D$54*(Data!$DM$148*365*Data!$CT$152))+($D$56*Data!$DG$152*365*Data!$CT$152))/1000000 -> 13.89125199 | L15: =IF($I$55>19,0,IF($I$55=1,((G55*F!C35)/1000000),IF($I$55=8,((G55*F!C35)/1000000),IF($I$55=4,((G55*F!C35)/1000000),IF($I$55=2,((G55*F!C35)/1000000),0)))))+N("Batteries")+IF($I$56>19,0,IF($I$56=1,((Data!$C$140*G56)/1000000),IF($I$56=8,((Data!$C$140*G56)/1000000),IF($I$56=4,((Data!$C$140*G56)/1000000),IF($I$56=2,((Data!$C$140*G56)/1000000),0))))) -> 0 | M15: =((F!$C$35*$M$55)+($M$56*Data!$C$140)+($D$55*Data!$DM$177*365*Data!$CT$181)+($D$56*Data!$DG$181*365*Data!$CT$181))/1000000 -> 31.38695366 | N15: =IF($I$56>19,0,IF($I$56=1,$N$7,IF($I$56=8,$N$7,IF($I$56=4,$N$7,IF($I$56=2,$N$7,0))))) -> 0 | O15: =((F!$G$44*$M$56)+($D$56*Data!$E$189*365))/1000000 -> 5.103363735
A16: 10 | B16: =IF($I$53>19,0,IF($I$53=1,$B$7,IF($I$53=9,$B$7,IF($I$53=3,$B$7,0)))) -> 0 | C16: =(('B2'!$C$32*$M$53)+($D$53*'C '!$G$16*365))/1000000 -> 12.0154016 | D16: =IF($I$53>19,0,IF($I$53=1,$B$7,IF($I$53=9,$B$7,IF($I$53=3,$B$7,0)))) -> 0 | E16: =(('B2'!$C$32*$M$53)+($D$53*'C '!$G$17*365))/1000000 -> 12.54984925 | F16: =IF($I$53>19,0,IF($I$53=1,((('B2'!$C$32)*$G$53)/1000000),IF($I$53=9,((('B2'!$C$32)*$G$53)/1000000),IF($I$53=3,((('B2'!$C$32)*$G$53)/1000000),0))))+N("Batteries")+IF($I$56>19,0,IF($I$56=1,((Data!C102*G56)/1000000),IF($I$56=9,((Data!C102*G56)/1000000),IF($I$56=3,((Data!C102*G56)/1000000),0)))) -> 0 | G16: =(('B2'!$C$32*$M$53)+($M$56*Data!$C$102)+($D$53*(Data!$DM$110*365*Data!$CT$181))+($D$56*Data!$DG$114*365))/1000000 -> 16.57862617 | H16: =IF($I$54>19,0,IF($I$54=1,$H$7,IF($I$54=9,$H$7,IF($I$54=3,$H$7,0)))) -> 0 | I16: =(('B2'!$C$32*$M$54)+($D$54*'C '!$G$19*365))/1000000 -> 10.19025315 | J16: =IF($I$54>19,0,IF($I$54=1,((('B2'!$C$32)*$G$54)/1000000),IF($I$54=9,((('B2'!$C$32)*$G$54)/1000000),IF($I$54=3,((('B2'!$C$32)*$G$54)/1000000),0))))+N("Batteries")+IF($I$56>19,0,IF($I$56=1,((Data!C140*G56)/1000000),IF($I$56=9,((Data!C140*G56)/1000000),IF($I$56=3,((Data!C140*G56)/1000000),0)))) -> 0 | K16: =(('B2'!$C$32*$M$54)+($M$56*Data!$C$140)+($D$54*(Data!$DM$148*365*Data!$CT$152))+($D$56*Data!$DG$152*365*Data!$CT$152))/1000000 -> 13.89125199 | L16: =IF($I$55>19,0,IF($I$55=1,((G55*F!C35)/1000000),IF($I$55=9,((G55*F!C35)/1000000),IF($I$55=3,((G55*F!C35)/1000000),0))))+N("Batteries")+IF($I$56>19,0,IF($I$56=1,((Data!$C$140*G56)/1000000),IF($I$56=9,((Data!$C$140*G56)/1000000),IF($I$56=3,((Data!$C$140*G56)/1000000),0)))) -> 22.70565302 | M16: =((F!$C$35*$M$55)+($M$56*Data!$C$140)+($D$55*Data!$DM$177*365*Data!$CT$181)+($D$56*Data!$DG$181*365*Data!$CT$181))/1000000 -> 31.38695366 | N16: =IF($I$56>19,0,IF($I$56=1,$N$7,IF($I$56=9,$N$7,IF($I$56=3,$N$7,0)))) -> 0 | O16: =((F!$G$44*$M$56)+($D$56*Data!$E$189*365))/1000000 -> 5.103363735
A17: 11 | B17: =IF($I$53>19,0,IF($I$53=1,$B$7,IF($I$53=10,$B$7,IF($I$53=5,$B$7,IF($I$53=2,$B$7,0))))) -> 0 | C17: =(('B2'!$C$32*$M$53)+($D$53*'C '!$G$16*365))/1000000 -> 12.0154016 | D17: =IF($I$53>19,0,IF($I$53=1,$B$7,IF($I$53=10,$B$7,IF($I$53=5,$B$7,IF($I$53=2,$B$7,0))))) -> 0 | E17: =(('B2'!$C$32*$M$53)+($D$53*'C '!$G$17*365))/1000000 -> 12.54984925 | F17: =IF($I$53>19,0,IF($I$53=1,((('B2'!$C$32)*$G$53)/1000000),IF($I$53=10,((('B2'!$C$32)*$G$53)/1000000),IF($I$53=5,((('B2'!$C$32)*$G$53)/1000000),IF($I$53=2,((('B2'!$C$32)*$G$53)/1000000),0)))))+N("Batteries")+IF($I$56>19,0,IF($I$56=1,((Data!C102*G56)/1000000),IF($I$56=10,((Data!C102*G56)/1000000),IF($I$56=5,((Data!C102*G56)/1000000),IF($I$56=2,((Data!C102*G56)/1000000),0))))) -> 4.095 | G17: =(('B2'!$C$32*$M$53)+($M$56*Data!$C$102)+($D$53*(Data!$DM$110*365*Data!$CT$181))+($D$56*Data!$DG$114*365))/1000000 -> 16.57862617 | H17: =IF($I$54>19,0,IF($I$54=1,$H$7,IF($I$54=10,$H$7,IF($I$54=5,$H$7,IF($I$54=2,$H$7,0))))) -> 0 | I17: =(('B2'!$C$32*$M$54)+($D$54*'C '!$G$19*365))/1000000 -> 10.19025315 | J17: =IF($I$54>19,0,IF($I$54=1,((('B2'!$C$32)*$G$54)/1000000),IF($I$54=10,((('B2'!$C$32)*$G$54)/1000000),IF($I$54=5,((('B2'!$C$32)*$G$54)/1000000),IF($I$54=2,((('B2'!$C$32)*$G$54)/1000000),0)))))+N("Batteries")+IF($I$56>19,0,IF($I$56=1,((Data!C140*G56)/1000000),IF($I$56=10,((Data!C140*G56)/1000000),IF($I$56=5,((Data!C140*G56)/1000000),IF($I$56=2,((Data!C140*G56)/1000000),0))))) -> 6.825 | K17: =(('B2'!$C$32*$M$54)+($M$56*Data!$C$140)+($D$54*(Data!$DM$148*365*Data!$CT$152))+($D$56*Data!$DG$152*365*Data!$CT$152))/1000000 -> 13.89125199 | L17: =IF($I$55>19,0,IF($I$55=1,((G55*F!C35)/1000000),IF($I$55=10,((G55*F!C35)/1000000),IF($I$55=5,((G55*F!C35)/1000000),IF($I$55=2,((G55*F!C35)/1000000),0)))))+N("Batteries")+IF($I$56>19,0,IF($I$56=1,((Data!$C$140*G56)/1000000),IF($I$56=10,((Data!$C$140*G56)/1000000),IF($I$56=5,((Data!$C$140*G56)/1000000),IF($I$56=2,((Data!$C$140*G56)/1000000),0))))) -> 6.825 | M17: =((F!$C$35*$M$55)+($M$56*Data!$C$140)+($D$55*Data!$DM$177*365*Data!$CT$181)+($D$56*Data!$DG$181*365*Data!$CT$181))/1000000 -> 31.38695366 | N17: =IF($I$56>19,0,IF($I$56=1,$N$7,IF($I$56=10,$N$7,IF($I$56=5,$N$7,IF($I$56=2,$N$7,0))))) -> 18.32928199 | O17: =((F!$G$44*$M$56)+($D$56*Data!$E$189*365))/1000000 -> 5.103363735
A18: 12 | B18: =IF($I$53>19,0,IF($I$53=1,$B$7,IF($I$53=11,$B$7,0))) -> 0 | C18: =(('B2'!$C$32*$M$53)+($D$53*'C '!$G$16*365))/1000000 -> 12.0154016 | D18: =IF($I$53>19,0,IF($I$53=1,$B$7,IF($I$53=11,$B$7,0))) -> 0 | E18: =(('B2'!$C$32*$M$53)+($D$53*'C '!$G$17*365))/1000000 -> 12.54984925 | F18: =IF($I$53>19,0,IF($I$53=1,((('B2'!$C$32)*$G$53)/1000000),IF($I$53=11,((('B2'!$C$32)*$G$53)/1000000),0)))+N("Batteries")+IF($I$56>19,0,IF($I$56=1,((Data!C102*G56)/1000000),IF($I$56=11,((Data!C102*G56)/1000000),0))) -> 0 | G18: =(('B2'!$C$32*$M$53)+($M$56*Data!$C$102)+($D$53*(Data!$DM$110*365*Data!$CT$181))+($D$56*Data!$DG$114*365))/1000000 -> 16.57862617 | H18: =IF($I$54>19,0,IF($I$54=1,$H$7,IF($I$54=11,$H$7,0))) -> 0 | I18: =(('B2'!$C$32*$M$54)+($D$54*'C '!$G$19*365))/1000000 -> 10.19025315 | J18: =IF($I$54>19,0,IF($I$54=1,((('B2'!$C$32)*$G$54)/1000000),IF($I$54=11,((('B2'!$C$32)*$G$54)/1000000),0)))+N("Batteries")+IF($I$56>19,0,IF($I$56=1,((Data!C140*G56)/1000000),IF($I$56=11,((Data!C140*G56)/1000000),0))) -> 0 | K18: =(('B2'!$C$32*$M$54)+($M$56*Data!$C$140)+($D$54*(Data!$DM$148*365*Data!$CT$152))+($D$56*Data!$DG$152*365*Data!$CT$152))/1000000 -> 13.89125199 | L18: =IF($I$55>19,0,IF($I$55=1,((G55*F!C35)/1000000),IF($I$55=11,((G55*F!C35)/1000000),0)))+N("Batteries")+IF($I$56>19,0,IF($I$56=1,((Data!$C$140*G56)/1000000),IF($I$56=11,((Data!$C$140*G56)/1000000),0))) -> 0 | M18: =((F!$C$35*$M$55)+($M$56*Data!$C$140)+($D$55*Data!$DM$177*365*Data!$CT$181)+($D$56*Data!$DG$181*365*Data!$CT$181))/1000000 -> 31.38695366 | N18: =IF($I$56>19,0,IF($I$56=1,$N$7,IF($I$56=11,$N$7,0))) -> 0 | O18: =((F!$G$44*$M$56)+($D$56*Data!$E$189*365))/1000000 -> 5.103363735
A19: 13 | B19: =IF($I$53>19,0,IF($I$53=1,$B$7,IF($I$53=12,$B$7,IF($I$53=6,$B$7,IF($I$53=4,$B$7,IF($I$53=3,$B$7,IF($I$53=2,$B$7,0))))))) -> 0 | C19: =(('B2'!$C$32*$M$53)+($D$53*'C '!$G$16*365))/1000000 -> 12.0154016 | D19: =IF($I$53>19,0,IF($I$53=1,$B$7,IF($I$53=12,$B$7,IF($I$53=6,$B$7,IF($I$53=4,$B$7,IF($I$53=3,$B$7,IF($I$53=2,$B$7,0))))))) -> 0 | E19: =(('B2'!$C$32*$M$53)+($D$53*'C '!$G$17*365))/1000000 -> 12.54984925 | F19: =IF($I$53>19,0,IF($I$53=1,((('B2'!$C$32)*$G$53)/1000000),IF($I$53=12,((('B2'!$C$32)*$G$53)/1000000),IF($I$53=6,((('B2'!$C$32)*$G$53)/1000000),IF($I$53=4,((('B2'!$C$32)*$G$53)/1000000),IF($I$53=3,((('B2'!$C$32)*$G$53)/1000000),IF($I$53=2,((('B2'!$C$32)*$G$53)/1000000),0)))))))+N("Batteries")+IF($I$56>19,0,IF($I$56=1,((Data!C102*G56)/1000000),IF($I$56=12,((Data!C102*G56)/1000000),IF($I$56=6,((Data!C102*G56)/1000000),IF($I$56=4,((Data!C102*G56)/1000000),IF($I$56=3,((Data!C102*G56)/1000000),IF($I$56=2,((Data!C102*G56)/1000000),0))))))) -> 0 | G19: =(('B2'!$C$32*$M$53)+($M$56*Data!$C$102)+($D$53*(Data!$DM$110*365*Data!$CT$181))+($D$56*Data!$DG$114*365))/1000000 -> 16.57862617 | H19: =IF($I$54>19,0,IF($I$54=1,$H$7,IF($I$54=12,$H$7,IF($I$54=6,$H$7,IF($I$54=4,$H$7,IF($I$54=3,$H$7,IF($I$54=2,$H$7,0))))))) -> 0 | I19: =(('B2'!$C$32*$M$54)+($D$54*'C '!$G$19*365))/1000000 -> 10.19025315 | J19: =IF($I$54>19,0,IF($I$54=1,((('B2'!$C$32)*$G$54)/1000000),IF($I$54=12,((('B2'!$C$32)*$G$54)/1000000),IF($I$54=6,((('B2'!$C$32)*$G$54)/1000000),IF($I$54=4,((('B2'!$C$32)*$G$54)/1000000),IF($I$54=3,((('B2'!$C$32)*$G$54)/1000000),IF($I$54=2,((('B2'!$C$32)*$G$54)/1000000),0)))))))+N("Batteries")+IF($I$56>19,0,IF($I$56=1,((Data!C140*G56)/1000000),IF($I$56=12,((Data!C140*G56)/1000000),IF($I$56=6,((Data!C140*G56)/1000000),IF($I$56=4,((Data!C140*G56)/1000000),IF($I$56=3,((Data!C140*G56)/1000000),IF($I$56=2,((Data!C140*G56)/1000000),0))))))) -> 0 | K19: =(('B2'!$C$32*$M$54)+($M$56*Data!$C$140)+($D$54*(Data!$DM$148*365*Data!$CT$152))+($D$56*Data!$DG$152*365*Data!$CT$152))/1000000 -> 13.89125199 | L19: =IF($I$55>19,0,IF($I$55=1,((G55*F!C35)/1000000),IF($I$55=12,((G55*F!C35)/1000000),IF($I$55=6,((G55*F!C35)/1000000),IF($I$55=4,((G55*F!C35)/1000000),IF($I$55=3,((G55*F!C35)/1000000),IF($I$55=2,((G55*F!C35)/1000000),0)))))))+N("Batteries")+IF($I$56>19,0,IF($I$56=1,((Data!$C$140*G56)/1000000),IF($I$56=12,((Data!$C$140*G56)/1000000),IF($I$56=6,((Data!$C$140*G56)/1000000),IF($I$56=4,((Data!$C$140*G56)/1000000),IF($I$56=3,((Data!$C$140*G56)/1000000),IF($I$56=2,((Data!$C$140*G56)/1000000),0))))))) -> 22.70565302 | M19: =((F!$C$35*$M$55)+($M$56*Data!$C$140)+($D$55*Data!$DM$177*365*Data!$CT$181)+($D$56*Data!$DG$181*365*Data!$CT$181))/1000000 -> 31.38695366 | N19: =IF($I$56>19,0,IF($I$56=1,$N$7,IF($I$56=12,$N$7,IF($I$56=6,$N$7,IF($I$56=4,$N$7,IF($I$56=3,$N$7,IF($I$56=2,$N$7,0))))))) -> 0 | O19: =((F!$G$44*$M$56)+($D$56*Data!$E$189*365))/1000000 -> 5.103363735
A20: 14 | B20: =IF($I$53>19,0,IF($I$53=1,$B$7,IF($I$53=13,$B$7,0))) -> 0 | C20: =(('B2'!$C$32*$M$53)+($D$53*'C '!$G$16*365))/1000000 -> 12.0154016 | D20: =IF($I$53>19,0,IF($I$53=1,$B$7,IF($I$53=13,$B$7,0))) -> 0 | E20: =(('B2'!$C$32*$M$53)+($D$53*'C '!$G$17*365))/1000000 -> 12.54984925 | F20: =IF($I$53>19,0,IF($I$53=1,((('B2'!$C$32)*$G$53)/1000000),IF($I$53=13,((('B2'!$C$32)*$G$53)/1000000),0)))+N("Batteries")+IF($I$56>19,0,IF($I$56=1,((Data!C102*G56)/1000000),IF($I$56=13,((Data!C102*G56)/1000000),0))) -> 0 | G20: =(('B2'!$C$32*$M$53)+($M$56*Data!$C$102)+($D$53*(Data!$DM$110*365*Data!$CT$181))+($D$56*Data!$DG$114*365))/1000000 -> 16.57862617 | H20: =IF($I$54>19,0,IF($I$54=1,$H$7,IF($I$54=13,$H$7,0))) -> 0 | I20: =(('B2'!$C$32*$M$54)+($D$54*'C '!$G$19*365))/1000000 -> 10.19025315 | J20: =IF($I$54>19,0,IF($I$54=1,((('B2'!$C$32)*$G$54)/1000000),IF($I$54=13,((('B2'!$C$32)*$G$54)/1000000),0)))+N("Batteries")+IF($I$56>19,0,IF($I$56=1,((Data!C140*G56)/1000000),IF($I$56=13,((Data!C140*G56)/1000000),0))) -> 0 | K20: =(('B2'!$C$32*$M$54)+($M$56*Data!$C$140)+($D$54*(Data!$DM$148*365*Data!$CT$152))+($D$56*Data!$DG$152*365*Data!$CT$152))/1000000 -> 13.89125199 | L20: =IF($I$55>19,0,IF($I$55=1,((G55*F!C35)/1000000),IF($I$55=13,((G55*F!C35)/1000000),0)))+N("Batteries")+IF($I$56>19,0,IF($I$56=1,((Data!$C$140*G56)/1000000),IF($I$56=13,((Data!$C$140*G56)/1000000),0))) -> 0 | M20: =((F!$C$35*$M$55)+($M$56*Data!$C$140)+($D$55*Data!$DM$177*365*Data!$CT$181)+($D$56*Data!$DG$181*365*Data!$CT$181))/1000000 -> 31.38695366 | N20: =IF($I$56>19,0,IF($I$56=1,$N$7,IF($I$56=13,$N$7,0))) -> 0 | O20: =((F!$G$44*$M$56)+($D$56*Data!$E$189*365))/1000000 -> 5.103363735
A21: 15 | B21: =IF($I$53>19,0,IF($I$53=1,$B$7,IF($I$53=14,$B$7,IF($I$53=7,$B$7,IF($I$53=2,$B$7,0))))) -> 0 | C21: =(('B2'!$C$32*$M$53)+($D$53*'C '!$G$16*365))/1000000 -> 12.0154016 | D21: =IF($I$53>19,0,IF($I$53=1,$B$7,IF($I$53=14,$B$7,IF($I$53=7,$B$7,IF($I$53=2,$B$7,0))))) -> 0 | E21: =(('B2'!$C$32*$M$53)+($D$53*'C '!$G$17*365))/1000000 -> 12.54984925 | F21: =IF($I$53>19,0,IF($I$53=1,((('B2'!$C$32)*$G$53)/1000000),IF($I$53=14,((('B2'!$C$32)*$G$53)/1000000),IF($I$53=7,((('B2'!$C$32)*$G$53)/1000000),IF($I$53=2,((('B2'!$C$32)*$G$53)/1000000),0)))))+N("Batteries")+IF($I$56>19,0,IF($I$56=1,((Data!C102*G56)/1000000),IF($I$56=14,((Data!C102*G56)/1000000),IF($I$56=7,((Data!C102*G56)/1000000),IF($I$56=2,((Data!C102*G56)/1000000),0))))) -> 0 | G21: =(('B2'!$C$32*$M$53)+($M$56*Data!$C$102)+($D$53*(Data!$DM$110*365*Data!$CT$181))+($D$56*Data!$DG$114*365))/1000000 -> 16.57862617 | H21: =IF($I$54>19,0,IF($I$54=1,$H$7,IF($I$54=14,$H$7,IF($I$54=7,$H$7,IF($I$54=2,$H$7,0))))) -> 0 | I21: =(('B2'!$C$32*$M$54)+($D$54*'C '!$G$19*365))/1000000 -> 10.19025315 | J21: =IF($I$54>19,0,IF($I$54=1,((('B2'!$C$32)*$G$54)/1000000),IF($I$54=14,((('B2'!$C$32)*$G$54)/1000000),IF($I$54=7,((('B2'!$C$32)*$G$54)/1000000),IF($I$54=2,((('B2'!$C$32)*$G$54)/1000000),0)))))+N("Batteries")+IF($I$56>19,0,IF($I$56=1,((Data!C140*G56)/1000000),IF($I$56=14,((Data!C140*G56)/1000000),IF($I$56=7,((Data!C140*G56)/1000000),IF($I$56=2,((Data!C140*G56)/1000000),0))))) -> 0 | K21: =(('B2'!$C$32*$M$54)+($M$56*Data!$C$140)+($D$54*(Data!$DM$148*365*Data!$CT$152))+($D$56*Data!$DG$152*365*Data!$CT$152))/1000000 -> 13.89125199 | L21: =IF($I$55>19,0,IF($I$55=1,((G55*F!C35)/1000000),IF($I$55=14,((G55*F!C35)/1000000),IF($I$55=7,((G55*F!C35)/1000000),IF($I$54=2,((G55*F!C35)/1000000),0)))))+N("Batteries")+IF($I$56>19,0,IF($I$56=1,((Data!$C$140*G56)/1000000),IF($I$56=14,((Data!$C$140*G56)/1000000),IF($I$56=7,((Data!$C$140*G56)/1000000),IF($I$56=2,((Data!$C$140*G56)/1000000),0))))) -> 0 | M21: =((F!$C$35*$M$55)+($M$56*Data!$C$140)+($D$55*Data!$DM$177*365*Data!$CT$181)+($D$56*Data!$DG$181*365*Data!$CT$181))/1000000 -> 31.38695366 | N21: =IF($I$56>19,0,IF($I$56=1,$N$7,IF($I$56=14,$N$7,IF($I$56=7,$N$7,IF($I$56=2,$N$7,0))))) -> 0 | O21: =((F!$G$44*$M$56)+($D$56*Data!$E$189*365))/1000000 -> 5.103363735
A22: 16 | B22: =IF($I$53>19,0,IF($I$53=1,$B$7,IF($I$53=15,$B$7,IF($I$53=5,$B$7,IF($I$53=3,$B$7,0))))) -> 0 | C22: =(('B2'!$C$32*$M$53)+($D$53*'C '!$G$16*365))/1000000 -> 12.0154016 | D22: =IF($I$53>19,0,IF($I$53=1,$B$7,IF($I$53=15,$B$7,IF($I$53=5,$B$7,IF($I$53=3,$B$7,0))))) -> 0 | E22: =(('B2'!$C$32*$M$53)+($D$53*'C '!$G$17*365))/1000000 -> 12.54984925 | F22: =IF($I$53>19,0,IF($I$53=1,((('B2'!$C$32)*$G$53)/1000000),IF($I$53=15,((('B2'!$C$32)*$G$53)/1000000),IF($I$53=5,((('B2'!$C$32)*$G$53)/1000000),IF($I$53=3,((('B2'!$C$32)*$G$53)/1000000),0)))))+N("Batteries")+IF($I$56>19,0,IF($I$56=1,((Data!C102*G56)/1000000),IF($I$56=15,((Data!C102*G56)/1000000),IF($I$56=5,((Data!C102*G56)/1000000),IF($I$56=3,((Data!C102*G56)/1000000),0))))) -> 0 | G22: =(('B2'!$C$32*$M$53)+($M$56*Data!$C$102)+($D$53*(Data!$DM$110*365*Data!$CT$181))+($D$56*Data!$DG$114*365))/1000000 -> 16.57862617 | H22: =IF($I$54>19,0,IF($I$54=1,$H$7,IF($I$54=15,$H$7,IF($I$54=5,$H$7,IF($I$54=3,$H$7,0))))) -> 0 | I22: =(('B2'!$C$32*$M$54)+($D$54*'C '!$G$19*365))/1000000 -> 10.19025315 | J22: =IF($I$54>19,0,IF($I$54=1,((('B2'!$C$32)*$G$54)/1000000),IF($I$54=15,((('B2'!$C$32)*$G$54)/1000000),IF($I$54=5,((('B2'!$C$32)*$G$54)/1000000),IF($I$54=3,((('B2'!$C$32)*$G$54)/1000000),0)))))+N("Batteries")+IF($I$56>19,0,IF($I$56=1,((Data!C140*G56)/1000000),IF($I$56=15,((Data!C140*G56)/1000000),IF($I$56=5,((Data!C140*G56)/1000000),IF($I$56=3,((Data!C140*G56)/1000000),0))))) -> 0 | K22: =(('B2'!$C$32*$M$54)+($M$56*Data!$C$140)+($D$54*(Data!$DM$148*365*Data!$CT$152))+($D$56*Data!$DG$152*365*Data!$CT$152))/1000000 -> 13.89125199 | L22: =IF($I$55>19,0,IF($I$55=1,((G55*F!C35)/1000000),IF($I$55=15,((G55*F!C35)/1000000),IF($I$55=5,((G55*F!C35)/1000000),IF($I$55=3,((G55*F!C35)/1000000),0)))))+N("Batteries")+IF($I$56>19,0,IF($I$56=1,((Data!$C$140*G56)/1000000),IF($I$56=15,((Data!$C$140*G56)/1000000),IF($I$56=5,((Data!$C$140*G56)/1000000),IF($I$56=3,((Data!$C$140*G56)/1000000),0))))) -> 22.70565302 | M22: =((F!$C$35*$M$55)+($M$56*Data!$C$140)+($D$55*Data!$DM$177*365*Data!$CT$181)+($D$56*Data!$DG$181*365*Data!$CT$181))/1000000 -> 31.38695366 | N22: =IF($I$56>19,0,IF($I$56=1,$N$7,IF($I$56=15,$N$7,IF($I$56=5,$N$7,IF($I$56=3,$N$7,0))))) -> 0 | O22: =((F!$G$44*$M$56)+($D$56*Data!$E$189*365))/1000000 -> 5.103363735
A23: 17 | B23: =IF($I$53>19,0,IF($I$53=1,$B$7,IF($I$53=16,$B$7,IF($I$53=4,$B$7,IF($I$53=2,$B$7,IF($I$53=8,$B$7,0)))))) -> 0 | C23: =(('B2'!$C$32*$M$53)+($D$53*'C '!$G$16*365))/1000000 -> 12.0154016 | D23: =IF($I$53>19,0,IF($I$53=1,$B$7,IF($I$53=16,$B$7,IF($I$53=4,$B$7,IF($I$53=2,$B$7,IF($I$53=8,$B$7,0)))))) -> 0 | E23: =(('B2'!$C$32*$M$53)+($D$53*'C '!$G$17*365))/1000000 -> 12.54984925 | F23: =IF($I$53>19,0,IF($I$53=1,((('B2'!$C$32)*$G$53)/1000000),IF($I$53=16,((('B2'!$C$32)*$G$53)/1000000),IF($I$53=4,((('B2'!$C$32)*$G$53)/1000000),IF($I$53=2,((('B2'!$C$32)*$G$53)/1000000),IF($I$53=8,((('B2'!$C$32)*$G$53)/1000000),0))))))+N("Batteries")+IF($I$56>19,0,IF($I$56=1,((Data!C102*G56)/1000000),IF($I$56=16,((Data!C102*G56)/1000000),IF($I$56=4,((Data!C102*G56)/1000000),IF($I$56=2,((Data!C102*G56)/1000000),IF($I$56=8,((Data!C102*G56)/1000000),0)))))) -> 0 | G23: =(('B2'!$C$32*$M$53)+($M$56*Data!$C$102)+($D$53*(Data!$DM$110*365*Data!$CT$181))+($D$56*Data!$DG$114*365))/1000000 -> 16.57862617 | H23: =IF($I$54>19,0,IF($I$54=1,$H$7,IF($I$54=16,$H$7,IF($I$54=4,$H$7,IF($I$54=2,$H$7,IF($I$54=8,$H$7,0)))))) -> 0 | I23: =(('B2'!$C$32*$M$54)+($D$54*'C '!$G$19*365))/1000000 -> 10.19025315 | J23: =IF($I$54>19,0,IF($I$54=1,((('B2'!$C$32)*$G$54)/1000000),IF($I$54=16,((('B2'!$C$32)*$G$54)/1000000),IF($I$54=4,((('B2'!$C$32)*$G$54)/1000000),IF($I$54=2,((('B2'!$C$32)*$G$54)/1000000),IF($I$54=8,((('B2'!$C$32)*$G$54)/1000000),0))))))+N("Batteries")+IF($I$56>19,0,IF($I$56=1,((Data!C140*G56)/1000000),IF($I$56=16,((Data!C140*G56)/1000000),IF($I$56=4,((Data!C140*G56)/1000000),IF($I$56=2,((Data!C140*G56)/1000000),IF($I$56=8,((Data!C140*G56)/1000000),0)))))) -> 0 | K23: =(('B2'!$C$32*$M$54)+($M$56*Data!$C$140)+($D$54*(Data!$DM$148*365*Data!$CT$152))+($D$56*Data!$DG$152*365*Data!$CT$152))/1000000 -> 13.89125199 | L23: =IF($I$55>19,0,IF($I$55=1,((G55*F!C35)/1000000),IF($I$55=16,((G55*F!C35)/1000000),IF($I$55=4,((G55*F!C35)/1000000),IF($I$55=2,((G55*F!C35)/1000000),IF($I$55=8,((G55*F!C35)/1000000),0))))))+N("Batteries")+IF($I$56>19,0,IF($I$56=1,((Data!$C$140*G56)/1000000),IF($I$56=16,((Data!$C$140*G56)/1000000),IF($I$56=4,((Data!$C$140*G56)/1000000),IF($I$56=2,((Data!$C$140*G56)/1000000),IF($I$56=8,((Data!$C$140*G56)/1000000),0)))))) -> 0 | M23: =((F!$C$35*$M$55)+($M$56*Data!$C$140)+($D$55*Data!$DM$177*365*Data!$CT$181)+($D$56*Data!$DG$181*365*Data!$CT$181))/1000000 -> 31.38695366 | N23: =IF($I$56>19,0,IF($I$56=1,$N$7,IF($I$56=16,$N$7,IF($I$56=4,$N$7,IF($I$56=2,$N$7,IF($I$56=8,$N$7,0)))))) -> 0 | O23: =((F!$G$44*$M$56)+($D$56*Data!$E$189*365))/1000000 -> 5.103363735
A24: 18 | B24: =IF($I$53>19,0,IF($I$53=1,$B$7,IF($I$53=17,$B$7,0))) -> 0 | C24: =(('B2'!$C$32*$M$53)+($D$53*'C '!$G$16*365))/1000000 -> 12.0154016 | D24: =IF($I$53>19,0,IF($I$53=1,$B$7,IF($I$53=17,$B$7,0))) -> 0 | E24: =(('B2'!$C$32*$M$53)+($D$53*'C '!$G$17*365))/1000000 -> 12.54984925 | F24: =IF($I$53>19,0,IF($I$53=1,((('B2'!$C$32)*$G$53)/1000000),IF($I$53=17,((('B2'!$C$32)*$G$53)/1000000),0)))+N("Batteries")+IF($I$56>19,0,IF($I$56=1,((Data!C102*G56)/1000000),IF($I$56=17,((Data!C102*G56)/1000000),0))) -> 0 | G24: =(('B2'!$C$32*$M$53)+($M$56*Data!$C$102)+($D$53*(Data!$DM$110*365*Data!$CT$181))+($D$56*Data!$DG$114*365))/1000000 -> 16.57862617 | H24: =IF($I$54>19,0,IF($I$54=1,$H$7,IF($I$54=17,$H$7,0))) -> 0 | I24: =(('B2'!$C$32*$M$54)+($D$54*'C '!$G$19*365))/1000000 -> 10.19025315 | J24: =IF($I$54>19,0,IF($I$54=1,((('B2'!$C$32)*$G$54)/1000000),IF($I$54=17,((('B2'!$C$32)*$G$54)/1000000),0)))+N("Batteries")+IF($I$56>19,0,IF($I$56=1,((Data!C140*G56)/1000000),IF($I$56=17,((Data!C140*G56)/1000000),0))) -> 0 | K24: =(('B2'!$C$32*$M$54)+($M$56*Data!$C$140)+($D$54*(Data!$DM$148*365*Data!$CT$152))+($D$56*Data!$DG$152*365*Data!$CT$152))/1000000 -> 13.89125199 | L24: =IF($I$55>19,0,IF($I$55=1,((G55*F!C35)/1000000),IF($I$55=17,((G55*F!C35)/1000000),0)))+N("Batteries")+IF($I$56>19,0,IF($I$56=1,((Data!$C$140*G56)/1000000),IF($I$56=17,((Data!$C$140*G56)/1000000),0))) -> 0 | M24: =((F!$C$35*$M$55)+($M$56*Data!$C$140)+($D$55*Data!$DM$177*365*Data!$CT$181)+($D$56*Data!$DG$181*365*Data!$CT$181))/1000000 -> 31.38695366 | N24: =IF($I$56>19,0,IF($I$56=1,$N$7,IF($I$56=17,$N$7,0))) -> 0 | O24: =((F!$G$44*$M$56)+($D$56*Data!$E$189*365))/1000000 -> 5.103363735
A25: 19 | B25: =IF($I$53>19,0,IF($I$53=1,$B$7,IF($I$53=18,$B$7,IF($I$53=9,$B$7,IF($I$53=6,$B$7,IF($I$53=3,$B$7,IF($I$53=2,$B$7,0))))))) -> 0 | C25: =(('B2'!$C$32*$M$53)+($D$53*'C '!$G$16*365))/1000000 -> 12.0154016 | D25: =IF($I$53>19,0,IF($I$53=1,$B$7,IF($I$53=18,$B$7,IF($I$53=9,$B$7,IF($I$53=6,$B$7,IF($I$53=3,$B$7,IF($I$53=2,$B$7,0))))))) -> 0 | E25: =(('B2'!$C$32*$M$53)+($D$53*'C '!$G$17*365))/1000000 -> 12.54984925 | F25: =IF($I$53>19,0,IF($I$53=1,((('B2'!$C$32)*$G$53)/1000000),IF($I$53=18,((('B2'!$C$32)*$G$53)/1000000),IF($I$53=9,((('B2'!$C$32)*$G$53)/1000000),IF($I$53=6,((('B2'!$C$32)*$G$53)/1000000),IF($I$53=3,((('B2'!$C$32)*$G$53)/1000000),IF($I$53=2,((('B2'!$C$32)*$G$53)/1000000),0)))))))+N("Batteries")+IF($I$56>19,0,IF($I$56=1,((Data!C102*G56)/1000000),IF($I$56=18,((Data!C102*G56)/1000000),IF($I$56=9,((Data!C102*G56)/1000000),IF($I$56=6,((Data!C102*G56)/1000000),IF($I$56=3,((Data!C102*G56)/1000000),IF($I$56=2,((Data!C102*G56)/1000000),0))))))) -> 0 | G25: =(('B2'!$C$32*$M$53)+($M$56*Data!$C$102)+($D$53*(Data!$DM$110*365*Data!$CT$181))+($D$56*Data!$DG$114*365))/1000000 -> 16.57862617 | H25: =IF($I$54>19,0,IF($I$54=1,$H$7,IF($I$54=18,$H$7,IF($I$54=9,$H$7,IF($I$54=6,$H$7,IF($I$54=3,$H$7,IF($I$54=2,$H$7,0))))))) -> 0 | I25: =(('B2'!$C$32*$M$54)+($D$54*'C '!$G$19*365))/1000000 -> 10.19025315 | J25: =IF($I$54>19,0,IF($I$54=1,((('B2'!$C$32)*$G$54)/1000000),IF($I$54=18,((('B2'!$C$32)*$G$54)/1000000),IF($I$54=9,((('B2'!$C$32)*$G$54)/1000000),IF($I$54=6,((('B2'!$C$32)*$G$54)/1000000),IF($I$54=3,((('B2'!$C$32)*$G$54)/1000000),IF($I$54=2,((('B2'!$C$32)*$G$54)/1000000),0)))))))+N("Batteries")+IF($I$56>19,0,IF($I$56=1,((Data!C140*G56)/1000000),IF($I$56=18,((Data!C140*G56)/1000000),IF($I$56=9,((Data!C140*G56)/1000000),IF($I$56=6,((Data!C140*G56)/1000000),IF($I$56=3,((Data!C140*G56)/1000000),IF($I$56=2,((Data!C140*G56)/1000000),0))))))) -> 0 | K25: =(('B2'!$C$32*$M$54)+($M$56*Data!$C$140)+($D$54*(Data!$DM$148*365*Data!$CT$152))+($D$56*Data!$DG$152*365*Data!$CT$152))/1000000 -> 13.89125199 | L25: =IF($I$55>19,0,IF($I$55=1,((G55*F!C35)/1000000),IF($I$55=18,((G55*F!C35)/1000000),IF($I$55=9,((G55*F!C35)/1000000),IF($I$55=6,((G55*F!C35)/1000000),IF($I$55=3,((G55*F!C35)/1000000),IF($I$55=2,((G55*F!C35)/1000000),0)))))))+N("Batteries")+IF($I$56>19,0,IF($I$56=1,((Data!$C$140*G56)/1000000),IF($I$56=18,((Data!$C$140*G56)/1000000),IF($I$56=9,((Data!$C$140*G56)/1000000),IF($I$56=6,((Data!$C$140*G56)/1000000),IF($I$56=3,((Data!$C$140*G56)/1000000),IF($I$56=2,((Data!$C$140*G56)/1000000),0))))))) -> 22.70565302 | M25: =((F!$C$35*$M$55)+($M$56*Data!$C$140)+($D$55*Data!$DM$177*365*Data!$CT$181)+($D$56*Data!$DG$181*365*Data!$CT$181))/1000000 -> 31.38695366 | N25: =IF($I$56>19,0,IF($I$56=1,$N$7,IF($I$56=18,$N$7,IF($I$56=9,$N$7,IF($I$56=6,$N$7,IF($I$56=3,$N$7,IF($I$56=2,$N$7,0))))))) -> 0 | O25: =((F!$G$44*$M$56)+($D$56*Data!$E$189*365))/1000000 -> 5.103363735
A26: 20 | B26: =IF($I$53>19,0,IF($I$53=1,$B$7,IF($I$53=19,$B$7,0))) -> 0 | C26: =(('B2'!$C$32*$M$53)+($D$53*'C '!$G$16*365))/1000000 -> 12.0154016 | D26: =IF($I$53>19,0,IF($I$53=1,$B$7,IF($I$53=19,$B$7,0))) -> 0 | E26: =(('B2'!$C$32*$M$53)+($D$53*'C '!$G$17*365))/1000000 -> 12.54984925 | F26: =IF($I$53>19,0,IF($I$53=1,((('B2'!$C$32)*$G$53)/1000000),IF($I$53=19,((('B2'!$C$32)*$G$53)/1000000),0)))+N("Batteries")+IF($I$56>19,0,IF($I$56=1,((Data!C102*G56)/1000000),IF($I$56=19,((Data!C102*G56)/1000000),0))) -> 0 | G26: =(('B2'!$C$32*$M$53)+($M$56*Data!$C$102)+($D$53*(Data!$DM$110*365*Data!$CT$181))+($D$56*Data!$DG$114*365))/1000000 -> 16.57862617 | H26: =IF($I$54>19,0,IF($I$54=1,$H$7,IF($I$54=19,$H$7,0))) -> 0 | I26: =(('B2'!$C$32*$M$54)+($D$54*'C '!$G$19*365))/1000000 -> 10.19025315 | J26: =IF($I$54>19,0,IF($I$54=1,((('B2'!$C$32)*$G$54)/1000000),IF($I$54=19,((('B2'!$C$32)*$G$54)/1000000),0)))+N("Batteries")+IF($I$56>19,0,IF($I$56=1,((Data!C140*G56)/1000000),IF($I$56=19,((Data!C140*G56)/1000000),0))) -> 0 | K26: =(('B2'!$C$32*$M$54)+($M$56*Data!$C$140)+($D$54*(Data!$DM$148*365*Data!$CT$152))+($D$56*Data!$DG$152*365*Data!$CT$152))/1000000 -> 13.89125199 | L26: =IF($I$55>19,0,IF($I$55=1,((G55*F!C35)/1000000),IF($I$55=19,((G55*F!C35)/1000000),0)))+N("Batteries")+IF($I$56>19,0,IF($I$56=1,((Data!$C$140*G56)/1000000),IF($I$56=19,((Data!$C$140*G56)/1000000),0))) -> 0 | M26: =((F!$C$35*$M$55)+($M$56*Data!$C$140)+($D$55*Data!$DM$177*365*Data!$CT$181)+($D$56*Data!$DG$181*365*Data!$CT$181))/1000000 -> 31.38695366 | N26: =IF($I$56>19,0,IF($I$56=1,$N$7,IF($I$56=19,$N$7,0))) -> 0 | O26: =((F!$G$44*$M$56)+($D$56*Data!$E$189*365))/1000000 -> 5.103363735
A28: Costs | C28: =Data!E447 -> 135.1999547 | E28: =Data!G447 -> 140.8619006 | G28: =Data!I447 -> 189.3154285 | I28: =Data!K447 -> 134.31775 | K28: =Data!M447 -> 183.1471974 | M28: =Data!O447 -> 429.7509911 | O28: =Data!Q447 -> 79.90338803
B52: Average price | D52: NOK | G52: NOK | I52: MNOK | M52: NOK
A53: MGO | B53: Price per kWh | D53: 0.58 | E53: Price per kW | G53: 3000 | H53: Lifetime | I53: 20 | J53: Maintenance per year per kW | M53: 0
A54: LNG | B54: Price per kWh | D54: 0.58 | E54: Price per kW | G54: 10000 | H54: Lifetime | I54: 20 | J54: Maintenance per year per kW | M54: 0
A55: Hydrogen | B55: Price per kWh | D55: 2.28 | E55: Price per kW | G55: 13000 | H55: Lifetime | I55: =F!C37 -> 3 | J55: Maintenance per year per kW | M55: 0
A56: Batteries | B56: Price per kWh | D56: 0.57 | E56: Price per kWh | G56: 5460 | H56: Lifetime | I56: 10 | J56: Maintenance per year per kWh | M56: 0
B59: Interest | C59: 0.07

Sheet Data
A2: Indicator | B2: Persons | C2: kW @ 12 knot | D2: Hotell, kW | E2: Loa | F2: Lpp | G2: LWL | H2: Breadth | I2: Draft | J2: Ballast | K2: Deadweight | L2: Lightweight | M2: Harbour | N2: Entering harbour | O2: Leaving Harbour | P2: Acceleration | Q2: Passive retardation | R2: Active retardation | S2: Loading | T2: Column1 | U2: Column4 | V2: Column2 | W2: Column5 | X2: Column22 | Y2: Column23 | Z2: Column24 | AA2: Column25 | AB2: Column26 | AC2: Column27 | AD2: Column28 | AE2: Column29 | AF2: Column30 | AG2: Column31 | AH2: Column32 | AI2: Column33
A3: 1 | B3: =IF($A$3=1,B4,IF($A$3=2,B5,IF($A$3=3,B6,IF($A$3=4,B7,"")))) -> 120 | C3: =IF($A$3=1,C4,IF($A$3=2,C5,IF($A$3=3,C6,IF($A$3=4,C7,"")))) -> 700 | D3: =IF($A$3=1,D4,IF($A$3=2,D5,IF($A$3=3,D6,IF($A$3=4,D7,"")))) -> 60 | E3: 125 | F3: na | G3: na | H3: 20 | I3: 0 | J3: na | K3: na | L3: na | M3: 0 | N3: 350 | O3: 250 | P3: 700 | Q3: 55 | R3: 200 | S3: 0 | T3: 0 | U3: 0 | V3: 0 | W3: 0 | X3: 0 | Y3: 0 | Z3: 0 | AA3: 0 | AB3: 0 | AC3: 0 | AD3: 0 | AE3: 0 | AF3: 0 | AG3: 0 | AH3: 0 | AI3: 0
B4: 120 | C4: 700 | D4: 60 | E4: 125 | F4: na | G4: na | H4: 20 | J4: na | K4: na | L4: na | M4: 0 | N4: 350 | O4: 250 | P4: 700 | Q4: 55 | R4: 200 | S4: 0
B5: 70 | C5: 684 | D5: 60 | I5: ='B2'!H12 -> 700 | M5: 0 | N5: 350 | O5: 250 | P5: 700 | Q5: 55 | R5: 200 | S5: 0
B6: 50 | C6: 602 | D6: 60 | I6: ='B2'!H13 -> 0 | M6: 0 | N6: 350 | O6: 250 | P6: 700 | Q6: 55 | R6: 200 | S6: 0
B7: 40 | C7: 584 | D7: 60 | I7: ='B2'!H14 -> 0 | M7: 0 | N7: 350 | O7: 250 | P7: 700 | Q7: 55 | R7: 200 | S7: 0
B8: 30 | C8: 510 | D8: 60 | I8: ='B2'!H15 -> 0 | M8: 0 | N8: 350 | O8: 250 | P8: 700 | Q8: 55 | R8: 200 | S8: 0
B9: 20 | C9: 504 | D9: 60 | I9: ='B2'!H16 -> 0 | M9: 0
J10: Diesel Var. | K10: Diesel const | L10: Diesel-Battery | N10: LNG Const | P10: LNG-Battery | R10: Batteries | T10: Hydrogen
H11: Generator | J11: =IF(F!C6=2,"1",1-'B2'!$B$36) -> 1 | K11: =IF(F!E6=2,"1",1-'B2'!$B$36) -> 1 | L11: =IF(F!G6=2,"1",1-'B2'!$B$36) -> 0.95 | N11: =IF(F!I6=2,"1",1-'B2'!$B$36) -> 0.95 | P11: =IF(F!K6=2,"1",1-'B2'!$B$36) -> 0.95 | R11: =IF(F!L6=2,"1",1-'B2'!$B$36) -> 1 | T11: =IF(F!M6=2,"1",1-'B2'!$B$36) -> 1
H12: Drives/Converter | J12: =IF(F!C7=2,"1",1-'B2'!$D$36) -> 1 | K12: =IF(F!E7=2,"1",1-'B2'!$D$36) -> 1 | L12: =IF(F!G7=2,"1",1-'B2'!$D$36) -> 0.95 | N12: =IF(F!I7=2,"1",1-'B2'!$D$36) -> 0.95 | P12: =IF(F!K7=2,"1",1-'B2'!$D$36) -> 0.95 | R12: =IF(F!L7=2,"1",1-'B2'!$D$36) -> 0.95 | T12: =IF(F!M7=2,"1",1-'B2'!$D$36) -> 0.95
B13: Manual | H13: Cabling | J13: =IF(F!C8=2,"1",1-'B2'!$L$36) -> 1 | K13: =IF(F!E8=2,"1",1-'B2'!$L$36) -> 1 | L13: =IF(F!G8=2,"1",1-'B2'!$L$36) -> 0.97 | N13: =IF(F!I8=2,"1",1-'B2'!$L$36) -> 0.97 | P13: =IF(F!K8=2,"1",1-'B2'!$L$36) -> 0.97 | R13: =IF(F!L8=2,"1",1-'B2'!$L$36) -> 0.97 | T13: =IF(F!M8=2,"1",1-'B2'!$L$36) -> 0.97
B14: Automatic | F14: Ports | H14: Switchboard | J14: =IF(F!C9=2,"1",1-'B2'!$H$36) -> 1 | K14: =IF(F!E9=2,"1",1-'B2'!$H$36) -> 1 | L14: =IF(F!G9=2,"1",1-'B2'!$H$36) -> 0.97 | N14: =IF(F!I9=2,"1",1-'B2'!$H$36) -> 0.97 | P14: =IF(F!K9=2,"1",1-'B2'!$H$36) -> 0.97 | R14: =IF(F!L9=2,"1",1-'B2'!$H$36) -> 0.97 | T14: =IF(F!M9=2,"1",1-'B2'!$H$36) -> 0.97
F15: 2 | H15: El-motors | J15: =IF(F!C10=2,"1",1-'B2'!$J$36) -> 1 | K15: =IF(F!E10=2,"1",1-'B2'!$J$36) -> 1 | L15: =IF(F!G10=2,"1",1-'B2'!$J$36) -> 0.941 | N15: =IF(F!I10=2,"1",1-'B2'!$J$36) -> 0.941 | P15: =IF(F!K10=2,"1",1-'B2'!$J$36) -> 0.941 | R15: =IF(F!L10=2,"1",1-'B2'!$J$36) -> 0.941 | T15: =IF(F!M10=2,"1",1-'B2'!$J$36) -> 0.941
F16: 3 | H16: DC/DC converters | J16: =IF(F!C11=2,"1",1-'B2'!$F$36) -> 1 | K16: =IF(F!E11=2,"1",1-'B2'!$F$36) -> 1 | L16: =IF(F!G11=2,"1",1-'B2'!$F$36) -> 1 | N16: =IF(F!I11=2,"1",1-'B2'!$F$36) -> 1 | P16: =IF(F!K11=2,"1",1-'B2'!$F$36) -> 1 | R16: =IF(F!L11=2,"1",1-'B2'!$F$36) -> 1 | T16: =IF(F!M11=2,"1",1-'B2'!$F$36) -> 0.95
B17: Sea margin level | F17: 4 | H17: Gear | J17: =IF(F!C12=2,"1",1-'B2'!$K$36) -> 0.95 | K17: =IF(F!E12=2,"1",1-'B2'!$K$36) -> 0.95 | L17: =IF(F!G12=2,"1",1-'B2'!$K$36) -> 0.95 | N17: =IF(F!I12=2,"1",1-'B2'!$K$36) -> 1 | P17: =IF(F!K12=2,"1",1-'B2'!$K$36) -> 1 | R17: =IF(F!L12=2,"1",1-'B2'!$K$36) -> 0.95 | T17: =IF(F!M12=2,"1",1-'B2'!$K$36) -> 0.95
A18: Indicator | B18: 1 | F18: 5
A19: 1 | B19: 2 | I19: Overall | J19: =J11*J12*J13*J14*J15*J16*J17 -> 0.95 | K19: =K11*K12*K13*K14*K15*K16*K17 -> 0.95 | L19: =L11*L12*L13*L14*L15*L16*L17 -> 0.7591085934 | N19: =N11*N12*N13*N14*N15*N16*N17 -> 0.7990616772 | P19: 0.7990616772 | R19: 0.7990616772 | T19: 0.7591085934
A20: MAX | B20: 3
A21: 3 | B21: 4
J22: Diesel Var. | K22: Diesel const | L22: Diesel-Battery | N22: LNG Const | P22: LNG-Battery | R22: Batteries | T22: Hydrogen
B23: Admiralty coefficient calculations | I23: Generator | J23: =IF(F!C18=2,"1",1-'B2'!$B$36) -> 0.95 | K23: =IF(F!E18=2,"1",1-'B2'!$B$36) -> 0.95 | L23: =IF(F!G18=2,"1",1-'B2'!$B$36) -> 0.95 | N23: =IF(F!I18=2,"1",1-'B2'!$B$36) -> 0.95 | P23: =IF(F!K18=2,"1",1-'B2'!$B$36) -> 0.95 | R23: =IF(F!L18=2,"1",1-'B2'!$B$36) -> 1 | T23: =IF(F!M18=2,"1",1-'B2'!$B$36) -> 1
B24: Speed | C24: Power | D24: test | I24: Drives/converter | J24: =IF(F!C19=2,"1",1-'B2'!$D$36) -> 0.95 | K24: =IF(F!E19=2,"1",1-'B2'!$D$36) -> 0.95 | L24: =IF(F!G19=2,"1",1-'B2'!$D$36) -> 0.95 | N24: =IF(F!I19=2,"1",1-'B2'!$D$36) -> 0.95 | P24: =IF(F!K19=2,"1",1-'B2'!$D$36) -> 0.95 | R24: =IF(F!L19=2,"1",1-'B2'!$D$36) -> 0.95 | T24: =IF(F!M19=2,"1",1-'B2'!$D$36) -> 0.95
B25: 1 | C25: =((B25^3)*'B2'!$C$33)/('B2'!$C$28^3) -> 0.4050925926 | D25: =$H$31+($G$31*B25)+($F$31*(B25^2))+($E$31*(B25^3)) -> 0.4050925926 | I25: Cabling | J25: =IF(F!C20=2,"1",1-'B2'!$L$36) -> 0.97 | K25: =IF(F!E20=2,"1",1-'B2'!$L$36) -> 0.97 | L25: =IF(F!G20=2,"1",1-'B2'!$L$36) -> 0.97 | N25: =IF(F!I20=2,"1",1-'B2'!$L$36) -> 0.97 | P25: =IF(F!K20=2,"1",1-'B2'!$L$36) -> 0.97 | R25: =IF(F!L20=2,"1",1-'B2'!$L$36) -> 0.97 | T25: =IF(F!M20=2,"1",1-'B2'!$L$36) -> 0.97
B26: 2 | C26: =((B26^3)*'B2'!$C$33)/('B2'!$C$28^3) -> 3.240740741 | D26: =$H$31+($G$31*B26)+($F$31*(B26^2))+($E$31*(B26^3)) -> 3.240740741 | I26: Switchboard | J26: =IF(F!C21=2,"1",1-'B2'!$H$36) -> 0.97 | K26: =IF(F!E21=2,"1",1-'B2'!$H$36) -> 0.97 | L26: =IF(F!G21=2,"1",1-'B2'!$H$36) -> 0.97 | N26: =IF(F!I21=2,"1",1-'B2'!$H$36) -> 0.97 | P26: =IF(F!K21=2,"1",1-'B2'!$H$36) -> 0.97 | R26: =IF(F!L21=2,"1",1-'B2'!$H$36) -> 0.97 | T26: =IF(F!M21=2,"1",1-'B2'!$H$36) -> 0.97
B27: 3 | C27: =((B27^3)*'B2'!$C$33)/('B2'!$C$28^3) -> 10.9375 | D27: =$H$31+($G$31*B27)+($F$31*(B27^2))+($E$31*(B27^3)) -> 10.9375 | I27: DC/DC Converters | J27: =IF(F!C22=2,"1",1-'B2'!$F$36) -> 1 | K27: =IF(F!E22=2,"1",1-'B2'!$F$36) -> 1 | L27: =IF(F!G22=2,"1",1-'B2'!$F$36) -> 0.95 | N27: =IF(F!I22=2,"1",1-'B2'!$F$36) -> 0.95 | P27: =IF(F!K22=2,"1",1-'B2'!$F$36) -> 0.95 | R27: =IF(F!L22=2,"1",1-'B2'!$F$36) -> 0.95 | T27: =IF(F!M22=2,"1",1-'B2'!$F$36) -> 0.95
B28: 4 | C28: =((B28^3)*'B2'!$C$33)/('B2'!$C$28^3) -> 25.92592593 | D28: 25.92592593 | I28: ='B2'!M35 -> Open | J28: =IF(F!C23=2,"1",1-'B2'!$M$36) -> 1 | K28: =IF(F!E23=2,"1",1-'B2'!$M$36) -> 1 | L28: =IF(F!G23=2,"1",1-'B2'!$M$36) -> 1 | N28: =IF(F!I23=2,"1",1-'B2'!$M$36) -> 1 | P28: =IF(F!K23=2,"1",1-'B2'!$M$36) -> 1 | R28: =IF(F!L23=2,"1",1-'B2'!$M$36) -> 1 | T28: =IF(F!M23=2,"1",1-'B2'!$M$36) -> 1
B29: 5 | C29: =((B29^3)*'B2'!$C$33)/('B2'!$C$28^3) -> 50.63657407 | D29: 50.63657407 | E29: LINEST FUNCTION
B30: 6 | C30: =((B30^3)*'B2'!$C$33)/('B2'!$C$28^3) -> 87.5 | D30: 87.5 | E30: x3 | F30: x2 | G30: x | H30: const | J30: =J23*J24*J25*J26*J28*J27 -> 0.84916225 | K30: =K23*K24*K25*K26*K28*K27 -> 0.84916225 | L30: 0.8067041375 | N30: 0.8067041375 | P30: 0.8067041375 | R30: 0.84916225 | T30: 0.84916225
B31: 7 | C31: =((B31^3)*'B2'!$C$33)/('B2'!$C$28^3) -> 138.9467593 | D31: 138.9467593 | E31: =LINEST(C25:C44,B25:B44^{1,2,3},TRUE,FALSE) -> 0.4050925926 | F31: 1.512763126e-14 | G31: -1.100687657e-13 | H31: 0
B32: 8 | C32: =((B32^3)*'B2'!$C$33)/('B2'!$C$28^3) -> 207.4074074 | D32: 207.4074074
B33: 9 | C33: =((B33^3)*'B2'!$C$33)/('B2'!$C$28^3) -> 295.3125 | D33: 295.3125
B34: 10 | C34: =((B34^3)*'B2'!$C$33)/('B2'!$C$28^3) -> 405.0925926 | D34: 405.0925926 | F34: Max Engine Power Calculations
B35: 11 | C35: =((B35^3)*'B2'!$C$33)/('B2'!$C$28^3) -> 539.1782407 | D35: 539.1782407 | F35: Max speed | G35: ='B2'!L28 -> 16
B36: 12 | C36: =((B36^3)*'B2'!$C$33)/('B2'!$C$28^3) -> 700 | D36: 700 | F36: Max speed power | G36: =$H$31+(G35*G31)+(F31*G35^2)+(E31*G35^3) -> 1659.259259
B37: 13 | C37: =((B37^3)*'B2'!$C$33)/('B2'!$C$28^3) -> 889.9884259 | D37: 889.9884259 | F37: Hotel | G37: ='B2'!K32 -> 60
B38: 14 | C38: =((B38^3)*'B2'!$C$33)/('B2'!$C$28^3) -> 1111.574074 | D38: 1111.574074 | F38: Capability level | G38: =A21 -> 3
B39: 15 | C39: =((B39^3)*'B2'!$C$33)/('B2'!$C$28^3) -> 1367.1875 | D39: 1367.1875 | F39: Margin | G39: =IF(A21=1,'E '!C47,IF(A21=2,'E '!C48,IF(A21=3,'E '!C49,IF(A21=4,'E '!C50,""))))/100 -> 0.7
B40: 16 | C40: =((B40^3)*'B2'!$C$33)/('B2'!$C$28^3) -> 1659.259259 | D40: 1659.259259 | F40: Engine size | G40: =G36+(G36*G39) -> 2820.740741 | H40: kW
B41: 17 | C41: =((B41^3)*'B2'!$C$33)/('B2'!$C$28^3) -> 1990.219907 | D41: 1990.219907
B42: 18 | C42: =((B42^3)*'B2'!$C$33)/('B2'!$C$28^3) -> 2362.5 | D42: 2362.5
B43: 19 | C43: =((B43^3)*'B2'!$C$33)/('B2'!$C$28^3) -> 2778.530093 | D43: 2778.530093
B44: 20 | C44: =((B44^3)*'B2'!$C$33)/('B2'!$C$28^3) -> 3240.740741 | D44: 3240.740741
B48: Indicator | C48: Column1 | D48: Shore Charging [kW] | E48: Time in port [min] | F48: Transit to next port [min] | G48: Distance to next port [nm] | H48: Distance to next port - manouevring | I48: Speed | J48: Propeller power, incl sea margin | K48: Hotel Power | L48: Distance to next port, without manouevring | M48: Shore Connection or not | O48: Operation calculation | P48: In port
B49: =IF(Table3[[#This Row],[Column1]]="",0,1) -> 1 | C49: =IF('B1'!C16="","",'B1'!C16) -> Port 1 | D49: ='B1'!E16 -> 4000 | E49: ='B1'!F16 -> 10 | F49: ='B1'!H16 -> 20 | G49: ='B1'!K16 -> 4 | H49: =IF(Table3[[#This Row],[Distance to next port '[nm']]]-'B2'!$H$28>0,Table3[[#This Row],[Distance to next port '[nm']]]-'B2'!$H$28,0) -> 3.3 | I49: =IFERROR(Table3[[#This Row],[Distance to next port - manouevring]]/(Table3[[#This Row],[Distance to next port, without manouevring]]/60),0) -> 14.73945409 | J49: =$H$31+($G$31*Table3[[#This Row],[Speed]])+($F$31*(Table3[[#This Row],[Speed]]^2))+($E$31*(Table3[[#This Row],[Speed]]^3))/(1-'B2'!$H$18) -> 1365.447143 | K49: =IF('B1'!F16>0,'B2'!$K$32,0) -> 60 | L49: =Table3[[#This Row],[Transit to next port '[min']]]-((D58+E58+F58+G58+H58)/60) -> 13.43333333 | M49: =IF(Table3[[#This Row],[Shore Charging '[kW']]]>0,1,0) -> 1 | O49: =Table3[[#This Row],[Transit to next port '[min']]] -> 20 | P49: =IF(Table3[[#This Row],[Shore Charging '[kW']]]>G37,Table3[[#This Row],[Time in port '[min']]],0) -> 10
B50: =IF(Table3[[#This Row],[Column1]]="",0,1) -> 1 | C50: =IF('B1'!C17="","",'B1'!C17) -> Port 2 | D50: ='B1'!E17 -> 4000 | E50: ='B1'!F17 -> 10 | F50: ='B1'!H17 -> 19 | G50: ='B1'!K17 -> 4 | H50: =IF(Table3[[#This Row],[Distance to next port '[nm']]]-'B2'!$H$28>0,Table3[[#This Row],[Distance to next port '[nm']]]-'B2'!$H$28,0) -> 3.3 | I50: =IFERROR(Table3[[#This Row],[Distance to next port - manouevring]]/(Table3[[#This Row],[Distance to next port, without manouevring]]/60),0) -> 15.92493298 | J50: =$H$31+($G$31*Table3[[#This Row],[Speed]])+($F$31*(Table3[[#This Row],[Speed]]^2))+($E$31*(Table3[[#This Row],[Speed]]^3))/(1-'B2'!$H$18) -> 1722.120498 | K50: =IF('B1'!F17>0,'B2'!$K$32,0) -> 60 | L50: =Table3[[#This Row],[Transit to next port '[min']]]-((D59+E59+F59+G59+H59)/60) -> 12.43333333 | M50: =IF(Table3[[#This Row],[Shore Charging '[kW']]]>0,1,0) -> 1 | O50: =Table3[[#This Row],[Transit to next port '[min']]] -> 19 | P50: =IF(Table3[[#This Row],[Shore Charging '[kW']]]>G38,Table3[[#This Row],[Time in port '[min']]],0) -> 10
B51: =IF(Table3[[#This Row],[Column1]]="",0,1) -> 1 | C51: =IF('B1'!C18="","",'B1'!C18) -> Port 3 | D51: ='B1'!E18 -> 4000 | E51: ='B1'!F18 -> 10 | F51: ='B1'!H18 -> 22 | G51: ='B1'!K18 -> 4 | H51: =IF(Table3[[#This Row],[Distance to next port '[nm']]]-'B2'!$H$28>0,Table3[[#This Row],[Distance to next port '[nm']]]-'B2'!$H$28,0) -> 3.3 | I51: =IFERROR(Table3[[#This Row],[Distance to next port - manouevring]]/(Table3[[#This Row],[Distance to next port, without manouevring]]/60),0) -> 12.82937365 | J51: =$H$31+($G$31*Table3[[#This Row],[Speed]])+($F$31*(Table3[[#This Row],[Speed]]^2))+($E$31*(Table3[[#This Row],[Speed]]^3))/(1-'B2'!$H$18) -> 900.4239922 | K51: =IF('B1'!F18>0,'B2'!$K$32,0) -> 60 | L51: =Table3[[#This Row],[Transit to next port '[min']]]-((D60+E60+F60+G60+H60)/60) -> 15.43333333 | M51: =IF(Table3[[#This Row],[Shore Charging '[kW']]]>0,1,0) -> 1 | O51: =Table3[[#This Row],[Transit to next port '[min']]] -> 22 | P51: =IF(Table3[[#This Row],[Shore Charging '[kW']]]>G39,Table3[[#This Row],[Time in port '[min']]],0) -> 10
B52: =IF(Table3[[#This Row],[Column1]]="",0,1) -> 0 | C52: =IF('B1'!C19="","",'B1'!C19) ->  | D52: ='B1'!E19 -> 0 | E52: ='B1'!F19 -> 0 | F52: ='B1'!H19 -> 0 | G52: ='B1'!K19 -> 0 | H52: =IF(Table3[[#This Row],[Distance to next port '[nm']]]-'B2'!$H$28>0,Table3[[#This Row],[Distance to next port '[nm']]]-'B2'!$H$28,0) -> 0 | I52: =IFERROR(Table3[[#This Row],[Distance to next port - manouevring]]/(Table3[[#This Row],[Distance to next port, without manouevring]]/60),0) -> 0 | J52: =$H$31+($G$31*Table3[[#This Row],[Speed]])+($F$31*(Table3[[#This Row],[Speed]]^2))+($E$31*(Table3[[#This Row],[Speed]]^3))/(1-'B2'!$H$18) -> 0 | K52: =IF('B1'!F19>0,'B2'!$K$32,0) -> 0 | L52: =Table3[[#This Row],[Transit to next port '[min']]]-((D61+E61+F61+G61+H61)/60) -> 0 | M52: =IF(Table3[[#This Row],[Shore Charging '[kW']]]>0,1,0) -> 0 | O52: =Table3[[#This Row],[Transit to next port '[min']]] -> 0 | P52: =IF(Table3[[#This Row],[Shore Charging '[kW']]]>G40,Table3[[#This Row],[Time in port '[min']]],0) -> 0
B53: =IF(Table3[[#This Row],[Column1]]="",0,1) -> 0 | C53: =IF('B1'!C20="","",'B1'!C20) ->  | D53: ='B1'!E20 -> 0 | E53: ='B1'!F20 -> 0 | F53: ='B1'!H20 -> 0 | G53: ='B1'!K20 -> 0 | H53: =IF(Table3[[#This Row],[Distance to next port '[nm']]]-'B2'!$H$28>0,Table3[[#This Row],[Distance to next port '[nm']]]-'B2'!$H$28,0) -> 0 | I53: =IFERROR(Table3[[#This Row],[Distance to next port - manouevring]]/(Table3[[#This Row],[Distance to next port, without manouevring]]/60),0) -> 0 | J53: =$H$31+($G$31*Table3[[#This Row],[Speed]])+($F$31*(Table3[[#This Row],[Speed]]^2))+($E$31*(Table3[[#This Row],[Speed]]^3))/(1-'B2'!$H$18) -> 0 | K53: =IF('B1'!F20>0,'B2'!$K$32,0) -> 0 | L53: =Table3[[#This Row],[Transit to next port '[min']]]-((D62+E62+F62+G62+H62)/60) -> 0 | M53: =IF(Table3[[#This Row],[Shore Charging '[kW']]]>0,1,0) -> 0 | O53: =Table3[[#This Row],[Transit to next port '[min']]] -> 0 | P53: =IF(Table3[[#This Row],[Shore Charging '[kW']]]>G41,Table3[[#This Row],[Time in port '[min']]],0) -> 0
M54: =SUM(Table3[Shore Connection or not]) -> 3
B55: . | C55: Loading | D55: Entering harbour | E55: Leaving harbour | F55: Acceleration | G55: Passive Retardation | H55: Active Retardation | I55: Shore Charging, kWh | J55: Shore charging, hours | O55: SUM | P55: =SUM(O49:P53) -> 91
B56: Operational loads | C56: ='B2'!C12/(1-'B2'!H18) -> 0 | D56: ='B2'!D12/(1-'B2'!H18) -> 368.4210526 | E56: ='B2'!F12/(1-'B2'!H18) -> 263.1578947 | F56: ='B2'!H12/(1-'B2'!H18) -> 736.8421053 | G56: ='B2'!J12/(1-'B2'!H18) -> 57.89473684 | H56: ='B2'!L12/(1-'B2'!H18) -> 210.5263158 | I56: =IF(B67>0,$D$3*(C57/3600),0) ->  | J56: =IF(Table4[[#This Row],[Shore Charging, kWh]]>0,C57/3600,0) ->  | O56: Routes per day | P56: ='B1'!E23 -> 18
B57: Connected to shore | C57: ='B2'!C13 -> yes | D57: no | E57: no | F57: no | G57: no | H57: no | I57: =IF(B68>0,$D$3*(C58/3600),0) -> 10 | J57: =IF(Table4[[#This Row],[Shore Charging, kWh]]>0,C58/3600,0) -> 0.1666666667 | O57: Per day | P57: =P55*P56 -> 1638
B58: Time for port 1 | C58: ='B2'!C22 -> 600 | D58: ='B2'!D22 -> 90 | E58: ='B2'!F22 -> 30 | F58: ='B2'!H22 -> 124 | G58: ='B2'!J22 -> 120 | H58: ='B2'!L22 -> 30 | I58: 10 | J58: =IF(Table4[[#This Row],[Shore Charging, kWh]]>0,C59/3600,0) -> 0.1666666667 | O58: per year | P58: =P57*365 -> 597870
B59: Time for port 2 | C59: ='B2'!C23 -> 600 | D59: ='B2'!D23 -> 90 | E59: ='B2'!F23 -> 30 | F59: ='B2'!H23 -> 124 | G59: ='B2'!J23 -> 120 | H59: ='B2'!L23 -> 30 | I59: 10 | J59: =IF(Table4[[#This Row],[Shore Charging, kWh]]>0,C60/3600,0) -> 0.1666666667 | O59: Hours | P59: =P58/60 -> 9964.5
B60: Time for port 3 | C60: ='B2'!C24 -> 600 | D60: ='B2'!D24 -> 90 | E60: ='B2'!F24 -> 30 | F60: ='B2'!H24 -> 124 | G60: ='B2'!J24 -> 120 | H60: ='B2'!L24 -> 30 | I60: 0 | J60: =IF(Table4[[#This Row],[Shore Charging, kWh]]>0,C61/3600,0) -> 0
B61: Time for port 4 | C61: ='B2'!C25 -> 0 | D61: ='B2'!D25 -> 0 | E61: ='B2'!F25 -> 0 | F61: ='B2'!H25 -> 0 | G61: ='B2'!J25 -> 0 | H61: ='B2'!L25 -> 0 | I61: 0 | J61: =IF(Table4[[#This Row],[Shore Charging, kWh]]>0,C62/3600,0) -> 0
B62: Time for port 5 | C62: ='B2'!C26 -> 0 | D62: ='B2'!D26 -> 0 | E62: ='B2'!F26 -> 0 | F62: ='B2'!H26 -> 0 | G62: ='B2'!J26 -> 0 | H62: ='B2'!L26 -> 0 | I62: 0 | J62: =IF(Table4[[#This Row],[Shore Charging, kWh]]>0,C63/3600,0) -> 0
A65: Results calculations
A66: Diesel variable RPM | AX66: PORT 1 | BG66: PORT 2 | BP66: PORT 3 | BY66: PORT 4 | CH66: PORT 5
B67: Shore charging | C67: Time in port | D67: Transit to next port | E67: Distance to next port | F67: Distance to next port, manouevring | G67: Speed | H67: Propeller power | I67: Hotel power | J67: Propeller incl losses | K67: Hotel incl power | L67: Total Power | M67: Relative Load | N67: Thermal Efficiency | O67: Energy Consumed | P67: Fuel Consumed | Q67: Liters | R67: CO2, kg | S67: Nox, g | T67: CO, g | U67: PM, g | V67: SO, g | W67: Hours | X67: kWh | Y67: Fuel consumed, kg | Z67: Fuel consumed, liters | AA67: CO2, kg | AB67: Nox, g | AC67: CO, g | AD67: PM, g | AE67: SO, g | AG67: PORTS | AI67: Propeller power | AJ67: Incl losses | AK67: Hotel | AL67: Incl losses | AM67: Total Power | AN67: Relative Load | AO67: Thermal Efficiency | AP67: Energy Consumed | AQ67: Fuel Consumed, kg | AR67: Liters | AS67: CO2, kg | AT67: Nox, g | AU67: CO, g | AV67: PM, g | AW67: SO, g | AX67: Hours | AY67: kWh | AZ67: Fuel consumed, kg | BA67: Fuel consumed, liters | BB67: CO2, kg | BC67: Nox, g | BD67: CO, g | BE67: PM, g | BF67: SO, g | BG67: Hours | BH67: kWh | BI67: Fuel consumed, kg | BJ67: Fuel consumed, liters | BK67: CO2, kg | BL67: Nox, g | BM67: CO, g | BN67: PM, g | BO67: SO, g | BP67: Hours | BQ67: kWh | BR67: Fuel consumed, kg | BS67: Fuel consumed, liters | BT67: CO2, kg | BU67: Nox, g | BV67: CO, g | BW67: PM, g | BX67: SO, g | BY67: Hours | BZ67: kWh | CA67: Fuel consumed, kg | CB67: Fuel consumed, liters | CC67: CO2, kg | CD67: Nox, g | CE67: CO, g | CF67: PM, g | CG67: SO, g | CH67: Hours | CI67: kWh | CJ67: Fuel consumed, kg | CK67: Fuel consumed, liters | CL67: CO2, kg | CM67: Nox, g | CN67: CO, g | CO67: PM, g | CP67: SO, g
A68: =C49 -> Port 1 | B68: =D49 -> 4000 | C68: 10 | D68: =L49 -> 13.43333333 | E68: 4 | F68: 3.3 | G68: =I49 -> 14.73945409 | H68: 1365.447143 | I68: =K49 -> 60 | J68: =H68/$J$19 -> 1437.312782 | K68: =I68/$J$30 -> 70.65787486 | L68: =J68+K68 -> 1507.970657 | M68: =IFERROR(L68/'B2'!$C$32,0) -> 0.534600942 | N68: =$C$75+($D$75*M68)+($E$75*(M68^2))+($F$75*(M68^3))+($G$75*(M68^4))+($H$75*(M68^5))+($I$75*(M68^6)) -> 0.3675751433 | O68: =L68/N68 -> 4102.482675 | P68: =O68/$L$75 -> 342.7303822 | Q68: =P68/0.855 -> 400.8542482 | R68: =P68*'B2'!$E$40 -> 1086.455312 | S68: =$L68*'B2'!$E$40 -> 4780.266983 | T68: =$L68*'B2'!$I$40 -> 7539.853285 | U68: =$L68*'B2'!$K$40 -> 753.9853285 | V68: =$L68*'B2'!$M$40 -> 1507.970657 | W68: =L49/60 -> 0.2238888889 | X68: =$W68*O68 -> 918.5002878 | Y68: =$W68*P68 -> 76.73352446 | Z68: 89.74681224 | AA68: 243.2452726 | AB68: 1070.248663 | AC68: 1688.089374 | AD68: 168.8089374 | AE68: 337.6178749 | AH68: Loading | AI68: =$C$56 -> 0 | AJ68: =AI68/$J$19 -> 0 | AK68: =IF(B68>'B2'!$K$32,0,'B2'!$K$32) -> 0 | AL68: =AK68/$J$30 -> 0 | AM68: =AJ68+AL68 -> 0 | AN68: =AM68/'B2'!$C$32 -> 0 | AO68: =$C$75+($D$75*AN68)+($E$75*(AN68^2))+($F$75*(AN68^3))+($G$75*(AN68^4))+($H$75*(AN68^5))+($I$75*(AN68^6)) -> 0.3099 | AP68: =AM68/AO68 -> 0 | AQ68: =AP68/$L$75 -> 0 | AR68: =AQ68/0.855 -> 0 | AS68: =AQ68*'B2'!$E$40 -> 0 | AT68: =AM68*'B2'!$G$40 -> 0 | AU68: =AM68*'B2'!$I$40 -> 0 | AV68: =AM68*'B2'!$K$40 -> 0 | AW68: =AM68*'B2'!$M$40 -> 0 | AX68: =IF('B1'!$E$16>0,0,C58/3600) -> 0 | AY68: =AX68*$AP68 -> 0 | AZ68: =AX68*$AQ68 -> 0 | BA68: =AX68*$AR68 -> 0 | BB68: =AX68*$AS68 -> 0 | BC68: =AX68*$AT68 -> 0 | BD68: =AX68*$AU68 -> 0 | BE68: =AX68*$AV68 -> 0 | BF68: =AX68*$AW68 -> 0 | BG68: =IF('B1'!$E$16>0,0,$C$59/3600) -> 0 | BH68: =BG68*$AP68 -> 0 | BI68: =BG68*$AQ68 -> 0 | BJ68: =BG68*$AR68 -> 0 | BK68: =BG68*$AS68 -> 0 | BL68: =BG68*$AT68 -> 0 | BM68: =BG68*$AU68 -> 0 | BN68: =BG68*$AV68 -> 0 | BO68: =BG68*$AW68 -> 0 | BP68: =IF('B1'!$E$16>0,0,$C$60/3600) -> 0 | BQ68: =BP68*$AP68 -> 0 | BR68: =BP68*$AQ68 -> 0 | BS68: =BP68*$AR68 -> 0 | BT68: =BP68*$AS68 -> 0 | BU68: =BP68*$AT68 -> 0 | BV68: =BP68*$AU68 -> 0 | BW68: =BP68*$AV68 -> 0 | BX68: =BP68*$AW68 -> 0 | BY68: =IF('B1'!$E$16>0,0,$C$61/3600) -> 0 | BZ68: =BY68*$AP68 -> 0 | CA68: =BY68*$AQ68 -> 0 | CB68: =BY68*$AR68 -> 0 | CC68: =BY68*$AS68 -> 0 | CD68: =BY68*$AT68 -> 0 | CE68: =BY68*$AU68 -> 0 | CF68: =BY68*$AV68 -> 0 | CG68: =BY68*$AW68 -> 0 | CH68: =IF('B1'!$E$16>0,0,$C$62/3600) -> 0 | CI68: =CH68*$AP68 -> 0 | CJ68: =CH68*$AQ68 -> 0 | CK68: =CH68*$AR68 -> 0 | CL68: =CH68*$AS68 -> 0 | CM68: =CH68*$AT68 -> 0 | CN68: =CH68*$AU68 -> 0 | CO68: =CH68*$AV68 -> 0 | CP68: =CH68*$AW68 -> 0 | CR68: In and out of port | DA68: TRANSIT | DJ68: SHORE POWER | DL68: Overall
A69: =C50 -> Port 2 | B69: 4000 | C69: 10 | D69: =L50 -> 12.43333333 | E69: 4 | F69: 3.3 | G69: 15.92493298 | H69: =J50 -> 1722.120498 | I69: 60 | J69: =H69/$J$19 -> 1812.758419 | K69: =I69/$J$30 -> 70.65787486 | L69: =J69+K69 -> 1883.416294 | M69: =IFERROR(L69/'B2'!$C$32,0) -> 0.6677027302 | N69: =$C$75+($D$75*M69)+($E$75*(M69^2))+($F$75*(M69^3))+($G$75*(M69^4))+($H$75*(M69^5))+($I$75*(M69^6)) -> 0.3718993991 | O69: =L69/N69 -> 5064.316583 | P69: =O69/$L$75 -> 423.0840921 | Q69: =P69/0.855 -> 494.8351955 | R69: =P69*'B2'!$E$40 -> 1341.176572 | S69: =L69*'B2'!$E$40 -> 5970.429652 | T69: =$L69*'B2'!$I$40 -> 9417.08147 | U69: =$L69*'B2'!$K$40 -> 941.708147 | V69: =$L69*'B2'!$M$40 -> 1883.416294 | W69: =L50/60 -> 0.2072222222 | X69: =W69*O69 -> 1049.438936 | Z69: =$W69*Q69 -> 102.5408488 | AA69: =$W69*R69 -> 277.9215896 | AB69: =$W69*S69 -> 1237.2057 | AC69: =$W69*T69 -> 1951.428549 | AD69: =$W69*U69 -> 195.1428549 | AE69: =$W69*V69 -> 390.2857098 | AH69: Entering Harbour | AI69: =$D$56 -> 368.4210526 | AJ69: =AI69/$J$19 -> 387.8116343 | AK69: ='B2'!$K$32 -> 60 | AL69: =AK69/$J$30 -> 70.65787486 | AM69: =AJ69+AL69 -> 458.4695092 | AN69: =AM69/'B2'!$C$32 -> 0.1625351464 | AO69: =$C$75+($D$75*AN69)+($E$75*(AN69^2))+($F$75*(AN69^3))+($G$75*(AN69^4))+($H$75*(AN69^5))+($I$75*(AN69^6)) -> 0.3448385346 | AP69: =AM69/AO69 -> 1329.519364 | AQ69: =AP69/$L$75 -> 111.0709577 | AR69: =AQ69/0.855 -> 129.9075529 | AS69: =AQ69*'B2'!$E$40 -> 352.0949361 | AT69: =AM69*'B2'!$G$40 -> 3598.985647 | AU69: =AM69*'B2'!$I$40 -> 2292.347546 | AV69: =AM69*'B2'!$K$40 -> 229.2347546 | AW69: =AM69*'B2'!$M$40 -> 458.4695092 | AX69: =D58/3600 -> 0.025 | AY69: =AX69*$AP69 -> 33.23798411 | AZ69: =AX69*$AQ69 -> 2.776773944 | BA69: =AX69*$AR69 -> 3.247688823 | BB69: =AX69*$AS69 -> 8.802373401 | BC69: =AX69*$AT69 -> 89.97464118 | BD69: =AX69*$AU69 -> 57.30868865 | BE69: =AX69*$AV69 -> 5.730868865 | BF69: =AX69*$AW69 -> 11.46173773 | BG69: =$D$59/3600 -> 0.025 | BH69: =BG69*$AP69 -> 33.23798411 | BI69: =BG69*$AQ69 -> 2.776773944 | BJ69: =BG69*$AR69 -> 3.247688823 | BK69: =BG69*$AS69 -> 8.802373401 | BL69: =BG69*$AT69 -> 89.97464118 | BM69: =BG69*$AU69 -> 57.30868865 | BN69: =BG69*$AV69 -> 5.730868865 | BO69: =BG69*$AW69 -> 11.46173773 | BP69: =$D$60/3600 -> 0.025 | BQ69: =BP69*$AP69 -> 33.23798411 | BR69: =BP69*$AQ69 -> 2.776773944 | BS69: =BP69*$AR69 -> 3.247688823 | BT69: =BP69*$AS69 -> 8.802373401 | BU69: =BP69*$AT69 -> 89.97464118 | BV69: =BP69*$AU69 -> 57.30868865 | BW69: =BP69*$AV69 -> 5.730868865 | BX69: =BP69*$AW69 -> 11.46173773 | BY69: =$D$61/3600 -> 0 | BZ69: =BY69*$AP69 -> 0 | CA69: =BY69*$AQ69 -> 0 | CB69: =BY69*$AR69 -> 0 | CC69: =BY69*$AS69 -> 0 | CD69: =BY69*$AT69 -> 0 | CE69: =BY69*$AU69 -> 0 | CF69: =BY69*$AV69 -> 0 | CG69: =BY69*$AW69 -> 0 | CH69: =$D$62/3600 -> 0 | CI69: =CH69*$AP69 -> 0 | CJ69: =CH69*$AQ69 -> 0 | CK69: =CH69*$AR69 -> 0 | CL69: =CH69*$AS69 -> 0 | CM69: =CH69*$AT69 -> 0 | CN69: =CH69*$AU69 -> 0 | CO69: =CH69*$AV69 -> 0 | CP69: =CH69*$AW69 -> 0 | CR69: Hours | CS69: kWh | CT69: Fuel consumed, kg | CU69: Fuel consumed, liters | CV69: CO2, kg | CW69: Nox, g | CX69: CO, g | CY69: PM, g | CZ69: SO, g | DA69: Hours | DB69: kWh | DC69: Fuel consumed, kg | DD69: Fuel consumed, liters | DE69: CO2, kg | DF69: Nox, g | DG69: CO, g | DH69: PM, g | DI69: SO, g | DJ69: Hours | DK69: kWh | DL69: Hours | DM69: kWh | DN69: Fuel consumed, kg | DO69: Fuel consumed, liters | DP69: CO2, kg | DQ69: Nox, g | DR69: CO, g | DS69: PM, g | DT69: SO, g
A70: Port 3 | B70: 4000 | C70: 10 | D70: 15.43333333 | E70: 4 | F70: 3.3 | G70: 12.82937365 | H70: 900.4239922 | I70: 60 | J70: 947.8147287 | K70: 70.65787486 | L70: 1018.472604 | M70: =IFERROR(L70/'B2'!$C$32,0) -> 0.3610656551 | N70: =$C$75+($D$75*M70)+($E$75*(M70^2))+($F$75*(M70^3))+($G$75*(M70^4))+($H$75*(M70^5))+($I$75*(M70^6)) -> 0.3578498353 | O70: 2846.089345 | P70: 237.7685334 | Q70: 278.091852 | R70: =P70*'B2'!$E$40 -> 753.726251 | S70: =L70*'B2'!$E$40 -> 3228.558153 | T70: =$L70*'B2'!$I$40 -> 5092.363018 | U70: =$L70*'B2'!$K$40 -> 509.2363018 | V70: =$L70*'B2'!$M$40 -> 1018.472604 | W70: 0.2572222222 | X70: 732.077426 | Z70: 71.53140415 | AA70: 193.8751412 | AB70: 830.4569027 | AC70: 1309.868932 | AD70: 130.9868932 | AE70: 261.9737864 | AH70: Leaving Harbour | AI70: =$E$56 -> 263.1578947 | AJ70: 277.0083102 | AK70: ='B2'!$K$32 -> 60 | AL70: 70.65787486 | AM70: 347.6661851 | AN70: =AM70/'B2'!$C$32 -> 0.1232535058 | AO70: 0.3421611091 | AP70: 1016.089134 | AQ70: 84.88631029 | AR70: 99.28223426 | AS70: =AQ70*'B2'!$E$40 -> 269.0896036 | AT70: =AM70*'B2'!$G$40 -> 2729.179553 | AU70: =AM70*'B2'!$I$40 -> 1738.330926 | AV70: =AM70*'B2'!$K$40 -> 173.8330926 | AW70: =AM70*'B2'!$M$40 -> 347.6661851 | AX70: =E58/3600 -> 0.008333333333 | AY70: 8.467409452 | AZ70: 0.7073859191 | BA70: 0.8273519522 | BB70: 2.242413364 | BC70: 22.74316294 | BD70: 14.48609105 | BE70: 1.448609105 | BF70: 2.897218209 | BG70: =$E$59/3600 -> 0.008333333333 | BH70: 8.467409452 | BI70: 0.7073859191 | BJ70: 0.8273519522 | BK70: 2.242413364 | BL70: 22.74316294 | BM70: 14.48609105 | BN70: 1.448609105 | BO70: 2.897218209 | BP70: =$E$60/3600 -> 0.008333333333 | BQ70: 8.467409452 | BR70: 0.7073859191 | BS70: 0.8273519522 | BT70: 2.242413364 | BU70: 22.74316294 | BV70: 14.48609105 | BW70: 1.448609105 | BX70: 2.897218209 | BY70: =$E$61/3600 -> 0 | BZ70: 0 | CA70: 0 | CB70: 0 | CC70: 0 | CD70: 0 | CE70: 0 | CF70: 0 | CG70: 0 | CH70: =$E$62/3600 -> 0 | CI70: 0 | CJ70: 0 | CK70: 0 | CL70: 0 | CM70: 0 | CN70: 0 | CO70: 0 | CP70: 0 | CR70: =SUM(AX74,BG74,BP74,BY74,CH74) -> 0.3283333333 | CS70: =SUM(AY74,BH74,BQ74,BZ74,CI74) -> 434.1355054 | CT70: 36.26863036 | CU70: 42.41945071 | CV70: 114.9715582 | CW70: 1185.291146 | CX70: 754.9625135 | CY70: 75.49625135 | CZ70: 150.9925027 | DA70: =W73 -> 0.6883333333 | DB70: =X73 -> 2700.01665 | DC70: 76.73352446 | DD70: 263.8190652 | DE70: 715.0420034 | DF70: 3137.911266 | DG70: 4949.386855 | DH70: 494.9386855 | DI70: 989.877371 | DJ70: =SUM($J$57:$J$62) -> 0.5 | DK70: =SUM(I57:I62) -> 30 | DL70: =DJ70+DA70+CR70 -> 1.516666667 | DM70: =DK70+DB70+CS70 -> 3164.152156 | DN70: =DC70+CT70 -> 113.0021548 | DO70: =DD70+CU70 -> 306.2385159 | DP70: 830.0135617 | DQ70: 4323.202412 | DR70: 5704.349369 | DS70: 570.4349369 | DT70: 1140.869874
B71: 0 | C71: 0 | D71: 0 | E71: 0 | F71: 0 | G71: 0 | H71: 0 | I71: 0 | J71: 0 | K71: 0 | L71: 0 | M71: =IFERROR(L71/'B2'!$C$32,0) -> 0 | N71: 0.3099 | O71: 0 | P71: 0 | Q71: 0 | R71: =P71*'B2'!$E$40 -> 0 | S71: =L71*'B2'!$E$40 -> 0 | T71: =$L71*'B2'!$I$40 -> 0 | U71: =$L71*'B2'!$K$40 -> 0 | V71: =$L71*'B2'!$M$40 -> 0 | W71: 0 | X71: 0 | Z71: 0 | AA71: 0 | AB71: 0 | AC71: 0 | AD71: 0 | AE71: 0 | AH71: Acceleration | AI71: =$F$56 -> 736.8421053 | AJ71: 775.6232687 | AK71: ='B2'!$K$32 -> 60 | AL71: 70.65787486 | AM71: 846.2811436 | AN71: =AM71/'B2'!$C$32 -> 0.3000208886 | AO71: 0.3531803296 | AP71: 2396.172925 | AQ71: 200.1815309 | AR71: 234.1304455 | AS71: =AQ71*'B2'!$E$40 -> 634.575453 | AT71: =AM71*'B2'!$G$40 -> 6643.306977 | AU71: =AM71*'B2'!$I$40 -> 4231.405718 | AV71: =AM71*'B2'!$K$40 -> 423.1405718 | AW71: =AM71*'B2'!$M$40 -> 846.2811436 | AX71: =F58/3600 -> 0.03444444444 | AY71: 82.5348452 | AZ71: 6.895141621 | BA71: 8.064493124 | BB71: 21.85759894 | BC71: 228.8250181 | BD71: 145.7484192 | BE71: 14.57484192 | BF71: 29.14968383 | BG71: =$F$59/3600 -> 0.03444444444 | BH71: 82.5348452 | BI71: 6.895141621 | BJ71: 8.064493124 | BK71: 21.85759894 | BL71: 228.8250181 | BM71: 145.7484192 | BN71: 14.57484192 | BO71: 29.14968383 | BP71: =$F$60/3600 -> 0.03444444444 | BQ71: 82.5348452 | BR71: 6.895141621 | BS71: 8.064493124 | BT71: 21.85759894 | BU71: 228.8250181 | BV71: 145.7484192 | BW71: 14.57484192 | BX71: 29.14968383 | BY71: =$F$61/3600 -> 0 | BZ71: 0 | CA71: 0 | CB71: 0 | CC71: 0 | CD71: 0 | CE71: 0 | CF71: 0 | CG71: 0 | CH71: =$F$62/3600 -> 0 | CI71: 0 | CJ71: 0 | CK71: 0 | CL71: 0 | CM71: 0 | CN71: 0 | CO71: 0 | CP71: 0
B72: 0 | C72: 0 | D72: 0 | E72: 0 | F72: 0 | G72: 0 | H72: 0 | I72: 0 | J72: 0 | K72: 0 | L72: 0 | M72: =IFERROR(L72/'B2'!$C$32,0) -> 0 | N72: 0.3099 | O72: 0 | P72: 0 | Q72: 0 | R72: =P72*'B2'!$E$40 -> 0 | S72: =L72*'B2'!$E$40 -> 0 | T72: =$L72*'B2'!$I$40 -> 0 | U72: =$L72*'B2'!$K$40 -> 0 | V72: =$L72*'B2'!$M$40 -> 0 | W72: 0 | X72: 0 | Z72: 0 | AA72: 0 | AB72: 0 | AC72: 0 | AD72: 0 | AE72: 0 | AH72: Passive Retardation | AI72: =$G$56 -> 57.89473684 | AJ72: 60.94182825 | AK72: ='B2'!$K$32 -> 60 | AL72: 70.65787486 | AM72: 131.5997031 | AN72: =AM72/'B2'!$C$32 -> 0.04665430652 | AO72: 0.3295028154 | AP72: 399.3887061 | AQ72: 33.3658067 | AR72: 39.02433532 | AS72: =AQ72*'B2'!$E$40 -> 105.7696072 | AT72: =AM72*'B2'!$G$40 -> 1033.057669 | AU72: =AM72*'B2'!$I$40 -> 657.9985156 | AV72: =AM72*'B2'!$K$40 -> 65.79985156 | AW72: =AM72*'B2'!$M$40 -> 131.5997031 | AX72: =G58/3600 -> 0.03333333333 | AY72: 13.31295687 | AZ72: 1.112193557 | BA72: 1.300811177 | BB72: 3.525653574 | BC72: 34.43525565 | BD72: 21.93328385 | BE72: 2.193328385 | BF72: 4.386656771 | BG72: =$G$59/3600 -> 0.03333333333 | BH72: 13.31295687 | BI72: 1.112193557 | BJ72: 1.300811177 | BK72: 3.525653574 | BL72: 34.43525565 | BM72: 21.93328385 | BN72: 2.193328385 | BO72: 4.386656771 | BP72: =$G$60/3600 -> 0.03333333333 | BQ72: 13.31295687 | BR72: 1.112193557 | BS72: 1.300811177 | BT72: 3.525653574 | BU72: 34.43525565 | BV72: 21.93328385 | BW72: 2.193328385 | BX72: 4.386656771 | BY72: =$G$61/3600 -> 0 | BZ72: 0 | CA72: 0 | CB72: 0 | CC72: 0 | CD72: 0 | CE72: 0 | CF72: 0 | CG72: 0 | CH72: =$G$62/3600 -> 0 | CI72: 0 | CJ72: 0 | CK72: 0 | CL72: 0 | CM72: 0 | CN72: 0 | CO72: 0 | CP72: 0
W73: =SUM(W68:W72) -> 0.6883333333 | X73: =SUM(X68:X72) -> 2700.01665 | Y73: 76.73352446 | Z73: 263.8190652 | AA73: 715.0420034 | AB73: 3137.911266 | AC73: 4949.386855 | AD73: 494.9386855 | AE73: 989.877371 | AH73: Active Retardation | AI73: =$H$56 -> 210.5263158 | AJ73: 221.6066482 | AK73: ='B2'!$K$32 -> 60 | AL73: 70.65787486 | AM73: 292.2645231 | AN73: =AM73/'B2'!$C$32 -> 0.1036126854 | AO73: 0.3402235432 | AP73: 859.0367389 | AQ73: 71.76580943 | AR73: 83.93661922 | AS73: =AQ73*'B2'!$E$40 -> 227.4976159 | AT73: =AM73*'B2'!$G$40 -> 2294.276506 | AU73: =AM73*'B2'!$I$40 -> 1461.322615 | AV73: =AM73*'B2'!$K$40 -> 146.1322615 | AW73: =AM73*'B2'!$M$40 -> 292.2645231 | AX73: =H58/3600 -> 0.008333333333 | AY73: 7.158639491 | AZ73: 0.5980484119 | BA73: 0.6994718268 | BB73: 1.895813466 | BC73: 19.11897088 | BD73: 12.17768846 | BE73: 1.217768846 | BF73: 2.435537692 | BG73: =$H$59/3600 -> 0.008333333333 | BH73: 7.158639491 | BI73: 0.5980484119 | BJ73: 0.6994718268 | BK73: 1.895813466 | BL73: 19.11897088 | BM73: 12.17768846 | BN73: 1.217768846 | BO73: 2.435537692 | BP73: =$H$60/3600 -> 0.008333333333 | BQ73: 7.158639491 | BR73: 0.5980484119 | BS73: 0.6994718268 | BT73: 1.895813466 | BU73: 19.11897088 | BV73: 12.17768846 | BW73: 1.217768846 | BX73: 2.435537692 | BY73: =$H$61/3600 -> 0 | BZ73: 0 | CA73: 0 | CB73: 0 | CC73: 0 | CD73: 0 | CE73: 0 | CF73: 0 | CG73: 0 | CH73: =$H$62/3600 -> 0 | CI73: 0 | CJ73: 0 | CK73: 0 | CL73: 0 | CM73: 0 | CN73: 0 | CO73: 0 | CP73: 0
C74: =F!C28 -> Const | D74: =F!D28 -> x | E74: =F!E28 -> x2 | F74: =F!F28 -> x3 | G74: =F!G28 -> x4 | H74: =F!H28 -> x5 | I74: =F!I28 -> x6 | AX74: =SUM(AX68:AX73) -> 0.1094444444 | AY74: =SUM(AY68:AY73) -> 144.7118351 | AZ74: 12.08954345 | BA74: 14.1398169 | BB74: 38.32385274 | BC74: 395.0970488 | BD74: 251.6541712 | BE74: 25.16541712 | BF74: 50.33083424 | BG74: 0.1094444444 | BH74: 144.7118351 | BI74: 12.08954345 | BJ74: 14.1398169 | BK74: 38.32385274 | BL74: 395.0970488 | BM74: 251.6541712 | BN74: 25.16541712 | BO74: 50.33083424 | BP74: 0.1094444444 | BQ74: 144.7118351 | BR74: 12.08954345 | BS74: 14.1398169 | BT74: 38.32385274 | BU74: 395.0970488 | BV74: 251.6541712 | BW74: 25.16541712 | BX74: 50.33083424 | BY74: 0 | BZ74: 0 | CA74: 0 | CB74: 0 | CC74: 0 | CD74: 0 | CE74: 0 | CF74: 0 | CG74: 0 | CH74: 0 | CI74: 0 | CJ74: 0 | CK74: 0 | CL74: 0 | CM74: 0 | CN74: 0 | CO74: 0 | CP74: 0 | CR74: Roundtrips | CT74: ='B1'!E23 -> 18 | CV74: Hours in harbour | CX74: =24-(CT74*DL70) -> -3.3 | CZ74: Assuming shore connection | DC74: ='B2'!K32*CX74 -> -198 | DD74: kWh
B75: Diesel variable rpm | C75: =F!C29 -> 0.3099 | D75: =F!D29 -> 0.58 | E75: =F!E29 -> -4.0844 | F75: =F!F29 -> 15.441 | G75: =F!G29 -> -29.665 | H75: =F!H29 -> 27.841 | I75: =F!I29 -> -10.15 | K75: Diesel Oil | L75: 11.97 | M75: kWh/kg
A78: Results calculations
A79: Diesel Constant RPM | AX79: PORT 1 | BG79: PORT 2 | BP79: PORT 3 | BY79: PORT 4 | CH79: PORT 5
B80: Shore charging | C80: Time in port | D80: Transit to next port | E80: Distance to next port | F80: Distance to next port, manouevring | G80: Speed | H80: Propeller power | I80: Hotel power | J80: Propeller incl losses | K80: Hotel incl power | L80: Total Power | M80: Relative Load | N80: Thermal Efficiency | O80: Energy Consumed | P80: Fuel Consumed | Q80: Liters | R80: CO2, kg | S80: Nox, g | T80: CO, g | U80: PM, g | V80: SO, g | W80: Hours | X80: kWh | Y80: Fuel consumed, kg | Z80: Fuel consumed, liters | AA80: CO2, kg | AB80: Nox, g | AC80: CO, g | AD80: PM, g | AE80: SO, g | AG80: PORTS | AI80: Propeller power | AJ80: Incl losses | AK80: Hotel | AL80: Incl losses | AM80: Total Power | AN80: Relative Load | AO80: Thermal Efficiency | AP80: Energy Consumed | AQ80: Fuel Consumed, kg | AR80: Liters | AS80: CO2, kg | AT80: Nox, g | AU80: CO, g | AV80: PM, g | AW80: SO, g | AX80: Hours | AY80: kWh | AZ80: Fuel consumed, kg | BA80: Fuel consumed, liters | BB80: CO2, kg | BC80: Nox, g | BD80: CO, g | BE80: PM, g | BF80: SO, g | BG80: Hours | BH80: kWh | BI80: Fuel consumed, kg | BJ80: Fuel consumed, liters | BK80: CO2, kg | BL80: Nox, g | BM80: CO, g | BN80: PM, g | BO80: SO, g | BP80: Hours | BQ80: kWh | BR80: Fuel consumed, kg | BS80: Fuel consumed, liters | BT80: CO2, kg | BU80: Nox, g | BV80: CO, g | BW80: PM, g | BX80: SO, g | BY80: Hours | BZ80: kWh | CA80: Fuel consumed, kg | CB80: Fuel consumed, liters | CC80: CO2, kg | CD80: Nox, g | CE80: CO, g | CF80: PM, g | CG80: SO, g | CH80: Hours | CI80: kWh | CJ80: Fuel consumed, kg | CK80: Fuel consumed, liters | CL80: CO2, kg | CM80: Nox, g | CN80: CO, g | CO80: PM, g | CP80: SO, g
A81: =C49 -> Port 1 | B81: =D49 -> 4000 | C81: =E49 -> 10 | D81: 20 | E81: 4 | F81: 3.3 | G81: =I49 -> 14.73945409 | H81: =J49 -> 1365.447143 | I81: =K49 -> 60 | J81: =H81/$J$19 -> 1437.312782 | K81: =I81/$J$30 -> 70.65787486 | L81: =J81+K81 -> 1507.970657 | M81: =IFERROR(L81/'B2'!$C$32,0) -> 0.534600942 | N81: =$C$88+($D$88*M81)+($E$88*(M81^2))+($F$88*(M81^3))+($G$88*(M81^4))+($H$88*(M81^5))+($I$88*(M81^6)) -> 0.359913163 | O81: =L81/N81 -> 4189.818023 | P81: =O81/$L$88 -> 350.0265683 | Q81: =P81/0.855 -> 409.3877992 | R81: =P81*'B2'!$E$41 -> 1109.584222 | S81: =$L81*'B2'!$E$41 -> 4780.266983 | T81: =$L81*'B2'!$I$41 -> 7539.853285 | U81: =$L81*'B2'!$K$41 -> 753.9853285 | V81: =$L81*'B2'!$M$41 -> 1507.970657 | W81: =L49/60 -> 0.2238888889 | X81: =$W81*O81 -> 938.0537018 | Y81: =$W81*P81 -> 78.36705947 | Z81: =$W81*Q81 -> 91.65737949 | AA81: =$W81*R81 -> 248.4235785 | AB81: =$W81*S81 -> 1070.248663 | AC81: =$W81*T81 -> 1688.089374 | AD81: =$W81*U81 -> 168.8089374 | AE81: =$W81*V81 -> 337.6178749 | AH81: Loading | AI81: =$C$56 -> 0 | AJ81: =AI81/$K$19 -> 0 | AK81: =IF(B81>'B2'!$K$32,0,'B2'!$K$32) -> 0 | AL81: =AK81/$K$30 -> 0 | AM81: =AJ81+AL81 -> 0 | AN81: =AM81/'B2'!$C$32 -> 0 | AO81: =$C$88+($D$88*AN81)+($E$88*(AN81^2))+($F$88*(AN81^3))+($G$88*(AN81^4))+($H$88*(AN81^5))+($I$88*(AN81^6)) -> 0.1667 | AP81: =AM81/AO81 -> 0 | AQ81: =AP81/$L$75 -> 0 | AR81: =AQ81/0.855 -> 0 | AS81: =AQ81*'B2'!$E$41 -> 0 | AT81: =AM81*'B2'!$G$41 -> 0 | AU81: =AM81*'B2'!$I$41 -> 0 | AV81: =AM81*'B2'!$K$41 -> 0 | AW81: =AM81*'B2'!$M$41 -> 0 | AX81: =IF('B1'!$E$16>0,0,C58/3600) -> 0 | AY81: =AX81*$AP81 -> 0 | AZ81: =AX81*$AQ81 -> 0 | BA81: =AX81*$AR81 -> 0 | BB81: =AX81*$AS81 -> 0 | BC81: =AX81*$AT81 -> 0 | BD81: =AX81*$AU81 -> 0 | BE81: =AX81*$AV81 -> 0 | BF81: =AX81*$AW81 -> 0 | BG81: =IF('B1'!$E$16>0,0,$C$59/3600) -> 0 | BH81: =BG81*$AP81 -> 0 | BI81: =BG81*$AQ81 -> 0 | BJ81: =BG81*$AR81 -> 0 | BK81: =BG81*$AS81 -> 0 | BL81: =BG81*$AT81 -> 0 | BM81: =BG81*$AU81 -> 0 | BN81: =BG81*$AV81 -> 0 | BO81: =BG81*$AW81 -> 0 | BP81: =IF('B1'!$E$16>0,0,$C$60/3600) -> 0 | BQ81: =BP81*$AP81 -> 0 | BR81: =BP81*$AQ81 -> 0 | BS81: =BP81*$AR81 -> 0 | BT81: =BP81*$AS81 -> 0 | BU81: =BP81*$AT81 -> 0 | BV81: =BP81*$AU81 -> 0 | BW81: =BP81*$AV81 -> 0 | BX81: =BP81*$AW81 -> 0 | BY81: =IF('B1'!$E$16>0,0,$C$61/3600) -> 0 | BZ81: =BY81*$AP81 -> 0 | CA81: =BY81*$AQ81 -> 0 | CB81: =BY81*$AR81 -> 0 | CC81: =BY81*$AS81 -> 0 | CD81: =BY81*$AT81 -> 0 | CE81: =BY81*$AU81 -> 0 | CF81: =BY81*$AV81 -> 0 | CG81: =BY81*$AW81 -> 0 | CH81: =IF('B1'!$E$16>0,0,$C$62/3600) -> 0 | CI81: =CH81*$AP81 -> 0 | CJ81: =CH81*$AQ81 -> 0 | CK81: =CH81*$AR81 -> 0 | CL81: =CH81*$AS81 -> 0 | CM81: =CH81*$AT81 -> 0 | CN81: =CH81*$AU81 -> 0 | CO81: =CH81*$AV81 -> 0 | CP81: =CH81*$AW81 -> 0 | CR81: In and out of port | DA81: TRANSIT | DJ81: SHORE POWER | DL81: Overall
A82: =C50 -> Port 2 | B82: 4000 | C82: 10 | D82: 19 | E82: 4 | F82: 3.3 | G82: 15.92493298 | H82: 1722.120498 | I82: 60 | J82: =H82/$J$19 -> 1812.758419 | K82: =I82/$J$30 -> 70.65787486 | L82: =J82+K82 -> 1883.416294 | M82: =IFERROR(L82/'B2'!$C$32,0) -> 0.6677027302 | N82: =$C$88+($D$88*M82)+($E$88*(M82^2))+($F$88*(M82^3))+($G$88*(M82^4))+($H$88*(M82^5))+($I$88*(M82^6)) -> 0.3682006984 | O82: =L82/N82 -> 5115.189357 | P82: =O82/$L$75 -> 427.3341151 | Q82: =P82/0.855 -> 499.8059825 | R82: =P82*'B2'!$E$41 -> 1354.649145 | S82: =$L82*'B2'!$E$41 -> 5970.429652 | T82: =$L82*'B2'!$I$41 -> 9417.08147 | U82: =$L82*'B2'!$K$41 -> 941.708147 | V82: =$L82*'B2'!$M$41 -> 1883.416294 | W82: =L50/60 -> 0.2072222222 | X82: =W82*O82 -> 1059.980906 | Z82: 103.5709064 | AA82: 280.7134061 | AB82: 1237.2057 | AC82: 1951.428549 | AD82: 195.1428549 | AE82: 390.2857098 | AH82: Entering Harbour | AI82: =$D$56 -> 368.4210526 | AJ82: =AI82/$K$19 -> 387.8116343 | AK82: ='B2'!$K$32 -> 60 | AL82: =AK82/$K$30 -> 70.65787486 | AM82: =AJ82+AL82 -> 458.4695092 | AN82: =AM82/'B2'!$C$32 -> 0.1625351464 | AO82: =$C$88+($D$88*AN82)+($E$88*(AN82^2))+($F$88*(AN82^3))+($G$88*(AN82^4))+($H$88*(AN82^5))+($I$88*(AN82^6)) -> 0.2878672492 | AP82: =AM82/AO82 -> 1592.642131 | AQ82: =AP82/$L$75 -> 133.0528096 | AR82: =AQ82/0.855 -> 155.6173212 | AS82: =AQ82*'B2'!$E$41 -> 421.7774065 | AT82: =AM82*'B2'!$G$41 -> 3598.985647 | AU82: =AM82*'B2'!$I$41 -> 2292.347546 | AV82: =AM82*'B2'!$K$41 -> 229.2347546 | AW82: =AM82*'B2'!$M$41 -> 458.4695092 | AX82: =$D$58/3600 -> 0.025 | AY82: =AX82*$AP82 -> 39.81605328 | AZ82: =AX82*$AQ82 -> 3.32632024 | BA82: =AX82*$AR82 -> 3.89043303 | BB82: =AX82*$AS82 -> 10.54443516 | BC82: =AX82*$AT82 -> 89.97464118 | BD82: =AX82*$AU82 -> 57.30868865 | BE82: =AX82*$AV82 -> 5.730868865 | BF82: =AX82*$AW82 -> 11.46173773 | BG82: =$D$59/3600 -> 0.025 | BH82: =BG82*$AP82 -> 39.81605328 | BI82: =BG82*$AQ82 -> 3.32632024 | BJ82: =BG82*$AR82 -> 3.89043303 | BK82: =BG82*$AS82 -> 10.54443516 | BL82: =BG82*$AT82 -> 89.97464118 | BM82: =BG82*$AU82 -> 57.30868865 | BN82: =BG82*$AV82 -> 5.730868865 | BO82: =BG82*$AW82 -> 11.46173773 | BP82: =$D$60/3600 -> 0.025 | BQ82: =BP82*$AP82 -> 39.81605328 | BR82: =BP82*$AQ82 -> 3.32632024 | BS82: =BP82*$AR82 -> 3.89043303 | BT82: =BP82*$AS82 -> 10.54443516 | BU82: =BP82*$AT82 -> 89.97464118 | BV82: =BP82*$AU82 -> 57.30868865 | BW82: =BP82*$AV82 -> 5.730868865 | BX82: =BP82*$AW82 -> 11.46173773 | BY82: =$D$61/3600 -> 0 | BZ82: =BY82*$AP82 -> 0 | CA82: =BY82*$AQ82 -> 0 | CB82: =BY82*$AR82 -> 0 | CC82: =BY82*$AS82 -> 0 | CD82: =BY82*$AT82 -> 0 | CE82: =BY82*$AU82 -> 0 | CF82: =BY82*$AV82 -> 0 | CG82: =BY82*$AW82 -> 0 | CH82: =$D$62/3600 -> 0 | CI82: =CH82*$AP82 -> 0 | CJ82: =CH82*$AQ82 -> 0 | CK82: =CH82*$AR82 -> 0 | CL82: =CH82*$AS82 -> 0 | CM82: =CH82*$AT82 -> 0 | CN82: =CH82*$AU82 -> 0 | CO82: =CH82*$AV82 -> 0 | CP82: =CH82*$AW82 -> 0 | CR82: Hours | CS82: kWh | CT82: Fuel consumed, kg | CU82: Fuel consumed, liters | CV82: CO2, kg | CW82: Nox, g | CX82: CO, g | CY82: PM, g | CZ82: SO, g | DA82: Hours | DB82: kWh | DC82: Fuel consumed, kg | DD82: Fuel consumed, liters | DE82: CO2, kg | DF82: Nox, g | DG82: CO, g | DH82: PM, g | DI82: SO, g | DJ82: Hours | DK82: kWh | DL82: Hours | DM82: kWh | DN82: Fuel consumed, kg | DO82: Fuel consumed, liters | DP82: CO2, kg | DQ82: Nox, g | DR82: CO, g | DS82: PM, g | DT82: SO, g
A83: =C51 -> Port 3 | B83: 4000 | C83: 10 | D83: 22 | E83: 4 | F83: 3.3 | G83: 12.82937365 | H83: 900.4239922 | I83: 60 | J83: 947.8147287 | K83: 70.65787486 | L83: 1018.472604 | M83: =IFERROR(L83/'B2'!$C$32,0) -> 0.3610656551 | N83: 0.3405246162 | O83: 2990.892743 | P83: 249.8657263 | Q83: 292.2406155 | R83: =P83*'B2'!$E$41 -> 792.0743523 | S83: =$L83*'B2'!$E$41 -> 3228.558153 | T83: =$L83*'B2'!$I$41 -> 5092.363018 | U83: =$L83*'B2'!$K$41 -> 509.2363018 | V83: =$L83*'B2'!$M$41 -> 1018.472604 | W83: 0.2572222222 | X83: 769.3240779 | Z83: 75.17078055 | AA83: 203.7391251 | AB83: 830.4569027 | AC83: 1309.868932 | AD83: 130.9868932 | AE83: 261.9737864 | AH83: Leaving Harbour | AI83: =$E$56 -> 263.1578947 | AJ83: 277.0083102 | AK83: ='B2'!$K$32 -> 60 | AL83: 70.65787486 | AM83: 347.6661851 | AN83: =AM83/'B2'!$C$32 -> 0.1232535058 | AO83: =$C$88+($D$88*AN83)+($E$88*(AN83^2))+($F$88*(AN83^3))+($G$88*(AN83^4))+($H$88*(AN83^5))+($I$88*(AN83^6)) -> 0.2682151344 | AP83: 1296.221356 | AQ83: 108.2891692 | AR83: 126.6539991 | AS83: =AQ83*'B2'!$E$41 -> 343.2766665 | AT83: =AM83*'B2'!$G$41 -> 2729.179553 | AU83: =AM83*'B2'!$I$41 -> 1738.330926 | AV83: =AM83*'B2'!$K$41 -> 173.8330926 | AW83: =AM83*'B2'!$M$41 -> 347.6661851 | AX83: =$E$58/3600 -> 0.008333333333 | AY83: 10.80184463 | AZ83: 0.9024097436 | BA83: 1.055449993 | BB83: 2.860638887 | BC83: 22.74316294 | BD83: 14.48609105 | BE83: 1.448609105 | BF83: 2.897218209 | BG83: =$E$59/3600 -> 0.008333333333 | BH83: 10.80184463 | BI83: 0.9024097436 | BJ83: 1.055449993 | BK83: 2.860638887 | BL83: 22.74316294 | BM83: 14.48609105 | BN83: 1.448609105 | BO83: 2.897218209 | BP83: =$E$60/3600 -> 0.008333333333 | BQ83: 10.80184463 | BR83: 0.9024097436 | BS83: 1.055449993 | BT83: 2.860638887 | BU83: 22.74316294 | BV83: 14.48609105 | BW83: 1.448609105 | BX83: 2.897218209 | BY83: =$E$61/3600 -> 0 | BZ83: 0 | CA83: 0 | CB83: 0 | CC83: 0 | CD83: 0 | CE83: 0 | CF83: 0 | CG83: 0 | CH83: =$E$62/3600 -> 0 | CI83: 0 | CJ83: 0 | CK83: 0 | CL83: 0 | CM83: 0 | CN83: 0 | CO83: 0 | CP83: 0 | CR83: =SUM(AX87,BG87,BP87,BY87,CH87) -> 0.3283333333 | CS83: =SUM(AY87,BH87,BQ87,BZ87,CI87) -> 507.0463553 | CT83: =SUM(AZ87,BI87,BR87,CA87,CJ87) -> 42.35976234 | CU83: =SUM(BA87,BJ87,BS87,CB87,CK87) -> 49.54358169 | CV83: =SUM(BB87,BK87,BT87,CC87,CL87) -> 134.2804466 | CW83: =SUM(BC87,BL87,BU87,CD87,CM87) -> 1185.291146 | CX83: =SUM(BD87,BM87,BV87,CE87,CN87) -> 754.9625135 | CY83: =SUM(BE87,BN87,BW87,CF87,CO87) -> 75.49625135 | CZ83: =SUM(BF87,BO87,BX87,CG87,CP87) -> 150.9925027 | DA83: =W86 -> 0.6883333333 | DB83: =X86 -> 2767.358685 | DC83: =Y86 -> 78.36705947 | DD83: =Z86 -> 270.3990664 | DE83: =AA86 -> 732.8761097 | DF83: =AB86 -> 3137.911266 | DG83: =AC86 -> 4949.386855 | DH83: =AD86 -> 494.9386855 | DI83: =AE86 -> 989.877371 | DJ83: =SUM($J$57:$J$62) -> 0.5 | DK83: =SUM($I$57:$I$62) -> 30 | DL83: =DJ83+DA83+CR83 -> 1.516666667 | DM83: =DK83+DB83+CS83 -> 3304.405041 | DN83: =DC83+CT83 -> 120.7268218 | DO83: =DD83+CU83 -> 319.9426481 | DP83: =DE83+CV83 -> 867.1565563 | DQ83: =DF83+CW83 -> 4323.202412 | DR83: =DG83+CX83 -> 5704.349369 | DS83: =DH83+CY83 -> 570.4349369 | DT83: =DI83+CZ83 -> 1140.869874
A84: =C52 ->  | B84: 0 | C84: 0 | D84: 0 | E84: 0 | F84: 0 | G84: 0 | H84: 0 | I84: 0 | J84: 0 | K84: 0 | L84: 0 | M84: =IFERROR(L84/'B2'!$C$32,0) -> 0 | N84: 0.1667 | O84: 0 | P84: 0 | Q84: 0 | R84: =P84*'B2'!$E$41 -> 0 | S84: =$L84*'B2'!$E$41 -> 0 | T84: =$L84*'B2'!$I$41 -> 0 | U84: =$L84*'B2'!$K$41 -> 0 | V84: =$L84*'B2'!$M$41 -> 0 | W84: 0 | X84: 0 | Z84: 0 | AA84: 0 | AB84: 0 | AC84: 0 | AD84: 0 | AE84: 0 | AH84: Acceleration | AI84: =$F$56 -> 736.8421053 | AJ84: 775.6232687 | AK84: ='B2'!$K$32 -> 60 | AL84: 70.65787486 | AM84: 846.2811436 | AN84: =AM84/'B2'!$C$32 -> 0.3000208886 | AO84: 0.3298008511 | AP84: 2566.03687 | AQ84: 214.3723367 | AR84: 250.7278792 | AS84: =AQ84*'B2'!$E$41 -> 679.5603073 | AT84: =AM84*'B2'!$G$41 -> 6643.306977 | AU84: =AM84*'B2'!$I$41 -> 4231.405718 | AV84: =AM84*'B2'!$K$41 -> 423.1405718 | AW84: =AM84*'B2'!$M$41 -> 846.2811436 | AX84: =$F$58/3600 -> 0.03444444444 | AY84: 88.38571441 | AZ84: 7.383936041 | BA84: 8.636182504 | BB84: 23.40707725 | BC84: 228.8250181 | BD84: 145.7484192 | BE84: 14.57484192 | BF84: 29.14968383 | BG84: =$F$59/3600 -> 0.03444444444 | BH84: 88.38571441 | BI84: 7.383936041 | BJ84: 8.636182504 | BK84: 23.40707725 | BL84: 228.8250181 | BM84: 145.7484192 | BN84: 14.57484192 | BO84: 29.14968383 | BP84: =$F$60/3600 -> 0.03444444444 | BQ84: 88.38571441 | BR84: 7.383936041 | BS84: 8.636182504 | BT84: 23.40707725 | BU84: 228.8250181 | BV84: 145.7484192 | BW84: 14.57484192 | BX84: 29.14968383 | BY84: =$F$61/3600 -> 0 | BZ84: 0 | CA84: 0 | CB84: 0 | CC84: 0 | CD84: 0 | CE84: 0 | CF84: 0 | CG84: 0 | CH84: =$F$62/3600 -> 0 | CI84: 0 | CJ84: 0 | CK84: 0 | CL84: 0 | CM84: 0 | CN84: 0 | CO84: 0 | CP84: 0
A85: =C53 ->  | B85: 0 | C85: 0 | D85: 0 | E85: 0 | F85: 0 | G85: 0 | H85: 0 | I85: 0 | J85: 0 | K85: 0 | L85: 0 | M85: =IFERROR(L85/'B2'!$C$32,0) -> 0 | N85: 0.1667 | O85: 0 | P85: 0 | Q85: 0 | R85: =P85*'B2'!$E$41 -> 0 | S85: =$L85*'B2'!$E$41 -> 0 | T85: =$L85*'B2'!$I$41 -> 0 | U85: =$L85*'B2'!$K$41 -> 0 | V85: =$L85*'B2'!$M$41 -> 0 | W85: 0 | X85: 0 | Z85: 0 | AA85: 0 | AB85: 0 | AC85: 0 | AD85: 0 | AE85: 0 | AH85: Passive Retardation | AI85: =$G$56 -> 57.89473684 | AJ85: 60.94182825 | AK85: ='B2'!$K$32 -> 60 | AL85: 70.65787486 | AM85: 131.5997031 | AN85: =AM85/'B2'!$C$32 -> 0.04665430652 | AO85: 0.2138040682 | AP85: 615.5154307 | AQ85: 51.42150632 | AR85: 60.14211266 | AS85: =AQ85*'B2'!$E$41 -> 163.006175 | AT85: =AM85*'B2'!$G$41 -> 1033.057669 | AU85: =AM85*'B2'!$I$41 -> 657.9985156 | AV85: =AM85*'B2'!$K$41 -> 65.79985156 | AW85: =AM85*'B2'!$M$41 -> 131.5997031 | AX85: =$G$58/3600 -> 0.03333333333 | AY85: 20.51718102 | AZ85: 1.714050211 | BA85: 2.004737089 | BB85: 5.433539168 | BC85: 34.43525565 | BD85: 21.93328385 | BE85: 2.193328385 | BF85: 4.386656771 | BG85: =$G$59/3600 -> 0.03333333333 | BH85: 20.51718102 | BI85: 1.714050211 | BJ85: 2.004737089 | BK85: 5.433539168 | BL85: 34.43525565 | BM85: 21.93328385 | BN85: 2.193328385 | BO85: 4.386656771 | BP85: =$G$60/3600 -> 0.03333333333 | BQ85: 20.51718102 | BR85: 1.714050211 | BS85: 2.004737089 | BT85: 5.433539168 | BU85: 34.43525565 | BV85: 21.93328385 | BW85: 2.193328385 | BX85: 4.386656771 | BY85: =$G$61/3600 -> 0 | BZ85: 0 | CA85: 0 | CB85: 0 | CC85: 0 | CD85: 0 | CE85: 0 | CF85: 0 | CG85: 0 | CH85: =$G$62/3600 -> 0 | CI85: 0 | CJ85: 0 | CK85: 0 | CL85: 0 | CM85: 0 | CN85: 0 | CO85: 0 | CP85: 0
W86: =SUM(W81:W85) -> 0.6883333333 | X86: =SUM(X81:X85) -> 2767.358685 | Y86: =SUM(Y81:Y85) -> 78.36705947 | Z86: =SUM(Z81:Z85) -> 270.3990664 | AA86: =SUM(AA81:AA85) -> 732.8761097 | AB86: =SUM(AB81:AB85) -> 3137.911266 | AC86: =SUM(AC81:AC85) -> 4949.386855 | AD86: =SUM(AD81:AD85) -> 494.9386855 | AE86: =SUM(AE81:AE85) -> 989.877371 | AH86: Active Retardation | AI86: =$H$56 -> 210.5263158 | AJ86: 221.6066482 | AK86: ='B2'!$K$32 -> 60 | AL86: 70.65787486 | AM86: 292.2645231 | AN86: =AM86/'B2'!$C$32 -> 0.1036126854 | AO86: 0.2565166209 | AP86: 1139.35901 | AQ86: 95.18454549 | AR86: 111.3269538 | AS86: =AQ86*'B2'!$E$41 -> 301.7350092 | AT86: =AM86*'B2'!$G$41 -> 2294.276506 | AU86: =AM86*'B2'!$I$41 -> 1461.322615 | AV86: =AM86*'B2'!$K$41 -> 146.1322615 | AW86: =AM86*'B2'!$M$41 -> 292.2645231 | AX86: =$H$58/3600 -> 0.008333333333 | AY86: 9.494658413 | AZ86: 0.7932045457 | BA86: 0.9277246149 | BB86: 2.51445841 | BC86: 19.11897088 | BD86: 12.17768846 | BE86: 1.217768846 | BF86: 2.435537692 | BG86: =$H$59/3600 -> 0.008333333333 | BH86: 9.494658413 | BI86: 0.7932045457 | BJ86: 0.9277246149 | BK86: 2.51445841 | BL86: 19.11897088 | BM86: 12.17768846 | BN86: 1.217768846 | BO86: 2.435537692 | BP86: =$H$60/3600 -> 0.008333333333 | BQ86: 9.494658413 | BR86: 0.7932045457 | BS86: 0.9277246149 | BT86: 2.51445841 | BU86: 19.11897088 | BV86: 12.17768846 | BW86: 1.217768846 | BX86: 2.435537692 | BY86: =$H$61/3600 -> 0 | BZ86: 0 | CA86: 0 | CB86: 0 | CC86: 0 | CD86: 0 | CE86: 0 | CF86: 0 | CG86: 0 | CH86: =$H$62/3600 -> 0 | CI86: 0 | CJ86: 0 | CK86: 0 | CL86: 0 | CM86: 0 | CN86: 0 | CO86: 0 | CP86: 0
C87: =F!C28 -> Const | D87: =F!D28 -> x | E87: =F!E28 -> x2 | F87: =F!F28 -> x3 | G87: =F!G28 -> x4 | H87: =F!H28 -> x5 | I87: =F!I28 -> x6 | AX87: =SUM(AX81:AX86) -> 0.1094444444 | AY87: =SUM(AY81:AY86) -> 169.0154518 | AZ87: =SUM(AZ81:AZ86) -> 14.11992078 | BA87: =SUM(BA81:BA86) -> 16.51452723 | BB87: =SUM(BB81:BB86) -> 44.76014888 | BC87: =SUM(BC81:BC86) -> 395.0970488 | BD87: =SUM(BD81:BD86) -> 251.6541712 | BE87: =SUM(BE81:BE86) -> 25.16541712 | BF87: =SUM(BF81:BF86) -> 50.33083424 | BG87: =SUM(BG81:BG86) -> 0.1094444444 | BH87: =SUM(BH81:BH86) -> 169.0154518 | BI87: =SUM(BI81:BI86) -> 14.11992078 | BJ87: =SUM(BJ81:BJ86) -> 16.51452723 | BK87: =SUM(BK81:BK86) -> 44.76014888 | BL87: =SUM(BL81:BL86) -> 395.0970488 | BM87: =SUM(BM81:BM86) -> 251.6541712 | BN87: =SUM(BN81:BN86) -> 25.16541712 | BO87: =SUM(BO81:BO86) -> 50.33083424 | BP87: =SUM(BP81:BP86) -> 0.1094444444 | BQ87: =SUM(BQ81:BQ86) -> 169.0154518 | BR87: =SUM(BR81:BR86) -> 14.11992078 | BS87: =SUM(BS81:BS86) -> 16.51452723 | BT87: =SUM(BT81:BT86) -> 44.76014888 | BU87: =SUM(BU81:BU86) -> 395.0970488 | BV87: =SUM(BV81:BV86) -> 251.6541712 | BW87: =SUM(BW81:BW86) -> 25.16541712 | BX87: =SUM(BX81:BX86) -> 50.33083424 | BY87: =SUM(BY81:BY86) -> 0 | BZ87: =SUM(BZ81:BZ86) -> 0 | CA87: =SUM(CA81:CA86) -> 0 | CB87: =SUM(CB81:CB86) -> 0 | CC87: =SUM(CC81:CC86) -> 0 | CD87: =SUM(CD81:CD86) -> 0 | CE87: =SUM(CE81:CE86) -> 0 | CF87: =SUM(CF81:CF86) -> 0 | CG87: =SUM(CG81:CG86) -> 0 | CH87: =SUM(CH81:CH86) -> 0 | CI87: =SUM(CI81:CI86) -> 0 | CJ87: =SUM(CJ81:CJ86) -> 0 | CK87: =SUM(CK81:CK86) -> 0 | CL87: =SUM(CL81:CL86) -> 0 | CM87: =SUM(CM81:CM86) -> 0 | CN87: =SUM(CN81:CN86) -> 0 | CO87: =SUM(CO81:CO86) -> 0 | CP87: =SUM(CP81:CP86) -> 0 | CR87: Roundtrips | CT87: ='B1'!$E$23 -> 18 | CV87: Hours in harbour | CX87: =24-(CT87*$DL$83) -> -3.3 | CZ87: Assuming shore connection | DC87: ='B2'!$K$32*CX87 -> -198 | DD87: kWh
B88: Diesel variable rpm | C88: =F!C30 -> 0.1667 | D88: =F!D30 -> 1.1482 | E88: =F!E30 -> -3.1976 | F88: =F!F30 -> 5.072 | G88: =F!G30 -> -4.1771 | H88: =F!H30 -> 1.3626 | I88: =F!I30 -> 0 | K88: Diesel Oil | L88: 11.97 | M88: kWh/kg
A90: Results calculations
A91: Diesel Constant RPM - Hybrid | G91: Available Power | H91: C-rate | I91: Losses | J91: Effect left | L91: Energy charged | M91: Energy used per tour | N91: By main engine | O91: % By batteries | P91: % By engine
F92: =B96 -> Port 1 | G92: =IFERROR((IFERROR(IF($C$93>0,IF($C$93*(1-$C$95)<C96,$C$93*(1-$C$95),C96),C96),0)/('B1'!H16/60)),0) -> 900 | H92: =IFERROR(G92/$C$102,0) -> 1.2 | I92: =IF(H92<=0.5,"0,95%",IF(AND(H92<=1,H92>0.5),"1,75%",IF(AND(H92<=1.5,H92>1),"2,55%",IF(AND(H92<=2,H92>1.5),"3,5%",IF(AND(H92<=2.5,H92>2),"4,3%",IF(H92>=2.5,"5,25%","")))))) -> 2,55% | J92: =G92*(1-I92) -> 877.05 | L92: =IF(C96<($C$93*(1-$C$95)),C96,($C$93*(1-$C$95))) -> 300 | M92: =X108+AY114+L92 -> 1070.205765 | N92: =X108+AY114 -> 770.2057647 | O92: =IFERROR(L92/M92,0) -> 0.2803199253 | P92: =IFERROR(N92/M92,0) -> 0.7196800747
B93: Forced Battery Power | C93: ='B1'!K6 -> 500 | F93: =B97 -> Port 2 | G93: =IFERROR((IFERROR(IF($C$93>0,IF($C$93*(1-$C$95)<C97,$C$93*(1-$C$95),C97),C97),0)/('B1'!H17/60)),0) -> 947.3684211 | H93: =IFERROR(G93/$C$102,0) -> 1.263157895 | I93: =IF(H93<=0.5,"0,95%",IF(AND(H93<=1,H93>0.5),"1,75%",IF(AND(H93<=1.5,H93>1),"2,55%",IF(AND(H93<=2,H93>1.5),"3,5%",IF(AND(H93<=2.5,H93>2),"4,3%",IF(H93>=2.5,"5,25%","")))))) -> 2,55% | J93: =G93*(1-I93) -> 923.2105263 | L93: =IF(C97<($C$93*(1-$C$95)),C97,($C$93*(1-$C$95))) -> 300 | M93: =X109+BH114+L93 -> 1247.663835 | N93: =X109+$BH$114 -> 947.6638349 | O93: =IFERROR(L93/M93,0) -> 0.2404493836 | P93: =IFERROR(N93/M93,0) -> 0.7595506164
B94: Cycluses | C94: =Table3[[#Totals],[Shore Connection or not]]*'B1'!E23*365 -> 19710 | F94: Port 3 | G94: =IFERROR((IFERROR(IF($C$93>0,IF($C$93*(1-$C$95)<C98,$C$93*(1-$C$95),C98),C98),0)/('B1'!H18/60)),0) -> 818.1818182 | H94: 1.090909091 | I94: =IF(H94<=0.5,"0,95%",IF(AND(H94<=1,H94>0.5),"1,75%",IF(AND(H94<=1.5,H94>1),"2,55%",IF(AND(H94<=2,H94>1.5),"3,5%",IF(AND(H94<=2.5,H94>2),"4,3%",IF(H94>=2.5,"5,25%","")))))) -> 2,55% | J94: 797.3181818 | L94: 300 | M94: =X110+BQ114+L94 -> 825.2332376 | N94: =X110+BQ114 -> 525.2332376 | O94: 0.3635335882 | P94: 0.6364664118
B95: DOD | C95: =IF(C94<6000,"80%",IF(AND(C94<=9000,C94>=6000),"60%",IF(AND(C94<=14000,C94>=9000),"50%",IF(AND(C94<=22000,C94>=14000),"40%",IF(AND(C94<=41000,C94>=22000),"30%",IF(AND(C94<=95000,C94>=41000),"20%",IF(AND(C94<=160000,C94>=95000),"15%",IF(AND(C94<=360000,C94>=160000),"10%","")))))))) -> 40% | F95: Port 4 | G95: =IFERROR((IFERROR(IF($C$93>0,IF($C$93*(1-$C$95)<C99,$C$93*(1-$C$95),C99),C99),0)/('B1'!H19/60)),0) -> 0 | H95: 0 | I95: =IF(H95<=0.5,"0,95%",IF(AND(H95<=1,H95>0.5),"1,75%",IF(AND(H95<=1.5,H95>1),"2,55%",IF(AND(H95<=2,H95>1.5),"3,5%",IF(AND(H95<=2.5,H95>2),"4,3%",IF(H95>=2.5,"5,25%","")))))) -> 0,95% | J95: 0 | L95: 0 | M95: =X111+BZ114+L95 -> 0 | N95: =X111+BZ114 -> 0 | O95: 0 | P95: 0
B96: Port 1 | C96: =('B1'!E16-'B2'!$K$32)*('B1'!F16/60) -> 656.6666667 | F96: Port 5 | G96: =IFERROR((IFERROR(IF($C$93>0,IF($C$93*(1-$C$95)<C100,$C$93*(1-$C$95),C100),C100),0)/('B1'!H20/60)),0) -> 0 | H96: 0 | I96: =IF(H96<=0.5,"0,95%",IF(AND(H96<=1,H96>0.5),"1,75%",IF(AND(H96<=1.5,H96>1),"2,55%",IF(AND(H96<=2,H96>1.5),"3,5%",IF(AND(H96<=2.5,H96>2),"4,3%",IF(H96>=2.5,"5,25%","")))))) -> 0,95% | J96: 0 | L96: 0 | M96: =X112+CI114+L96 -> 0 | N96: =X112+CI114 -> 0 | O96: 0 | P96: 0
B97: Port 2 | C97: =('B1'!E17-'B2'!$K$32)*('B1'!F17/60) -> 656.6666667
B98: Port 3 | C98: =('B1'!E18-'B2'!$K$32)*('B1'!F18/60) -> 656.6666667
B99: Port 4 | C99: =('B1'!E19-'B2'!$K$32)*('B1'!F19/60) -> 0
B100: Port 5 | C100: =('B1'!E20-'B2'!$K$32)*('B1'!F20/60) -> 0
B101: Max charge | C101: =IF(C93=0,MAX(C96:C100),C93*(1-C95)) -> 300
B102: Battery Capacity | C102: =C101/C95 -> 750
B103: Transit Power | C103: =C101/(DA83/2) -> 871.6707022 | D103: C-rate | E103: =C103/C102 -> 1.162227603 | F103: Losses | G103: =IF(E103<=0.5,"0,95%",IF(AND(E103<=1,E103>0.5),"1,75%",IF(AND(E103<=1.5,E103>1),"2,55%",IF(AND(E103<=2,E103>1.5),"3,5%",IF(AND(E103<=2.5,E103>2),"4,3%",IF(E103>=2.5,"5,25","")))))) -> 2,55%
B104: Then Maximum Engine size is | C104: =G36/(1-'B2'!H18) -> 1746.588694 | D104: Real Transit Power | E104: =C103*(1-G103) -> 849.4430993
A106: Diesel Constant RPM | AX106: PORT 1 | BG106: PORT 2 | BP106: PORT 3 | BY106: PORT 4 | CH106: PORT 5
B107: Shore charging | C107: Time in port | D107: Transit to next port | E107: Distance to next port | F107: Distance to next port, manouevring | G107: Speed | H107: Propeller power | I107: Hotel power | J107: Propeller incl losses | K107: Hotel incl power | L107: Total Power | M107: Relative Load | N107: Thermal Efficiency | O107: Energy Consumed | P107: Fuel Consumed | Q107: Liters | R107: CO2, kg | S107: Nox, g | T107: CO, g | U107: PM, g | V107: SO, g | W107: Hours | X107: kWh | Y107: Fuel consumed, kg | Z107: Fuel consumed, liters | AA107: CO2, kg | AB107: Nox, g | AC107: CO, g | AD107: PM, g | AE107: SO, g | AG107: PORTS | AI107: Propeller power | AJ107: Incl losses | AK107: Hotel | AL107: Incl losses | AM107: Total Power | AN107: Relative Load | AO107: Thermal Efficiency | AP107: Energy Consumed | AQ107: Fuel Consumed, kg | AR107: Liters | AS107: CO2, kg | AT107: Nox, g | AU107: CO, g | AV107: PM, g | AW107: SO, g | AX107: Hours | AY107: kWh | AZ107: Fuel consumed, kg | BA107: Fuel consumed, liters | BB107: CO2, kg | BC107: Nox, g | BD107: CO, g | BE107: PM, g | BF107: SO, g | BG107: Hours | BH107: kWh | BI107: Fuel consumed, kg | BJ107: Fuel consumed, liters | BK107: CO2, kg | BL107: Nox, g | BM107: CO, g | BN107: PM, g | BO107: SO, g | BP107: Hours | BQ107: kWh | BR107: Fuel consumed, kg | BS107: Fuel consumed, liters | BT107: CO2, kg | BU107: Nox, g | BV107: CO, g | BW107: PM, g | BX107: SO, g | BY107: Hours | BZ107: kWh | CA107: Fuel consumed, kg | CB107: Fuel consumed, liters | CC107: CO2, kg | CD107: Nox, g | CE107: CO, g | CF107: PM, g | CG107: SO, g | CH107: Hours | CI107: kWh | CJ107: Fuel consumed, kg | CK107: Fuel consumed, liters | CL107: CO2, kg | CM107: Nox, g | CN107: CO, g | CO107: PM, g | CP107: SO, g
A108: =A81 -> Port 1 | B108: =B68 -> 4000 | C108: =C68 -> 10 | D108: 13.43333333 | E108: 4 | F108: =F68 -> 3.3 | G108: =G68 -> 14.73945409 | H108: =H68 -> 1365.447143 | I108: =I68 -> 60 | J108: =H108/Data!$L$19 -> 1798.750739 | K108: =I108/Data!$L$30 -> 74.37671038 | L108: =IF(J108+K108-J92>0,J108+K108-J92,0) -> 996.077449 | M108: =IFERROR(L108/$C$104,0) -> 0.5702988073 | N108: =$C$88+($D$88*M108)+($E$88*(M108^2))+($F$88*(M108^3))+($G$88*(M108^4))+($H$88*(M108^5))+($I$88*(M108^6)) -> 0.3626458546 | O108: =L108/N108 -> 2746.694706 | P108: =O108/$L$88 -> 229.4648877 | Q108: =P108/0.855 -> 268.3799857 | R108: =P108*'B2'!$E$41 -> 727.4036941 | S108: =$L108*'B2'!$E$41 -> 3157.565513 | T108: =$L108*'B2'!$I$41 -> 4980.387245 | U108: =$L108*'B2'!$K$41 -> 498.0387245 | V108: =$L108*'B2'!$M$41 -> 996.077449 | W108: =L49/60 -> 0.2238888889 | X108: =$W108*O108 -> 614.9544259 | Y108: =$W108*P108 -> 51.37463875 | Z108: =$W108*Q108 -> 60.08729679 | AA108: =$W108*R108 -> 162.8576049 | AB108: =$W108*S108 -> 706.9438344 | AC108: =$W108*T108 -> 1115.053367 | AD108: =$W108*U108 -> 111.5053367 | AE108: =$W108*V108 -> 223.0106733 | AH108: Loading | AI108: =$C$56 -> 0 | AJ108: =AI108/$K$19 -> 0 | AK108: =IF(B108>'B2'!$K$32,0,'B2'!$K$32) -> 0 | AL108: =AK108/$L$30 -> 0 | AM108: =AJ108+AL108 -> 0 | AN108: =AM108/$C$104 -> 0 | AO108: =$C$88+($D$88*AN108)+($E$88*(AN108^2))+($F$88*(AN108^3))+($G$88*(AN108^4))+($H$88*(AN108^5))+($I$88*(AN108^6)) -> 0.1667 | AP108: =AM108/AO108 -> 0 | AQ108: =AP108/$L$75 -> 0 | AR108: =AQ108/0.855 -> 0 | AS108: =AQ108*'B2'!$E$41 -> 0 | AT108: =AM108*'B2'!$G$41 -> 0 | AU108: =AM108*'B2'!$I$41 -> 0 | AV108: =AM108*'B2'!$K$41 -> 0 | AW108: =AM108*'B2'!$M$41 -> 0 | AX108: =IF('B1'!$E$16>0,0,C85/3600) -> 0 | AY108: =AX108*$AP108 -> 0 | AZ108: =AX108*$AQ108 -> 0 | BA108: =AX108*$AR108 -> 0 | BB108: =AX108*$AS108 -> 0 | BC108: =AX108*$AT108 -> 0 | BD108: =AX108*$AU108 -> 0 | BE108: =AX108*$AV108 -> 0 | BF108: =AX108*$AW108 -> 0 | BG108: =IF('B1'!$E$16>0,0,$C$59/3600) -> 0 | BH108: =BG108*$AP108 -> 0 | BI108: =BG108*$AQ108 -> 0 | BJ108: =BG108*$AR108 -> 0 | BK108: =BG108*$AS108 -> 0 | BL108: =BG108*$AT108 -> 0 | BM108: =BG108*$AU108 -> 0 | BN108: =BG108*$AV108 -> 0 | BO108: =BG108*$AW108 -> 0 | BP108: =IF('B1'!$E$16>0,0,$C$60/3600) -> 0 | BQ108: =BP108*$AP108 -> 0 | BR108: =BP108*$AQ108 -> 0 | BS108: =BP108*$AR108 -> 0 | BT108: =BP108*$AS108 -> 0 | BU108: =BP108*$AT108 -> 0 | BV108: =BP108*$AU108 -> 0 | BW108: =BP108*$AV108 -> 0 | BX108: =BP108*$AW108 -> 0 | BY108: =IF('B1'!$E$16>0,0,$C$61/3600) -> 0 | BZ108: =BY108*$AP108 -> 0 | CA108: =BY108*$AQ108 -> 0 | CB108: =BY108*$AR108 -> 0 | CC108: =BY108*$AS108 -> 0 | CD108: =BY108*$AT108 -> 0 | CE108: =BY108*$AU108 -> 0 | CF108: =BY108*$AV108 -> 0 | CG108: =BY108*$AW108 -> 0 | CH108: =IF('B1'!$E$16>0,0,$C$62/3600) -> 0 | CI108: =CH108*$AP108 -> 0 | CJ108: =CH108*$AQ108 -> 0 | CK108: =CH108*$AR108 -> 0 | CL108: =CH108*$AS108 -> 0 | CM108: =CH108*$AT108 -> 0 | CN108: =CH108*$AU108 -> 0 | CO108: =CH108*$AV108 -> 0 | CP108: =CH108*$AW108 -> 0 | CR108: In and out of port | DA108: TRANSIT | DJ108: SHORE POWER | DL108: Overall
A109: =A82 -> Port 2 | B109: =B69 -> 4000 | C109: 10 | D109: 12.43333333 | E109: 4 | F109: =F69 -> 3.3 | G109: 15.92493298 | H109: =H69 -> 1722.120498 | I109: =I69 -> 60 | J109: =H109/Data!$L$19 -> 2268.608883 | K109: =I109/Data!$L$30 -> 74.37671038 | L109: =IF(J109+K109-J93>0,J109+K109-J93,0) -> 1419.775067 | M109: =IFERROR(L109/$C$104,0) -> 0.8128846087 | N109: =$C$88+($D$88*M109)+($E$88*(M109^2))+($F$88*(M109^3))+($G$88*(M109^4))+($H$88*(M109^5))+($I$88*(M109^6)) -> 0.3712825655 | O109: =L109/N109 -> 3823.974512 | P109: =O109/$L$75 -> 319.4632007 | Q109: =P109/0.855 -> 373.6411704 | R109: =P109*'B2'!$E$41 -> 1012.698346 | S109: =$L109*'B2'!$E$41 -> 4500.686963 | T109: =$L109*'B2'!$I$41 -> 7098.875335 | U109: =$L109*'B2'!$K$41 -> 709.8875335 | V109: =$L109*'B2'!$M$41 -> 1419.775067 | W109: =L50/60 -> 0.2072222222 | X109: =W109*O109 -> 792.4124961 | Z109: 77.42675364 | AA109: 209.8536017 | AB109: 932.6423539 | AC109: 1471.044722 | AD109: 147.1044722 | AE109: 294.2089444 | AH109: Entering Harbour | AI109: =$D$56 -> 368.4210526 | AJ109: =AI109/$K$19 -> 387.8116343 | AK109: ='B2'!$K$32 -> 60 | AL109: =AK109/$L$30 -> 74.37671038 | AM109: =AJ109+AL109 -> 462.1883447 | AN109: =AM109/$C$104 -> 0.2646234608 | AO109: =$C$88+($D$88*AN109)+($E$88*(AN109^2))+($F$88*(AN109^3))+($G$88*(AN109^4))+($H$88*(AN109^5))+($I$88*(AN109^6)) -> 0.3218984807 | AP109: =AM109/AO109 -> 1435.820212 | AQ109: =AP109/$L$75 -> 119.9515632 | AR109: =AQ109/0.855 -> 140.294226 | AS109: =AQ109*'B2'!$E$41 -> 380.2464555 | AT109: =AM109*'B2'!$G$41 -> 3628.178506 | AU109: =AM109*'B2'!$I$41 -> 2310.941724 | AV109: =AM109*'B2'!$K$41 -> 231.0941724 | AW109: =AM109*'B2'!$M$41 -> 462.1883447 | AX109: =$D$58/3600 -> 0.025 | AY109: =AX109*$AP109 -> 35.8955053 | AZ109: =AX109*$AQ109 -> 2.998789081 | BA109: =AX109*$AR109 -> 3.50735565 | BB109: =AX109*$AS109 -> 9.506161386 | BC109: =AX109*$AT109 -> 90.70446265 | BD109: =AX109*$AU109 -> 57.77354309 | BE109: =AX109*$AV109 -> 5.777354309 | BF109: =AX109*$AW109 -> 11.55470862 | BG109: =$D$59/3600 -> 0.025 | BH109: =BG109*$AP109 -> 35.8955053 | BI109: =BG109*$AQ109 -> 2.998789081 | BJ109: =BG109*$AR109 -> 3.50735565 | BK109: =BG109*$AS109 -> 9.506161386 | BL109: =BG109*$AT109 -> 90.70446265 | BM109: =BG109*$AU109 -> 57.77354309 | BN109: =BG109*$AV109 -> 5.777354309 | BO109: =BG109*$AW109 -> 11.55470862 | BP109: =$D$60/3600 -> 0.025 | BQ109: =BP109*$AP109 -> 35.8955053 | BR109: =BP109*$AQ109 -> 2.998789081 | BS109: =BP109*$AR109 -> 3.50735565 | BT109: =BP109*$AS109 -> 9.506161386 | BU109: =BP109*$AT109 -> 90.70446265 | BV109: =BP109*$AU109 -> 57.77354309 | BW109: =BP109*$AV109 -> 5.777354309 | BX109: =BP109*$AW109 -> 11.55470862 | BY109: =$D$61/3600 -> 0 | BZ109: =BY109*$AP109 -> 0 | CA109: =BY109*$AQ109 -> 0 | CB109: =BY109*$AR109 -> 0 | CC109: =BY109*$AS109 -> 0 | CD109: =BY109*$AT109 -> 0 | CE109: =BY109*$AU109 -> 0 | CF109: =BY109*$AV109 -> 0 | CG109: =BY109*$AW109 -> 0 | CH109: =$D$62/3600 -> 0 | CI109: =CH109*$AP109 -> 0 | CJ109: =CH109*$AQ109 -> 0 | CK109: =CH109*$AR109 -> 0 | CL109: =CH109*$AS109 -> 0 | CM109: =CH109*$AT109 -> 0 | CN109: =CH109*$AU109 -> 0 | CO109: =CH109*$AV109 -> 0 | CP109: =CH109*$AW109 -> 0 | CR109: Hours | CS109: kWh | CT109: Fuel consumed, kg | CU109: Fuel consumed, liters | CV109: CO2, kg | CW109: Nox, g | CX109: CO, g | CY109: PM, g | CZ109: SO, g | DA109: Hours | DB109: kWh | DC109: Fuel consumed, kg | DD109: Fuel consumed, liters | DE109: CO2, kg | DF109: Nox, g | DG109: CO, g | DH109: PM, g | DI109: SO, g | DJ109: Hours | DK109: kWh | DL109: Hours | DM109: kWh | DN109: Fuel consumed, kg | DO109: Fuel consumed, liters | DP109: CO2, kg | DQ109: Nox, g | DR109: CO, g | DS109: PM, g | DT109: SO, g
A110: Port 3 | B110: 4000 | C110: 10 | D110: 15.43333333 | E110: 4 | F110: =F70 -> 3.3 | G110: 12.82937365 | H110: =H70 -> 900.4239922 | I110: 60 | J110: =H110/Data!$L$19 -> 1186.159662 | K110: =I110/Data!$L$30 -> 74.37671038 | L110: =IF(J110+K110-J94>0,J110+K110-J94,0) -> 463.2181902 | M110: =IFERROR(L110/$C$104,0) -> 0.2652130932 | N110: =$C$88+($D$88*M110)+($E$88*(M110^2))+($F$88*(M110^3))+($G$88*(M110^4))+($H$88*(M110^5))+($I$88*(M110^6)) -> 0.3220428151 | O110: 1438.374553 | P110: 120.1649584 | Q110: 140.5438111 | R110: =P110*'B2'!$E$41 -> 380.9229183 | S110: =$L110*'B2'!$E$41 -> 1468.401663 | T110: =$L110*'B2'!$I$41 -> 2316.090951 | U110: =$L110*'B2'!$K$41 -> 231.6090951 | V110: =$L110*'B2'!$M$41 -> 463.2181902 | W110: 0.2572222222 | X110: 369.9818988 | Z110: 36.1509914 | AA110: 97.98183954 | AB110: 377.7055388 | AC110: 595.7500612 | AD110: 59.57500612 | AE110: 119.1500122 | AH110: Leaving Harbour | AI110: =$E$56 -> 263.1578947 | AJ110: 277.0083102 | AK110: ='B2'!$K$32 -> 60 | AL110: 74.37671038 | AM110: 351.3850206 | AN110: 0.2011836111 | AO110: =$C$88+($D$88*AN110)+($E$88*(AN110^2))+($F$88*(AN110^3))+($G$88*(AN110^4))+($H$88*(AN110^5))+($I$88*(AN110^6)) -> 0.3031834295 | AP110: 1158.984913 | AQ110: 96.82413643 | AR110: 113.244604 | AS110: =AQ110*'B2'!$E$41 -> 306.9325125 | AT110: =AM110*'B2'!$G$41 -> 2758.372412 | AU110: =AM110*'B2'!$I$41 -> 1756.925103 | AV110: =AM110*'B2'!$K$41 -> 175.6925103 | AW110: =AM110*'B2'!$M$41 -> 351.3850206 | AX110: =$E$58/3600 -> 0.008333333333 | AY110: 9.658207609 | AZ110: 0.8068678036 | BA110: 0.9437050334 | BB110: 2.557770937 | BC110: 22.98643677 | BD110: 14.64104253 | BE110: 1.464104253 | BF110: 2.928208505 | BG110: =$E$59/3600 -> 0.008333333333 | BH110: 9.658207609 | BI110: 0.8068678036 | BJ110: 0.9437050334 | BK110: 2.557770937 | BL110: 22.98643677 | BM110: 14.64104253 | BN110: 1.464104253 | BO110: 2.928208505 | BP110: =$E$60/3600 -> 0.008333333333 | BQ110: 9.658207609 | BR110: 0.8068678036 | BS110: 0.9437050334 | BT110: 2.557770937 | BU110: 22.98643677 | BV110: 14.64104253 | BW110: 1.464104253 | BX110: 2.928208505 | BY110: =$E$61/3600 -> 0 | BZ110: 0 | CA110: 0 | CB110: 0 | CC110: 0 | CD110: 0 | CE110: 0 | CF110: 0 | CG110: 0 | CH110: =$E$62/3600 -> 0 | CI110: 0 | CJ110: 0 | CK110: 0 | CL110: 0 | CM110: 0 | CN110: 0 | CO110: 0 | CP110: 0 | CR110: =SUM(AX114,BG114,BP114,BY114,CH114) -> 0.3283333333 | CS110: =SUM(AY114,BH114,BQ114,BZ114,CI114) -> 465.7540164 | CT110: =SUM(AZ114,BI114,BR114,CA114,CJ114) -> 38.91010998 | CU110: =SUM(BA114,BJ114,BS114,CB114,CK114) -> 45.50890056 | CV110: =SUM(BB114,BK114,BT114,CC114,CL114) -> 123.3450486 | CW110: =SUM(BC114,BL114,BU114,CD114,CM114) -> 1194.876135 | CX110: =SUM(BD114,BM114,BV114,CE114,CN114) -> 761.0676019 | CY110: =SUM(BE114,BN114,BW114,CF114,CO114) -> 76.10676019 | CZ110: =SUM(BF114,BO114,BX114,CG114,CP114) -> 152.2135204 | DA110: =W113 -> 0.6883333333 | DB110: =X113 -> 1777.348821 | DC110: =Y113 -> 51.37463875 | DD110: =Z113 -> 173.6650418 | DE110: =AA113 -> 470.6930461 | DF110: =AB113 -> 2017.291727 | DG110: =AC113 -> 3181.84815 | DH110: =AD113 -> 318.184815 | DI110: =AE113 -> 636.36963 | DJ110: =SUM($J$57:$J$62) -> 0.5 | DK110: =SUM($I$57:$I$62) -> 30 | DL110: =DJ110+DA110+CR110 -> 1.516666667 | DM110: =DK110+DB110+CS110+DG114 -> 4243.102837 | DN110: =DC110+CT110 -> 90.28474873 | DO110: =DD110+CU110 -> 219.1739424 | DP110: =DE110+CV110 -> 594.0380947 | DQ110: =DF110+CW110 -> 3212.167862 | DR110: =DG110+CX110 -> 3942.915752 | DS110: =DH110+CY110 -> 394.2915752 | DT110: =DI110+CZ110 -> 788.5831504
B111: 0 | C111: 0 | D111: 0 | E111: 0 | F111: =F71 -> 0 | G111: 0 | H111: =H71 -> 0 | I111: 0 | J111: =H111/Data!$L$19 -> 0 | K111: =I111/Data!$L$30 -> 0 | L111: 0 | M111: 0 | N111: 0.1667 | O111: 0 | P111: 0 | Q111: 0 | R111: =P111*'B2'!$E$41 -> 0 | S111: =$L111*'B2'!$E$41 -> 0 | T111: =$L111*'B2'!$I$41 -> 0 | U111: =$L111*'B2'!$K$41 -> 0 | V111: =$L111*'B2'!$M$41 -> 0 | W111: 0 | X111: 0 | Z111: 0 | AA111: 0 | AB111: 0 | AC111: 0 | AD111: 0 | AE111: 0 | AH111: Acceleration | AI111: =$F$56 -> 736.8421053 | AJ111: 775.6232687 | AK111: ='B2'!$K$32 -> 60 | AL111: 74.37671038 | AM111: 849.9999791 | AN111: 0.4866629345 | AO111: 0.3556599666 | AP111: 2389.923126 | AQ111: 199.659409 | AR111: 233.5197766 | AS111: =AQ111*'B2'!$E$41 -> 632.9203265 | AT111: =AM111*'B2'!$G$41 -> 6672.499836 | AU111: =AM111*'B2'!$I$41 -> 4249.999895 | AV111: =AM111*'B2'!$K$41 -> 424.9999895 | AW111: =AM111*'B2'!$M$41 -> 849.9999791 | AX111: =$F$58/3600 -> 0.03444444444 | AY111: 82.31957433 | AZ111: 6.877157421 | BA111: 8.043458972 | BB111: 21.80058902 | BC111: 229.8305499 | BD111: 146.3888853 | BE111: 14.63888853 | BF111: 29.27777706 | BG111: =$F$59/3600 -> 0.03444444444 | BH111: 82.31957433 | BI111: 6.877157421 | BJ111: 8.043458972 | BK111: 21.80058902 | BL111: 229.8305499 | BM111: 146.3888853 | BN111: 14.63888853 | BO111: 29.27777706 | BP111: =$F$60/3600 -> 0.03444444444 | BQ111: 82.31957433 | BR111: 6.877157421 | BS111: 8.043458972 | BT111: 21.80058902 | BU111: 229.8305499 | BV111: 146.3888853 | BW111: 14.63888853 | BX111: 29.27777706 | BY111: =$F$61/3600 -> 0 | BZ111: 0 | CA111: 0 | CB111: 0 | CC111: 0 | CD111: 0 | CE111: 0 | CF111: 0 | CG111: 0 | CH111: =$F$62/3600 -> 0 | CI111: 0 | CJ111: 0 | CK111: 0 | CL111: 0 | CM111: 0 | CN111: 0 | CO111: 0 | CP111: 0
B112: 0 | C112: 0 | D112: 0 | E112: 0 | F112: =F72 -> 0 | G112: 0 | H112: =H72 -> 0 | I112: 0 | J112: =H112/Data!$L$19 -> 0 | K112: =I112/Data!$L$30 -> 0 | L112: 0 | M112: 0 | N112: 0.1667 | O112: 0 | P112: 0 | Q112: 0 | R112: =P112*'B2'!$E$41 -> 0 | S112: =$L112*'B2'!$E$41 -> 0 | T112: =$L112*'B2'!$I$41 -> 0 | U112: =$L112*'B2'!$K$41 -> 0 | V112: =$L112*'B2'!$M$41 -> 0 | W112: 0 | X112: 0 | Z112: 0 | AA112: 0 | AB112: 0 | AC112: 0 | AD112: 0 | AE112: 0 | AH112: Passive Retardation | AI112: =$G$56 -> 57.89473684 | AJ112: 60.94182825 | AK112: ='B2'!$K$32 -> 60 | AL112: 74.37671038 | AM112: 135.3185386 | AN112: 0.07747590438 | AO112: 0.2386762263 | AP112: 566.9544083 | AQ112: 47.36461222 | AR112: 55.39720728 | AS112: =AQ112*'B2'!$E$41 -> 150.1458208 | AT112: =AM112*'B2'!$G$41 -> 1062.250528 | AU112: =AM112*'B2'!$I$41 -> 676.5926932 | AV112: =AM112*'B2'!$K$41 -> 67.65926932 | AW112: =AM112*'B2'!$M$41 -> 135.3185386 | AX112: =$G$58/3600 -> 0.03333333333 | AY112: 18.89848028 | AZ112: 1.578820407 | BA112: 1.846573576 | BB112: 5.004860692 | BC112: 35.40835094 | BD112: 22.55308977 | BE112: 2.255308977 | BF112: 4.510617955 | BG112: =$G$59/3600 -> 0.03333333333 | BH112: 18.89848028 | BI112: 1.578820407 | BJ112: 1.846573576 | BK112: 5.004860692 | BL112: 35.40835094 | BM112: 22.55308977 | BN112: 2.255308977 | BO112: 4.510617955 | BP112: =$G$60/3600 -> 0.03333333333 | BQ112: 18.89848028 | BR112: 1.578820407 | BS112: 1.846573576 | BT112: 5.004860692 | BU112: 35.40835094 | BV112: 22.55308977 | BW112: 2.255308977 | BX112: 4.510617955 | BY112: =$G$61/3600 -> 0 | BZ112: 0 | CA112: 0 | CB112: 0 | CC112: 0 | CD112: 0 | CE112: 0 | CF112: 0 | CG112: 0 | CH112: =$G$62/3600 -> 0 | CI112: 0 | CJ112: 0 | CK112: 0 | CL112: 0 | CM112: 0 | CN112: 0 | CO112: 0 | CP112: 0
W113: =SUM(W108:W112) -> 0.6883333333 | X113: =SUM(X108:X112) -> 1777.348821 | Y113: =SUM(Y108:Y112) -> 51.37463875 | Z113: =SUM(Z108:Z112) -> 173.6650418 | AA113: =SUM(AA108:AA112) -> 470.6930461 | AB113: =SUM(AB108:AB112) -> 2017.291727 | AC113: =SUM(AC108:AC112) -> 3181.84815 | AD113: =SUM(AD108:AD112) -> 318.184815 | AE113: =SUM(AE108:AE112) -> 636.36963 | AH113: Active Retardation | AI113: =$H$56 -> 210.5263158 | AJ113: 221.6066482 | AK113: ='B2'!$K$32 -> 60 | AL113: 74.37671038 | AM113: 295.9833586 | AN113: 0.1694636863 | AO113: 0.2908788546 | AP113: 1017.548556 | AQ113: 85.00823362 | AR113: 99.42483464 | AS113: =AQ113*'B2'!$E$41 -> 269.4761006 | AT113: =AM113*'B2'!$G$41 -> 2323.469365 | AU113: =AM113*'B2'!$I$41 -> 1479.916793 | AV113: =AM113*'B2'!$K$41 -> 147.9916793 | AW113: =AM113*'B2'!$M$41 -> 295.9833586 | AX113: =$H$58/3600 -> 0.008333333333 | AY113: 8.479571303 | AZ113: 0.7084019468 | BA113: 0.8285402887 | BB113: 2.245634171 | BC113: 19.36224471 | BD113: 12.33263994 | BE113: 1.233263994 | BF113: 2.466527988 | BG113: =$H$59/3600 -> 0.008333333333 | BH113: 8.479571303 | BI113: 0.7084019468 | BJ113: 0.8285402887 | BK113: 2.245634171 | BL113: 19.36224471 | BM113: 12.33263994 | BN113: 1.233263994 | BO113: 2.466527988 | BP113: =$H$60/3600 -> 0.008333333333 | BQ113: 8.479571303 | BR113: 0.7084019468 | BS113: 0.8285402887 | BT113: 2.245634171 | BU113: 19.36224471 | BV113: 12.33263994 | BW113: 1.233263994 | BX113: 2.466527988 | BY113: =$H$61/3600 -> 0 | BZ113: 0 | CA113: 0 | CB113: 0 | CC113: 0 | CD113: 0 | CE113: 0 | CF113: 0 | CG113: 0 | CH113: =$H$62/3600 -> 0 | CI113: 0 | CJ113: 0 | CK113: 0 | CL113: 0 | CM113: 0 | CN113: 0 | CO113: 0 | CP113: 0 | DG113: From Battery
AX114: =SUM(AX108:AX113) -> 0.1094444444 | AY114: =SUM(AY108:AY113) -> 155.2513388 | AZ114: =SUM(AZ108:AZ113) -> 12.97003666 | BA114: =SUM(BA108:BA113) -> 15.16963352 | BB114: =SUM(BB108:BB113) -> 41.11501621 | BC114: =SUM(BC108:BC113) -> 398.292045 | BD114: =SUM(BD108:BD113) -> 253.6892006 | BE114: =SUM(BE108:BE113) -> 25.36892006 | BF114: =SUM(BF108:BF113) -> 50.73784012 | BG114: =SUM(BG108:BG113) -> 0.1094444444 | BH114: =SUM(BH108:BH113) -> 155.2513388 | BI114: =SUM(BI108:BI113) -> 12.97003666 | BJ114: =SUM(BJ108:BJ113) -> 15.16963352 | BK114: =SUM(BK108:BK113) -> 41.11501621 | BL114: =SUM(BL108:BL113) -> 398.292045 | BM114: =SUM(BM108:BM113) -> 253.6892006 | BN114: =SUM(BN108:BN113) -> 25.36892006 | BO114: =SUM(BO108:BO113) -> 50.73784012 | BP114: =SUM(BP108:BP113) -> 0.1094444444 | BQ114: =SUM(BQ108:BQ113) -> 155.2513388 | BR114: =SUM(BR108:BR113) -> 12.97003666 | BS114: =SUM(BS108:BS113) -> 15.16963352 | BT114: =SUM(BT108:BT113) -> 41.11501621 | BU114: =SUM(BU108:BU113) -> 398.292045 | BV114: =SUM(BV108:BV113) -> 253.6892006 | BW114: =SUM(BW108:BW113) -> 25.36892006 | BX114: =SUM(BX108:BX113) -> 50.73784012 | BY114: =SUM(BY108:BY113) -> 0 | BZ114: =SUM(BZ108:BZ113) -> 0 | CA114: =SUM(CA108:CA113) -> 0 | CB114: =SUM(CB108:CB113) -> 0 | CC114: =SUM(CC108:CC113) -> 0 | CD114: =SUM(CD108:CD113) -> 0 | CE114: =SUM(CE108:CE113) -> 0 | CF114: =SUM(CF108:CF113) -> 0 | CG114: =SUM(CG108:CG113) -> 0 | CH114: =SUM(CH108:CH113) -> 0 | CI114: =SUM(CI108:CI113) -> 0 | CJ114: =SUM(CJ108:CJ113) -> 0 | CK114: =SUM(CK108:CK113) -> 0 | CL114: =SUM(CL108:CL113) -> 0 | CM114: =SUM(CM108:CM113) -> 0 | CN114: =SUM(CN108:CN113) -> 0 | CO114: =SUM(CO108:CO113) -> 0 | CP114: =SUM(CP108:CP113) -> 0 | CR114: Roundtrips | CT114: ='B1'!$E$23 -> 18 | CV114: Hours in harbour | CX114: =24-(CT114*$DL$83) -> -3.3 | CZ114: Assuming shore connection | DC114: ='B2'!$K$32*CX114 -> -198 | DD114: kWh | DG114: =SUM(C96:C100) -> 1970 | DH114: kWh
A115: Results calculations
A116: LNG Constant RPM | AX116: PORT 1 | BG116: PORT 2 | BP116: PORT 3 | BY116: PORT 4 | CH116: PORT 5
B117: Shore charging | C117: Time in port | D117: Transit to next port | E117: Distance to next port | F117: Distance to next port, manouevring | G117: Speed | H117: Propeller power | I117: Hotel power | J117: Propeller incl losses | K117: Hotel incl power | L117: Total Power | M117: Relative Load | N117: Thermal Efficiency | O117: Energy Consumed | P117: Fuel Consumed | Q117: Liters | R117: CO2, kg | S117: Nox, g | T117: CO, g | U117: PM, g | V117: SO, g | W117: Hours | X117: kWh | Y117: Fuel consumed, kg | Z117: Fuel consumed, liters | AA117: CO2, kg | AB117: Nox, g | AC117: CO, g | AD117: PM, g | AE117: SO, g | AG117: PORTS | AI117: Propeller power | AJ117: Incl losses | AK117: Hotel | AL117: Incl losses | AM117: Total Power | AN117: Relative Load | AO117: Thermal Efficiency | AP117: Energy Consumed | AQ117: Fuel Consumed, kg | AR117: Liters | AS117: CO2, kg | AT117: Nox, g | AU117: CO, g | AV117: PM, g | AW117: SO, g | AX117: Hours | AY117: kWh | AZ117: Fuel consumed, kg | BA117: Fuel consumed, liters | BB117: CO2, kg | BC117: Nox, g | BD117: CO, g | BE117: PM, g | BF117: SO, g | BG117: Hours | BH117: kWh | BI117: Fuel consumed, kg | BJ117: Fuel consumed, liters | BK117: CO2, kg | BL117: Nox, g | BM117: CO, g | BN117: PM, g | BO117: SO, g | BP117: Hours | BQ117: kWh | BR117: Fuel consumed, kg | BS117: Fuel consumed, liters | BT117: CO2, kg | BU117: Nox, g | BV117: CO, g | BW117: PM, g | BX117: SO, g | BY117: Hours | BZ117: kWh | CA117: Fuel consumed, kg | CB117: Fuel consumed, liters | CC117: CO2, kg | CD117: Nox, g | CE117: CO, g | CF117: PM, g | CG117: SO, g | CH117: Hours | CI117: kWh | CJ117: Fuel consumed, kg | CK117: Fuel consumed, liters | CL117: CO2, kg | CM117: Nox, g | CN117: CO, g | CO117: PM, g | CP117: SO, g
A118: =A68 -> Port 1 | B118: =B68 -> 4000 | C118: 10 | D118: 13.43333333 | E118: 4 | F118: =F68 -> 3.3 | G118: 14.73945409 | H118: 1365.447143 | I118: 60 | J118: 1437.312782 | K118: 70.65787486 | L118: =L68 -> 1507.970657 | M118: =L118/'B2'!$C$32 -> 0.534600942 | N118: =$C$125+($D$125*M118)+($E$125*(M118^2))+($F$125*(M118^3))+($G$125*(M118^4))+($H$125*(M118^5))+($I$125*(M118^6)) -> 0.4593853166 | O118: =L118/N118 -> 3282.583493 | P118: =O118/$L$125 -> 239.7796562 | R118: =P118*'B2'!$E$42 -> 660.8327324 | S118: =$L118*'B2'!$G$42 -> 2261.955986 | T118: =$L118*'B2'!$I$42 -> 75.39853285 | U118: =$L118*'B2'!$K$42 -> 7.539853285 | V118: =$L118*'B2'!$M$42 -> 15.07970657 | W118: =L49/60 -> 0.2238888889 | X118: =$W118*O118 -> 734.9339709 | Y118: =$W118*P118 -> 53.6840008 | Z118: =$W118*Q118 -> 0 | AA118: =$W118*R118 -> 147.9531062 | AB118: =$W118*S118 -> 506.4268123 | AC118: =$W118*T118 -> 16.88089374 | AD118: =$W118*U118 -> 1.688089374 | AE118: =$W118*V118 -> 3.376178749 | AH118: Loading | AI118: =$C$56 -> 0 | AJ118: =AI118/$L$19 -> 0 | AK118: =IF(B118>'B2'!$K$32,0,'B2'!$K$32) -> 0 | AL118: =AK118/$L$30 -> 0 | AM118: =AJ118+AL118 -> 0 | AN118: =AM118/'B2'!$C$32 -> 0 | AO118: =$C$125+($D$125*AN118)+($E$125*(AN118^2))+($F$125*(AN118^3))+($G$125*(AN118^4))+($H$125*(AN118^5))+($I$125*(AN118^6)) -> 0.1406 | AP118: =AM118/AO118 -> 0 | AQ118: =AP118/$L$125 -> 0 | AS118: =AQ118*'B2'!$E$42 -> 0 | AT118: =AM118*'B2'!$G$42 -> 0 | AU118: =AM118*'B2'!$I$42 -> 0 | AV118: =AM118*'B2'!$K$42 -> 0 | AW118: =AM118*'B2'!$M$42 -> 0 | AX118: =IF('B1'!$E$16>0,0,C95/3600) -> 0 | AY118: =AX118*$AP118 -> 0 | AZ118: =AX118*$AQ118 -> 0 | BA118: =AX118*$AR118 -> 0 | BB118: =AX118*$AS118 -> 0 | BC118: =AX118*$AT118 -> 0 | BD118: =AX118*$AU118 -> 0 | BE118: =AX118*$AV118 -> 0 | BF118: =AX118*$AW118 -> 0 | BG118: =IF('B1'!$E$16>0,0,$C$59/3600) -> 0 | BH118: =BG118*$AP118 -> 0 | BI118: =BG118*$AQ118 -> 0 | BJ118: =BG118*$AR118 -> 0 | BK118: =BG118*$AS118 -> 0 | BL118: =BG118*$AT118 -> 0 | BM118: =BG118*$AU118 -> 0 | BN118: =BG118*$AV118 -> 0 | BO118: =BG118*$AW118 -> 0 | BP118: =IF('B1'!$E$16>0,0,$C$60/3600) -> 0 | BQ118: =BP118*$AP118 -> 0 | BR118: =BP118*$AQ118 -> 0 | BS118: =BP118*$AR118 -> 0 | BT118: =BP118*$AS118 -> 0 | BU118: =BP118*$AT118 -> 0 | BV118: =BP118*$AU118 -> 0 | BW118: =BP118*$AV118 -> 0 | BX118: =BP118*$AW118 -> 0 | BY118: =IF('B1'!$E$16>0,0,$C$61/3600) -> 0 | BZ118: =BY118*$AP118 -> 0 | CA118: =BY118*$AQ118 -> 0 | CB118: =BY118*$AR118 -> 0 | CC118: =BY118*$AS118 -> 0 | CD118: =BY118*$AT118 -> 0 | CE118: =BY118*$AU118 -> 0 | CF118: =BY118*$AV118 -> 0 | CG118: =BY118*$AW118 -> 0 | CH118: =IF('B1'!$E$16>0,0,$C$62/3600) -> 0 | CI118: =CH118*$AP118 -> 0 | CJ118: =CH118*$AQ118 -> 0 | CK118: =CH118*$AR118 -> 0 | CL118: =CH118*$AS118 -> 0 | CM118: =CH118*$AT118 -> 0 | CN118: =CH118*$AU118 -> 0 | CO118: =CH118*$AV118 -> 0 | CP118: =CH118*$AW118 -> 0 | CR118: In and out of port | DA118: TRANSIT | DJ118: SHORE POWER | DL118: Overall
A119: =A69 -> Port 2 | B119: 4000 | C119: 10 | D119: 12.43333333 | E119: 4 | F119: 3.3 | G119: 15.92493298 | H119: 1722.120498 | I119: 60 | J119: 1812.758419 | K119: 70.65787486 | L119: =L69 -> 1883.416294 | M119: =L119/'B2'!$C$32 -> 0.6677027302 | N119: =$C$125+($D$125*M119)+($E$125*(M119^2))+($F$125*(M119^3))+($G$125*(M119^4))+($H$125*(M119^5))+($I$125*(M119^6)) -> 0.4744649297 | O119: =L119/N119 -> 3969.558499 | P119: =O119/$L$75 -> 331.6256056 | R119: =P119*'B2'!$E$42 -> 913.9601689 | S119: =$L119*'B2'!$G$42 -> 2825.124441 | T119: =$L119*'B2'!$I$42 -> 94.1708147 | U119: =$L119*'B2'!$K$42 -> 9.41708147 | V119: =$L119*'B2'!$M$42 -> 18.83416294 | W119: =L50/60 -> 0.2072222222 | X119: =W119*O119 -> 822.5807333 | Z119: 0 | AA119: 189.3928572 | AB119: 585.4285647 | AC119: 19.51428549 | AD119: 1.951428549 | AE119: 3.902857098 | AH119: Entering Harbour | AI119: =$D$56 -> 368.4210526 | AJ119: =AI119/$L$19 -> 485.3337926 | AK119: ='B2'!$K$32 -> 60 | AL119: =AK119/$L$30 -> 74.37671038 | AM119: =AJ119+AL119 -> 559.710503 | AN119: =AM119/'B2'!$C$32 -> 0.1984267802 | AO119: =$C$125+($D$125*AN119)+($E$125*(AN119^2))+($F$125*(AN119^3))+($G$125*(AN119^4))+($H$125*(AN119^5))+($I$125*(AN119^6)) -> 0.3654397131 | AP119: =AM119/AO119 -> 1531.608314 | AQ119: =AP119/$L$125 -> 111.87789 | AS119: =AQ119*'B2'!$E$42 -> 308.3354649 | AT119: =AM119*'B2'!$G$42 -> 839.5657545 | AU119: =AM119*'B2'!$I$42 -> 27.98552515 | AV119: =AM119*'B2'!$K$42 -> 2.798552515 | AW119: =AM119*'B2'!$M$42 -> 5.59710503 | AX119: =$D$58/3600 -> 0.025 | AY119: =AX119*$AP119 -> 38.29020786 | AZ119: =AX119*$AQ119 -> 2.79694725 | BA119: =AX119*$AR119 -> 0 | BB119: =AX119*$AS119 -> 7.708386622 | BC119: =AX119*$AT119 -> 20.98914386 | BD119: =AX119*$AU119 -> 0.6996381287 | BE119: =AX119*$AV119 -> 0.06996381287 | BF119: =AX119*$AW119 -> 0.1399276257 | BG119: =$D$59/3600 -> 0.025 | BH119: =BG119*$AP119 -> 38.29020786 | BI119: =BG119*$AQ119 -> 2.79694725 | BJ119: =BG119*$AR119 -> 0 | BK119: =BG119*$AS119 -> 7.708386622 | BL119: =BG119*$AT119 -> 20.98914386 | BM119: =BG119*$AU119 -> 0.6996381287 | BN119: =BG119*$AV119 -> 0.06996381287 | BO119: =BG119*$AW119 -> 0.1399276257 | BP119: =$D$60/3600 -> 0.025 | BQ119: =BP119*$AP119 -> 38.29020786 | BR119: =BP119*$AQ119 -> 2.79694725 | BS119: =BP119*$AR119 -> 0 | BT119: =BP119*$AS119 -> 7.708386622 | BU119: =BP119*$AT119 -> 20.98914386 | BV119: =BP119*$AU119 -> 0.6996381287 | BW119: =BP119*$AV119 -> 0.06996381287 | BX119: =BP119*$AW119 -> 0.1399276257 | BY119: =$D$61/3600 -> 0 | BZ119: =BY119*$AP119 -> 0 | CA119: =BY119*$AQ119 -> 0 | CB119: =BY119*$AR119 -> 0 | CC119: =BY119*$AS119 -> 0 | CD119: =BY119*$AT119 -> 0 | CE119: =BY119*$AU119 -> 0 | CF119: =BY119*$AV119 -> 0 | CG119: =BY119*$AW119 -> 0 | CH119: =$D$62/3600 -> 0 | CI119: =CH119*$AP119 -> 0 | CJ119: =CH119*$AQ119 -> 0 | CK119: =CH119*$AR119 -> 0 | CL119: =CH119*$AS119 -> 0 | CM119: =CH119*$AT119 -> 0 | CN119: =CH119*$AU119 -> 0 | CO119: =CH119*$AV119 -> 0 | CP119: =CH119*$AW119 -> 0 | CR119: Hours | CS119: kWh | CT119: Fuel consumed, kg | CU119: Fuel consumed, liters | CV119: CO2, kg | CW119: Nox, g | CX119: CO, g | CY119: PM, g | CZ119: SO, g | DA119: Hours | DB119: kWh | DC119: Fuel consumed, kg | DD119: Fuel consumed, liters | DE119: CO2, kg | DF119: Nox, g | DG119: CO, g | DH119: PM, g | DI119: SO, g | DJ119: Hours | DK119: kWh | DL119: Hours | DM119: kWh | DN119: Fuel consumed, kg | DO119: Fuel consumed, liters | DP119: CO2, kg | DQ119: Nox, g | DR119: CO, g | DS119: PM, g | DT119: SO, g
A120: Port 3 | B120: 4000 | C120: 10 | D120: 15.43333333 | E120: 4 | F120: 3.3 | G120: 12.82937365 | H120: 900.4239922 | I120: 60 | J120: 947.8147287 | K120: 70.65787486 | L120: =L70 -> 1018.472604 | M120: =L120/'B2'!$C$32 -> 0.3610656551 | N120: 0.4321291066 | O120: 2356.871102 | P120: 196.8981706 | R120: =P120*'B2'!$E$42 -> 542.6513581 | S120: =$L120*'B2'!$G$42 -> 1527.708905 | T120: =$L120*'B2'!$I$42 -> 50.92363018 | U120: =$L120*'B2'!$K$42 -> 5.092363018 | V120: =$L120*'B2'!$M$42 -> 10.18472604 | W120: 0.2572222222 | X120: 606.2396223 | Z120: 0 | AA120: 139.5819882 | AB120: 392.9606795 | AC120: 13.09868932 | AD120: 1.309868932 | AE120: 2.619737864 | AH120: Leaving Harbour | AI120: =$E$56 -> 263.1578947 | AJ120: 346.6669947 | AK120: ='B2'!$K$32 -> 60 | AL120: 74.37671038 | AM120: 421.0437051 | AN120: =AM120/'B2'!$C$32 -> 0.1492670698 | AO120: 0.3289969958 | AP120: 1279.779787 | AQ120: 93.4828186 | AS120: =AQ120*'B2'!$E$42 -> 257.6386481 | AT120: =AM120*'B2'!$G$42 -> 631.5655577 | AU120: =AM120*'B2'!$I$42 -> 21.05218526 | AV120: =AM120*'B2'!$K$42 -> 2.105218526 | AW120: =AM120*'B2'!$M$42 -> 4.210437051 | AX120: =$E$58/3600 -> 0.008333333333 | AY120: 10.66483156 | AZ120: 0.7790234883 | BA120: 0 | BB120: 2.146988734 | BC120: 5.263046314 | BD120: 0.1754348771 | BE120: 0.01754348771 | BF120: 0.03508697543 | BG120: =$E$59/3600 -> 0.008333333333 | BH120: 10.66483156 | BI120: 0.7790234883 | BJ120: 0 | BK120: 2.146988734 | BL120: 5.263046314 | BM120: 0.1754348771 | BN120: 0.01754348771 | BO120: 0.03508697543 | BP120: =$E$60/3600 -> 0.008333333333 | BQ120: 10.66483156 | BR120: 0.7790234883 | BS120: 0 | BT120: 2.146988734 | BU120: 5.263046314 | BV120: 0.1754348771 | BW120: 0.01754348771 | BX120: 0.03508697543 | BY120: =$E$61/3600 -> 0 | BZ120: 0 | CA120: 0 | CB120: 0 | CC120: 0 | CD120: 0 | CE120: 0 | CF120: 0 | CG120: 0 | CH120: =$E$62/3600 -> 0 | CI120: 0 | CJ120: 0 | CK120: 0 | CL120: 0 | CM120: 0 | CN120: 0 | CO120: 0 | CP120: 0 | CR120: =SUM(AX124,BG124,BP124,BY124,CH124) -> 0.3283333333 | CS120: =SUM(AY124,BH124,BQ124,BZ124,CI124) -> 491.4316667 | CT120: =SUM(AZ124,BI124,BR124,CA124,CJ124) -> 35.89712686 | CU120: =SUM(BA124,BJ124,BS124,CB124,CK124) -> 0 | CV120: =SUM(BB124,BK124,BT124,CC124,CL124) -> 98.93248162 | CW120: =SUM(BC124,BL124,BU124,CD124,CM124) -> 276.5240902 | CX120: =SUM(BD124,BM124,BV124,CE124,CN124) -> 9.217469674 | CY120: =SUM(BE124,BN124,BW124,CF124,CO124) -> 0.9217469674 | CZ120: =SUM(BF124,BO124,BX124,CG124,CP124) -> 1.843493935 | DA120: =W123 -> 0.6883333333 | DB120: =X123 -> 2163.754326 | DC120: =Y123 -> 53.6840008 | DD120: =Z123 -> 0 | DE120: =AA123 -> 476.9279516 | DF120: =AB123 -> 1484.816057 | DG120: =AC123 -> 49.49386855 | DH120: =AD123 -> 4.949386855 | DI120: =AE123 -> 9.89877371 | DJ120: =SUM($J$57:$J$62) -> 0.5 | DK120: =SUM($I$57:$I$62) -> 30 | DL120: =DJ120+DA120+CR120 -> 1.516666667 | DM120: =DK120+DB120+CS120 -> 2685.185993 | DN120: =DC120+CT120 -> 89.58112765 | DO120: =DD120+CU120 -> 0 | DP120: =DE120+CV120 -> 575.8604333 | DQ120: =DF120+CW120 -> 1761.340147 | DR120: =DG120+CX120 -> 58.71133822 | DS120: =DH120+CY120 -> 5.871133822 | DT120: =DI120+CZ120 -> 11.74226764
B121: 0 | C121: 0 | D121: 0 | E121: 0 | F121: 0 | G121: 0 | H121: 0 | I121: 0 | J121: 0 | K121: 0 | L121: =L71 -> 0 | M121: =L121/'B2'!$C$32 -> 0 | N121: 0.1406 | O121: 0 | P121: 0 | R121: =P121*'B2'!$E$42 -> 0 | S121: =$L121*'B2'!$G$42 -> 0 | T121: =$L121*'B2'!$I$42 -> 0 | U121: =$L121*'B2'!$K$42 -> 0 | V121: =$L121*'B2'!$M$42 -> 0 | W121: 0 | X121: 0 | Z121: 0 | AA121: 0 | AB121: 0 | AC121: 0 | AD121: 0 | AE121: 0 | AH121: Acceleration | AI121: =$F$56 -> 736.8421053 | AJ121: 970.6675852 | AK121: ='B2'!$K$32 -> 60 | AL121: 74.37671038 | AM121: 1045.044296 | AN121: =AM121/'B2'!$C$32 -> 0.3704857666 | AO121: 0.434303415 | AP121: 2406.253922 | AQ121: 175.7672697 | AS121: =AQ121*'B2'!$E$42 -> 484.4145952 | AT121: =AM121*'B2'!$G$42 -> 1567.566443 | AU121: =AM121*'B2'!$I$42 -> 52.25221478 | AV121: =AM121*'B2'!$K$42 -> 5.225221478 | AW121: =AM121*'B2'!$M$42 -> 10.45044296 | AX121: =$F$58/3600 -> 0.03444444444 | AY121: 82.88207952 | AZ121: 6.054205955 | BA121: 0 | BB121: 16.68539161 | BC121: 53.99395527 | BD121: 1.799798509 | BE121: 0.1799798509 | BF121: 0.3599597018 | BG121: =$F$59/3600 -> 0.03444444444 | BH121: 82.88207952 | BI121: 6.054205955 | BJ121: 0 | BK121: 16.68539161 | BL121: 53.99395527 | BM121: 1.799798509 | BN121: 0.1799798509 | BO121: 0.3599597018 | BP121: =$F$60/3600 -> 0.03444444444 | BQ121: 82.88207952 | BR121: 6.054205955 | BS121: 0 | BT121: 16.68539161 | BU121: 53.99395527 | BV121: 1.799798509 | BW121: 0.1799798509 | BX121: 0.3599597018 | BY121: =$F$61/3600 -> 0 | BZ121: 0 | CA121: 0 | CB121: 0 | CC121: 0 | CD121: 0 | CE121: 0 | CF121: 0 | CG121: 0 | CH121: =$F$62/3600 -> 0 | CI121: 0 | CJ121: 0 | CK121: 0 | CL121: 0 | CM121: 0 | CN121: 0 | CO121: 0 | CP121: 0
B122: 0 | C122: 0 | D122: 0 | E122: 0 | F122: 0 | G122: 0 | H122: 0 | I122: 0 | J122: 0 | K122: 0 | L122: =L72 -> 0 | M122: =L122/'B2'!$C$32 -> 0 | N122: 0.1406 | O122: 0 | P122: 0 | R122: =P122*'B2'!$E$42 -> 0 | S122: =$L122*'B2'!$G$42 -> 0 | T122: =$L122*'B2'!$I$42 -> 0 | U122: =$L122*'B2'!$K$42 -> 0 | V122: =$L122*'B2'!$M$42 -> 0 | W122: 0 | X122: 0 | Z122: 0 | AA122: 0 | AB122: 0 | AC122: 0 | AD122: 0 | AE122: 0 | AH122: Passive Retardation | AI122: =$G$56 -> 57.89473684 | AJ122: 76.26673884 | AK122: ='B2'!$K$32 -> 60 | AL122: 74.37671038 | AM122: 150.6434492 | AN122: =AM122/'B2'!$C$32 -> 0.05340563457 | AO122: 0.2239802072 | AP122: 672.5748275 | AQ122: 49.12891362 | AS122: =AQ122*'B2'!$E$42 -> 135.3992859 | AT122: =AM122*'B2'!$G$42 -> 225.9651738 | AU122: =AM122*'B2'!$I$42 -> 7.532172461 | AV122: =AM122*'B2'!$K$42 -> 0.7532172461 | AW122: =AM122*'B2'!$M$42 -> 1.506434492 | AX122: =$G$58/3600 -> 0.03333333333 | AY122: 22.41916092 | AZ122: 1.637630454 | BA122: 0 | BB122: 4.513309532 | BC122: 7.532172461 | BD122: 0.2510724154 | BE122: 0.02510724154 | BF122: 0.05021448307 | BG122: =$G$59/3600 -> 0.03333333333 | BH122: 22.41916092 | BI122: 1.637630454 | BJ122: 0 | BK122: 4.513309532 | BL122: 7.532172461 | BM122: 0.2510724154 | BN122: 0.02510724154 | BO122: 0.05021448307 | BP122: =$G$60/3600 -> 0.03333333333 | BQ122: 22.41916092 | BR122: 1.637630454 | BS122: 0 | BT122: 4.513309532 | BU122: 7.532172461 | BV122: 0.2510724154 | BW122: 0.02510724154 | BX122: 0.05021448307 | BY122: =$G$61/3600 -> 0 | BZ122: 0 | CA122: 0 | CB122: 0 | CC122: 0 | CD122: 0 | CE122: 0 | CF122: 0 | CG122: 0 | CH122: =$G$62/3600 -> 0 | CI122: 0 | CJ122: 0 | CK122: 0 | CL122: 0 | CM122: 0 | CN122: 0 | CO122: 0 | CP122: 0
W123: =SUM(W118:W122) -> 0.6883333333 | X123: =SUM(X118:X122) -> 2163.754326 | Y123: =SUM(Y118:Y122) -> 53.6840008 | Z123: =SUM(Z118:Z122) -> 0 | AA123: =SUM(AA118:AA122) -> 476.9279516 | AB123: =SUM(AB118:AB122) -> 1484.816057 | AC123: =SUM(AC118:AC122) -> 49.49386855 | AD123: =SUM(AD118:AD122) -> 4.949386855 | AE123: =SUM(AE118:AE122) -> 9.89877371 | AH123: Active Retardation | AI123: =$H$56 -> 210.5263158 | AJ123: 277.3335958 | AK123: ='B2'!$K$32 -> 60 | AL123: 74.37671038 | AM123: 351.7103062 | AN123: =AM123/'B2'!$C$32 -> 0.1246872146 | AO123: 0.3067651914 | AP123: 1146.513086 | AQ123: 83.74821663 | AS123: =AQ123*'B2'!$E$42 -> 230.810085 | AT123: =AM123*'B2'!$G$42 -> 527.5654592 | AU123: =AM123*'B2'!$I$42 -> 17.58551531 | AV123: =AM123*'B2'!$K$42 -> 1.758551531 | AW123: =AM123*'B2'!$M$42 -> 3.517103062 | AX123: =$H$58/3600 -> 0.008333333333 | AY123: 9.554275714 | AZ123: 0.6979018053 | BA123: 0 | BB123: 1.923417375 | BC123: 4.396378827 | BD123: 0.1465459609 | BE123: 0.01465459609 | BF123: 0.02930919218 | BG123: =$H$59/3600 -> 0.008333333333 | BH123: 9.554275714 | BI123: 0.6979018053 | BJ123: 0 | BK123: 1.923417375 | BL123: 4.396378827 | BM123: 0.1465459609 | BN123: 0.01465459609 | BO123: 0.02930919218 | BP123: =$H$60/3600 -> 0.008333333333 | BQ123: 9.554275714 | BR123: 0.6979018053 | BS123: 0 | BT123: 1.923417375 | BU123: 4.396378827 | BV123: 0.1465459609 | BW123: 0.01465459609 | BX123: 0.02930919218 | BY123: =$H$61/3600 -> 0 | BZ123: 0 | CA123: 0 | CB123: 0 | CC123: 0 | CD123: 0 | CE123: 0 | CF123: 0 | CG123: 0 | CH123: =$H$62/3600 -> 0 | CI123: 0 | CJ123: 0 | CK123: 0 | CL123: 0 | CM123: 0 | CN123: 0 | CO123: 0 | CP123: 0
C124: =F!C28 -> Const | D124: =F!D28 -> x | E124: =F!E28 -> x2 | F124: =F!F28 -> x3 | G124: =F!G28 -> x4 | H124: =F!H28 -> x5 | I124: =F!I28 -> x6 | AX124: =SUM(AX118:AX123) -> 0.1094444444 | AY124: =SUM(AY118:AY123) -> 163.8105556 | AZ124: =SUM(AZ118:AZ123) -> 11.96570895 | BA124: =SUM(BA118:BA123) -> 0 | BB124: =SUM(BB118:BB123) -> 32.97749387 | BC124: =SUM(BC118:BC123) -> 92.17469674 | BD124: =SUM(BD118:BD123) -> 3.072489891 | BE124: =SUM(BE118:BE123) -> 0.3072489891 | BF124: =SUM(BF118:BF123) -> 0.6144979782 | BG124: =SUM(BG118:BG123) -> 0.1094444444 | BH124: =SUM(BH118:BH123) -> 163.8105556 | BI124: =SUM(BI118:BI123) -> 11.96570895 | BJ124: =SUM(BJ118:BJ123) -> 0 | BK124: =SUM(BK118:BK123) -> 32.97749387 | BL124: =SUM(BL118:BL123) -> 92.17469674 | BM124: =SUM(BM118:BM123) -> 3.072489891 | BN124: =SUM(BN118:BN123) -> 0.3072489891 | BO124: =SUM(BO118:BO123) -> 0.6144979782 | BP124: =SUM(BP118:BP123) -> 0.1094444444 | BQ124: =SUM(BQ118:BQ123) -> 163.8105556 | BR124: =SUM(BR118:BR123) -> 11.96570895 | BS124: =SUM(BS118:BS123) -> 0 | BT124: =SUM(BT118:BT123) -> 32.97749387 | BU124: =SUM(BU118:BU123) -> 92.17469674 | BV124: =SUM(BV118:BV123) -> 3.072489891 | BW124: =SUM(BW118:BW123) -> 0.3072489891 | BX124: =SUM(BX118:BX123) -> 0.6144979782 | BY124: =SUM(BY118:BY123) -> 0 | BZ124: =SUM(BZ118:BZ123) -> 0 | CA124: =SUM(CA118:CA123) -> 0 | CB124: =SUM(CB118:CB123) -> 0 | CC124: =SUM(CC118:CC123) -> 0 | CD124: =SUM(CD118:CD123) -> 0 | CE124: =SUM(CE118:CE123) -> 0 | CF124: =SUM(CF118:CF123) -> 0 | CG124: =SUM(CG118:CG123) -> 0 | CH124: =SUM(CH118:CH123) -> 0 | CI124: =SUM(CI118:CI123) -> 0 | CJ124: =SUM(CJ118:CJ123) -> 0 | CK124: =SUM(CK118:CK123) -> 0 | CL124: =SUM(CL118:CL123) -> 0 | CM124: =SUM(CM118:CM123) -> 0 | CN124: =SUM(CN118:CN123) -> 0 | CO124: =SUM(CO118:CO123) -> 0 | CP124: =SUM(CP118:CP123) -> 0 | CR124: Roundtrips | CT124: ='B1'!$E$23 -> 18 | CV124: Hours in harbour | CX124: =24-(CT124*$DL$83) -> -3.3 | CZ124: Assuming shore connection | DC124: ='B2'!$K$32*CX124 -> -198 | DD124: kWh
B125: LNG Constant RPM | C125: =F!C31 -> 0.1406 | D125: =F!D31 -> 1.7576 | E125: =F!E31 -> -3.8877 | F125: =F!F31 -> 4.0406 | G125: =F!G31 -> -1.5559 | H125: =F!H31 -> 0 | I125: =F!I31 -> 0 | K125: LNG | L125: 13.69 | M125: kWh/kg
A128: Results calculations
A129: LNG Constant - Hybridization | G129: Available Power | H129: C-rate | I129: Losses | J129: Effect left | L129: Energy charged | M129: Energy used per tour | N129: By main engine | O129: % By batteries | P129: % By engine
F130: =B134 -> Port 1 | G130: =IFERROR((IFERROR(IF($C$93>0,IF($C$93*(1-$C$95)<C134,$C$93*(1-$C$95),C134),C134),0)/('B1'!H16/60)),0) -> 900 | H130: =IFERROR(G130/$C$102,0) -> 1.2 | I130: =IF(H130<=0.5,"0,95%",IF(AND(H130<=1,H130>0.5),"1,75%",IF(AND(H130<=1.5,H130>1),"2,55%",IF(AND(H130<=2,H130>1.5),"3,5%",IF(AND(H130<=2.5,H130>2),"4,3%",IF(H130>=2.5,"5,25","")))))) -> 2,55% | J130: =G130*(1-I130) -> 877.05 | L130: =IF(C134<($C$93*(1-$C$95)),C134,($C$93*(1-$C$95))) -> 300 | M130: =X146+AY152+L130 -> 880.1147376 | N130: =X146+AY152 -> 580.1147376 | O130: =IFERROR(L130/M130,0) -> 0.3408646477 | P130: =IFERROR(N130/M130,0) -> 0.6591353523
B131: Forced Battery Size | C131: =C93 -> 500 | F131: =B135 -> Port 2 | G131: =IFERROR((IFERROR(IF($C$93>0,IF($C$93*(1-$C$95)<C135,$C$93*(1-$C$95),C135),C135),0)/('B1'!H17/60)),0) -> 947.3684211 | H131: =IFERROR(G131/$C$102,0) -> 1.263157895 | I131: =IF(H131<=0.5,"0,95%",IF(AND(H131<=1,H131>0.5),"1,75%",IF(AND(H131<=1.5,H131>1),"2,55%",IF(AND(H131<=2,H131>1.5),"3,5%",IF(AND(H131<=2.5,H131>2),"4,3%",IF(H131>=2.5,"5,25","")))))) -> 2,55% | J131: =G131*(1-I131) -> 923.2105263 | L131: =IF(C135<($C$93*(1-$C$95)),C135,($C$93*(1-$C$95))) -> 300 | M131: =X147+$BH$114+L131 -> 1009.248305 | N131: =X147+$BH$114 -> 709.248305 | O131: =IFERROR(L131/M131,0) -> 0.2972509327 | P131: =IFERROR(N131/M131,0) -> 0.7027490673
B132: Cycluses | C132: =Table3[[#Totals],[Shore Connection or not]]*'B1'!E23*365 -> 19710 | F132: Port 3 | G132: =IFERROR((IFERROR(IF($C$93>0,IF($C$93*(1-$C$95)<C136,$C$93*(1-$C$95),C136),C136),0)/('B1'!H18/60)),0) -> 818.1818182 | H132: 1.090909091 | I132: 2,55% | J132: 797.3181818 | L132: 300 | M132: =X148+BQ152+L132 -> 705.5316188 | N132: =X148+BQ152 -> 405.5316188 | O132: 0.4252112762 | P132: 0.5747887238
B133: DOD | C133: =IF(C132<6000,"80%",IF(AND(C132<=9000,C132>=6000),"60%",IF(AND(C132<=14000,C132>=9000),"50%",IF(AND(C132<=22000,C132>=14000),"40%",IF(AND(C132<=41000,C132>=22000),"30%",IF(AND(C132<=95000,C132>=41000),"20%",IF(AND(C132<=160000,C132>=95000),"15%",IF(AND(C132<=360000,C132>=160000),"10%","")))))))) -> 40% | F133: Port 4 | G133: =IFERROR((IFERROR(IF($C$93>0,IF($C$93*(1-$C$95)<C137,$C$93*(1-$C$95),C137),C137),0)/('B1'!H19/60)),0) -> 0 | H133: 0 | I133: 0,95% | J133: 0 | L133: 0 | M133: =X149+BZ152+L133 -> 0 | N133: =X149+BZ152 -> 0 | O133: 0 | P133: 0
B134: Port 1 | C134: =('B1'!E16-'B2'!$K$32)*('B1'!F16/60) -> 656.6666667 | F134: Port 5 | G134: =IFERROR((IFERROR(IF($C$93>0,IF($C$93*(1-$C$95)<C138,$C$93*(1-$C$95),C138),C138),0)/('B1'!H20/60)),0) -> 0 | H134: 0 | I134: 0,95% | J134: 0 | L134: 0 | M134: =X150+CI152+L134 -> 0 | N134: =X150+CI152 -> 0 | O134: 0 | P134: 0
B135: Port 2 | C135: =('B1'!E17-'B2'!$K$32)*('B1'!F17/60) -> 656.6666667
B136: Port 3 | C136: =('B1'!E18-'B2'!$K$32)*('B1'!F18/60) -> 656.6666667
B137: Port 4 | C137: =('B1'!E19-'B2'!$K$32)*('B1'!F19/60) -> 0
B138: Port 5 | C138: =('B1'!E20-'B2'!$K$32)*('B1'!F20/60) -> 0 | H138: =IFERROR((Data!C96/((((Data!H108+Data!I108)*Data!W108))+Data!AY$114)),"") -> 1.384224696
B139: Max charge | C139: =IF(C131=0,MAX(C134:C138),C131) -> 500
B140: Battery Capacity | C140: =C139/C133 -> 1250
B141: Transit Power | C141: =C139/(DA120/2) -> 1452.784504 | D141: C-rate | E141: =C141/C140 -> 1.162227603 | F141: Losses | G141: =IF(E141<=0.5,"0,95%",IF(AND(E141<=1,E141>0.5),"1,75%",IF(AND(E141<=1.5,E141>1),"2,55%",IF(AND(E141<=2,E141>1.5),"3,5%",IF(AND(E141<=2.5,E141>2),"4,3%",IF(E141>=2.5,"5,25","")))))) -> 2,55%
B142: Then Maximum Engine size is | C142: =G36/(1-'B2'!H56) -> 1659.259259 | D142: Real Transit Power | E142: =C141*(1-G141) -> 1415.738499
A144: LNG Constant RPM | AX144: PORT 1 | BG144: PORT 2 | BP144: PORT 3 | BY144: PORT 4 | CH144: PORT 5
B145: Shore charging | C145: Time in port | D145: Transit to next port | E145: Distance to next port | F145: Distance to next port, manouevring | G145: Speed | H145: Propeller power | I145: Hotel power | J145: Propeller incl losses | K145: Hotel incl power | L145: Total Power | M145: Relative Load | N145: Thermal Efficiency | O145: Energy Consumed | P145: Fuel Consumed | Q145: Liters | R145: CO2, kg | S145: Nox, g | T145: CO, g | U145: PM, g | V145: SO, g | W145: Hours | X145: kWh | Y145: Fuel consumed, kg | Z145: Fuel consumed, liters | AA145: CO2, kg | AB145: Nox, g | AC145: CO, g | AD145: PM, g | AE145: SO, g | AG145: PORTS | AI145: Propeller power | AJ145: Incl losses | AK145: Hotel | AL145: Incl losses | AM145: Total Power | AN145: Relative Load | AO145: Thermal Efficiency | AP145: Energy Consumed | AQ145: Fuel Consumed, kg | AR145: Liters | AS145: CO2, kg | AT145: Nox, g | AU145: CO, g | AV145: PM, g | AW145: SO, g | AX145: Hours | AY145: kWh | AZ145: Fuel consumed, kg | BA145: Fuel consumed, liters | BB145: CO2, kg | BC145: Nox, g | BD145: CO, g | BE145: PM, g | BF145: SO, g | BG145: Hours | BH145: kWh | BI145: Fuel consumed, kg | BJ145: Fuel consumed, liters | BK145: CO2, kg | BL145: Nox, g | BM145: CO, g | BN145: PM, g | BO145: SO, g | BP145: Hours | BQ145: kWh | BR145: Fuel consumed, kg | BS145: Fuel consumed, liters | BT145: CO2, kg | BU145: Nox, g | BV145: CO, g | BW145: PM, g | BX145: SO, g | BY145: Hours | BZ145: kWh | CA145: Fuel consumed, kg | CB145: Fuel consumed, liters | CC145: CO2, kg | CD145: Nox, g | CE145: CO, g | CF145: PM, g | CG145: SO, g | CH145: Hours | CI145: kWh | CJ145: Fuel consumed, kg | CK145: Fuel consumed, liters | CL145: CO2, kg | CM145: Nox, g | CN145: CO, g | CO145: PM, g | CP145: SO, g
A146: =A118 -> Port 1 | B146: =B118 -> 4000 | C146: 10 | D146: 13.43333333 | E146: =E118 -> 4 | F146: 3.3 | G146: 14.73945409 | H146: 1365.447143 | I146: =I118 -> 60 | J146: =H146/Data!$P$19 -> 1708.813202 | K146: =I146/Data!$P$30 -> 74.37671038 | L146: =IF(K146+J146-J130>0,K146+J146-J130,0) -> 906.1399121 | M146: =L146/$C$142 -> 0.5461111077 | N146: =$C$125+($D$125*M146)+($E$125*(M146^2))+($F$125*(M146^3))+($G$125*(M146^4))+($H$125*(M146^5))+($I$125*(M146^6)) -> 0.4606926984 | O146: =L146/N146 -> 1966.907475 | P146: =O146/$L$125 -> 143.6747608 | R146: =P146*'B2'!$E$42 -> 395.9676407 | S146: =$L146*'B2'!$G$42 -> 1359.209868 | T146: =$L146*'B2'!$I$42 -> 45.3069956 | U146: =$L146*'B2'!$K$42 -> 4.53069956 | V146: =$L146*'B2'!$M$42 -> 9.061399121 | W146: =L49/60 -> 0.2238888889 | X146: =$W146*O146 -> 440.3687291 | Y146: =$W146*P146 -> 32.16718255 | Z146: =$W146*Q146 -> 0 | AA146: =$W146*R146 -> 88.65275511 | AB146: =$W146*S146 -> 304.3119871 | AC146: =$W146*T146 -> 10.1437329 | AD146: =$W146*U146 -> 1.01437329 | AE146: =$W146*V146 -> 2.028746581 | AH146: Loading | AI146: =$C$56 -> 0 | AJ146: =AI146/$P$19 -> 0 | AK146: =IF(B146>'B2'!$K$32,0,'B2'!$K$32) -> 0 | AL146: =AK146/$P$30 -> 0 | AM146: =AJ146+AL146 -> 0 | AN146: =AM146/$C$142 -> 0 | AO146: =$C$125+($D$125*AN146)+($E$125*(AN146^2))+($F$125*(AN146^3))+($G$125*(AN146^4))+($H$125*(AN146^5))+($I$125*(AN146^6)) -> 0.1406 | AP146: =AM146/AO146 -> 0 | AQ146: =AP146/$L$125 -> 0 | AS146: =AQ146*'B2'!$E$42 -> 0 | AT146: =AM146*'B2'!$G$42 -> 0 | AU146: =AM146*'B2'!$I$42 -> 0 | AV146: =AM146*'B2'!$K$42 -> 0 | AW146: =AM146*'B2'!$M$42 -> 0 | AX146: =IF('B1'!$E$16>0,0,C123/3600) -> 0 | AY146: =AX146*$AP146 -> 0 | AZ146: =AX146*$AQ146 -> 0 | BA146: =AX146*$AR146 -> 0 | BB146: =AX146*$AS146 -> 0 | BC146: =AX146*$AT146 -> 0 | BD146: =AX146*$AU146 -> 0 | BE146: =AX146*$AV146 -> 0 | BF146: =AX146*$AW146 -> 0 | BG146: =IF('B1'!$E$16>0,0,$C$59/3600) -> 0 | BH146: =BG146*$AP146 -> 0 | BI146: =BG146*$AQ146 -> 0 | BJ146: =BG146*$AR146 -> 0 | BK146: =BG146*$AS146 -> 0 | BL146: =BG146*$AT146 -> 0 | BM146: =BG146*$AU146 -> 0 | BN146: =BG146*$AV146 -> 0 | BO146: =BG146*$AW146 -> 0 | BP146: =IF('B1'!$E$16>0,0,$C$60/3600) -> 0 | BQ146: =BP146*$AP146 -> 0 | BR146: =BP146*$AQ146 -> 0 | BS146: =BP146*$AR146 -> 0 | BT146: =BP146*$AS146 -> 0 | BU146: =BP146*$AT146 -> 0 | BV146: =BP146*$AU146 -> 0 | BW146: =BP146*$AV146 -> 0 | BX146: =BP146*$AW146 -> 0 | BY146: =IF('B1'!$E$16>0,0,$C$61/3600) -> 0 | BZ146: =BY146*$AP146 -> 0 | CA146: =BY146*$AQ146 -> 0 | CB146: =BY146*$AR146 -> 0 | CC146: =BY146*$AS146 -> 0 | CD146: =BY146*$AT146 -> 0 | CE146: =BY146*$AU146 -> 0 | CF146: =BY146*$AV146 -> 0 | CG146: =BY146*$AW146 -> 0 | CH146: =IF('B1'!$E$16>0,0,$C$62/3600) -> 0 | CI146: =CH146*$AP146 -> 0 | CJ146: =CH146*$AQ146 -> 0 | CK146: =CH146*$AR146 -> 0 | CL146: =CH146*$AS146 -> 0 | CM146: =CH146*$AT146 -> 0 | CN146: =CH146*$AU146 -> 0 | CO146: =CH146*$AV146 -> 0 | CP146: =CH146*$AW146 -> 0 | CR146: In and out of port | DA146: TRANSIT | DJ146: SHORE POWER | DL146: Overall
A147: =A119 -> Port 2 | B147: 4000 | C147: 10 | D147: 12.43333333 | E147: =E119 -> 4 | F147: 3.3 | G147: 15.92493298 | H147: 1722.120498 | I147: =I119 -> 60 | J147: =H147/Data!$P$19 -> 2155.178439 | K147: =I147/Data!$P$30 -> 74.37671038 | L147: =IF(K147+J147-J131>0,K147+J147-J131,0) -> 1306.344623 | M147: =L147/$C$142 -> 0.7873059111 | N147: =$C$125+($D$125*M147)+($E$125*(M147^2))+($F$125*(M147^3))+($G$125*(M147^4))+($H$125*(M147^5))+($I$125*(M147^6)) -> 0.4886373974 | O147: =L147/N147 -> 2673.443805 | P147: =O147/$L$125 -> 195.2844269 | R147: =P147*'B2'!$E$42 -> 538.2038807 | S147: =$L147*'B2'!$G$42 -> 1959.516934 | T147: =$L147*'B2'!$I$42 -> 65.31723114 | U147: =$L147*'B2'!$K$42 -> 6.531723114 | V147: =$L147*'B2'!$M$42 -> 13.06344623 | W147: =L50/60 -> 0.2072222222 | X147: =W147*O147 -> 553.9969662 | Z147: 0 | AA147: 111.5278042 | AB147: 406.0554536 | AC147: 13.53518179 | AD147: 1.353518179 | AE147: 2.707036357 | AH147: Entering Harbour | AI147: =$D$56 -> 368.4210526 | AJ147: =AI147/$P$19 -> 461.067103 | AK147: ='B2'!$K$32 -> 60 | AL147: =AK147/$P$30 -> 74.37671038 | AM147: =AJ147+AL147 -> 535.4438134 | AN147: =AM147/$C$142 -> 0.3227005125 | AO147: =$C$125+($D$125*AN147)+($E$125*(AN147^2))+($F$125*(AN147^3))+($G$125*(AN147^4))+($H$125*(AN147^5))+($I$125*(AN147^6)) -> 0.4218406546 | AP147: =AM147/AO147 -> 1269.303486 | AQ147: =AP147/$L$125 -> 92.71756654 | AS147: =AQ147*'B2'!$E$42 -> 255.5296134 | AT147: =AM147*'B2'!$G$42 -> 803.16572 | AU147: =AM147*'B2'!$I$42 -> 26.77219067 | AV147: =AM147*'B2'!$K$42 -> 2.677219067 | AW147: =AM147*'B2'!$M$42 -> 5.354438134 | AX147: =$D$58/3600 -> 0.025 | AY147: =AX147*$AP147 -> 31.73258715 | AZ147: =AX147*$AQ147 -> 2.317939163 | BA147: =AX147*$AR147 -> 0 | BB147: =AX147*$AS147 -> 6.388240334 | BC147: =AX147*$AT147 -> 20.079143 | BD147: =AX147*$AU147 -> 0.6693047667 | BE147: =AX147*$AV147 -> 0.06693047667 | BF147: =AX147*$AW147 -> 0.1338609533 | BG147: =$D$59/3600 -> 0.025 | BH147: =BG147*$AP147 -> 31.73258715 | BI147: =BG147*$AQ147 -> 2.317939163 | BJ147: =BG147*$AR147 -> 0 | BK147: =BG147*$AS147 -> 6.388240334 | BL147: =BG147*$AT147 -> 20.079143 | BM147: =BG147*$AU147 -> 0.6693047667 | BN147: =BG147*$AV147 -> 0.06693047667 | BO147: =BG147*$AW147 -> 0.1338609533 | BP147: =$D$60/3600 -> 0.025 | BQ147: =BP147*$AP147 -> 31.73258715 | BR147: =BP147*$AQ147 -> 2.317939163 | BS147: =BP147*$AR147 -> 0 | BT147: =BP147*$AS147 -> 6.388240334 | BU147: =BP147*$AT147 -> 20.079143 | BV147: =BP147*$AU147 -> 0.6693047667 | BW147: =BP147*$AV147 -> 0.06693047667 | BX147: =BP147*$AW147 -> 0.1338609533 | BY147: =$D$61/3600 -> 0 | BZ147: =BY147*$AP147 -> 0 | CA147: =BY147*$AQ147 -> 0 | CB147: =BY147*$AR147 -> 0 | CC147: =BY147*$AS147 -> 0 | CD147: =BY147*$AT147 -> 0 | CE147: =BY147*$AU147 -> 0 | CF147: =BY147*$AV147 -> 0 | CG147: =BY147*$AW147 -> 0 | CH147: =$D$62/3600 -> 0 | CI147: =CH147*$AP147 -> 0 | CJ147: =CH147*$AQ147 -> 0 | CK147: =CH147*$AR147 -> 0 | CL147: =CH147*$AS147 -> 0 | CM147: =CH147*$AT147 -> 0 | CN147: =CH147*$AU147 -> 0 | CO147: =CH147*$AV147 -> 0 | CP147: =CH147*$AW147 -> 0 | CR147: Hours | CS147: kWh | CT147: Fuel consumed, kg | CU147: Fuel consumed, liters | CV147: CO2, kg | CW147: Nox, g | CX147: CO, g | CY147: PM, g | CZ147: SO, g | DA147: Hours | DB147: kWh | DC147: Fuel consumed, kg | DD147: Fuel consumed, liters | DE147: CO2, kg | DF147: Nox, g | DG147: CO, g | DH147: PM, g | DI147: SO, g | DJ147: Hours | DK147: kWh | DL147: Hours | DM147: kWh | DN147: Fuel consumed, kg | DO147: Fuel consumed, liters | DP147: CO2, kg | DQ147: Nox, g | DR147: CO, g | DS147: PM, g | DT147: SO, g
A148: Port 3 | B148: 4000 | C148: 10 | D148: 15.43333333 | E148: =E120 -> 4 | F148: 3.3 | G148: 12.82937365 | H148: 900.4239922 | I148: =I120 -> 60 | J148: =H148/Data!$P$19 -> 1126.851679 | K148: =I148/Data!$P$30 -> 74.37671038 | L148: 403.9102071 | M148: 0.2434280266 | N148: 0.390896561 | O148: 1033.291789 | P148: 75.47785168 | R148: =P148*'B2'!$E$42 -> 208.0169592 | S148: =$L148*'B2'!$G$42 -> 605.8653106 | T148: =$L148*'B2'!$I$42 -> 20.19551035 | U148: =$L148*'B2'!$K$42 -> 2.019551035 | V148: =$L148*'B2'!$M$42 -> 4.039102071 | W148: 0.2572222222 | X148: 265.7856103 | Z148: 0 | AA148: 53.50658451 | AB148: 155.8420216 | AC148: 5.194734052 | AD148: 0.5194734052 | AE148: 1.03894681 | AH148: Leaving Harbour | AI148: =$E$56 -> 263.1578947 | AJ148: 329.333645 | AK148: ='B2'!$K$32 -> 60 | AL148: 74.37671038 | AM148: =AJ148+AL148 -> 403.7103554 | AN148: 0.2433075802 | AO148: 0.3908371137 | AP148: 1032.937613 | AQ148: 75.45198051 | AS148: =AQ148*'B2'!$E$42 -> 207.9456583 | AT148: =AM148*'B2'!$G$42 -> 605.5655331 | AU148: =AM148*'B2'!$I$42 -> 20.18551777 | AV148: =AM148*'B2'!$K$42 -> 2.018551777 | AW148: =AM148*'B2'!$M$42 -> 4.037103554 | AX148: =$E$58/3600 -> 0.008333333333 | AY148: 8.607813443 | AZ148: 0.6287665042 | BA148: 0 | BB148: 1.732880486 | BC148: 5.046379442 | BD148: 0.1682126481 | BE148: 0.01682126481 | BF148: 0.03364252961 | BG148: =$E$59/3600 -> 0.008333333333 | BH148: 8.607813443 | BI148: 0.6287665042 | BJ148: 0 | BK148: 1.732880486 | BL148: 5.046379442 | BM148: 0.1682126481 | BN148: 0.01682126481 | BO148: 0.03364252961 | BP148: =$E$60/3600 -> 0.008333333333 | BQ148: 8.607813443 | BR148: 0.6287665042 | BS148: 0 | BT148: 1.732880486 | BU148: 5.046379442 | BV148: 0.1682126481 | BW148: 0.01682126481 | BX148: 0.03364252961 | BY148: =$E$61/3600 -> 0 | BZ148: 0 | CA148: 0 | CB148: 0 | CC148: 0 | CD148: 0 | CE148: 0 | CF148: 0 | CG148: 0 | CH148: =$E$62/3600 -> 0 | CI148: 0 | CJ148: 0 | CK148: 0 | CL148: 0 | CM148: 0 | CN148: 0 | CO148: 0 | CP148: 0 | CR148: =SUM(AX152,BG152,BP152,BY152,CH152) -> 0.3283333333 | CS148: =SUM(AY152,BH152,BQ152,BZ152,CI152) -> 419.2380255 | CT148: =SUM(AZ152,BI152,BR152,CA152,CJ152) -> 30.62366877 | CU148: =SUM(BA152,BJ152,BS152,CB152,CK152) -> 0 | CV148: =SUM(BB152,BK152,BT152,CC152,CL152) -> 84.39883114 | CW148: =SUM(BC152,BL152,BU152,CD152,CM152) -> 264.5294122 | CX148: =SUM(BD152,BM152,BV152,CE152,CN152) -> 8.817647073 | CY148: =SUM(BE152,BN152,BW152,CF152,CO152) -> 0.8817647073 | CZ148: =SUM(BF152,BO152,BX152,CG152,CP152) -> 1.763529415 | DA148: =W151 -> 0 | DB148: =X151 -> 1260.151306 | DC148: =Y151 -> 32.16718255 | DD148: =Z151 -> 0 | DE148: =AA151 -> 253.6871438 | DF148: =AB151 -> 866.2094623 | DG148: =AC151 -> 28.87364874 | DH148: =AD151 -> 2.887364874 | DI148: =AE151 -> 5.774729749 | DJ148: =SUM($J$57:$J$62) -> 0.5 | DK148: =SUM($I$57:$I$62) -> 30 | DL148: =DJ148+DA148+CR148 -> 0.8283333333 | DM148: =DK148+DB148+CS148 -> 1709.389331 | DN148: =DC148+CT148 -> 62.79085132 | DO148: =DD148+CU148 -> 0 | DP148: =DE148+CV148 -> 338.0859749 | DQ148: =DF148+CW148 -> 1130.738875 | DR148: =DG148+CX148 -> 37.69129582 | DS148: =DH148+CY148 -> 3.769129582 | DT148: =DI148+CZ148 -> 7.538259163
B149: 0 | C149: 0 | D149: 0 | E149: =E121 -> 0 | F149: 0 | G149: 0 | H149: 0 | I149: =I121 -> 0 | J149: =H149/Data!$P$19 -> 0 | K149: =I149/Data!$P$30 -> 0 | L149: 0 | M149: 0 | N149: 0.1406 | O149: 0 | P149: 0 | R149: =P149*'B2'!$E$42 -> 0 | S149: =$L149*'B2'!$G$42 -> 0 | T149: =$L149*'B2'!$I$42 -> 0 | U149: =$L149*'B2'!$K$42 -> 0 | V149: =$L149*'B2'!$M$42 -> 0 | W149: 0 | X149: 0 | Z149: 0 | AA149: 0 | AB149: 0 | AC149: 0 | AD149: 0 | AE149: 0 | AH149: Acceleration | AI149: =$F$56 -> 736.8421053 | AJ149: 922.134206 | AK149: ='B2'!$K$32 -> 60 | AL149: 74.37671038 | AM149: 996.5109163 | AN149: 0.6005757755 | AO149: 0.4667774035 | AP149: 2134.873944 | AQ149: 155.9440427 | AS149: =AQ149*'B2'!$E$42 -> 429.7817816 | AT149: =AM149*'B2'!$G$42 -> 1494.766375 | AU149: =AM149*'B2'!$I$42 -> 49.82554582 | AV149: =AM149*'B2'!$K$42 -> 4.982554582 | AW149: =AM149*'B2'!$M$42 -> 9.965109163 | AX149: =$F$58/3600 -> 0.03444444444 | AY149: 73.53454696 | AZ149: 5.371405914 | BA149: 0 | BB149: 14.8035947 | BC149: 51.48639734 | BD149: 1.716213245 | BE149: 0.1716213245 | BF149: 0.343242649 | BG149: =$F$59/3600 -> 0.03444444444 | BH149: 73.53454696 | BI149: 5.371405914 | BJ149: 0 | BK149: 14.8035947 | BL149: 51.48639734 | BM149: 1.716213245 | BN149: 0.1716213245 | BO149: 0.343242649 | BP149: =$F$60/3600 -> 0.03444444444 | BQ149: 73.53454696 | BR149: 5.371405914 | BS149: 0 | BT149: 14.8035947 | BU149: 51.48639734 | BV149: 1.716213245 | BW149: 0.1716213245 | BX149: 0.343242649 | BY149: =$F$61/3600 -> 0 | BZ149: 0 | CA149: 0 | CB149: 0 | CC149: 0 | CD149: 0 | CE149: 0 | CF149: 0 | CG149: 0 | CH149: =$F$62/3600 -> 0 | CI149: 0 | CJ149: 0 | CK149: 0 | CL149: 0 | CM149: 0 | CN149: 0 | CO149: 0 | CP149: 0
B150: 0 | C150: 0 | D150: 0 | E150: =E122 -> 0 | F150: 0 | G150: 0 | H150: 0 | I150: =I122 -> 0 | J150: =H150/Data!$P$19 -> 0 | K150: =I150/Data!$P$30 -> 0 | L150: 0 | M150: 0 | N150: 0.1406 | O150: 0 | P150: 0 | R150: =P150*'B2'!$E$42 -> 0 | S150: =$L150*'B2'!$G$42 -> 0 | T150: =$L150*'B2'!$I$42 -> 0 | U150: =$L150*'B2'!$K$42 -> 0 | V150: =$L150*'B2'!$M$42 -> 0 | W150: 0 | X150: 0 | Z150: 0 | AA150: 0 | AB150: 0 | AC150: 0 | AD150: 0 | AE150: 0 | AH150: Passive Retardation | AI150: =$G$56 -> 57.89473684 | AJ150: 72.4534019 | AK150: ='B2'!$K$32 -> 60 | AL150: 74.37671038 | AM150: 146.8301123 | AN150: 0.08849136231 | AO150: 0.2683934541 | AP150: 547.0703926 | AQ150: 39.96131429 | AS150: =AQ150*'B2'!$E$42 -> 110.1333822 | AT150: =AM150*'B2'!$G$42 -> 220.2451684 | AU150: =AM150*'B2'!$I$42 -> 7.341505614 | AV150: =AM150*'B2'!$K$42 -> 0.7341505614 | AW150: =AM150*'B2'!$M$42 -> 1.468301123 | AX150: =$G$58/3600 -> 0.03333333333 | AY150: 18.23567975 | AZ150: 1.33204381 | BA150: 0 | BB150: 3.671112739 | BC150: 7.341505614 | BD150: 0.2447168538 | BE150: 0.02447168538 | BF150: 0.04894337076 | BG150: =$G$59/3600 -> 0.03333333333 | BH150: 18.23567975 | BI150: 1.33204381 | BJ150: 0 | BK150: 3.671112739 | BL150: 7.341505614 | BM150: 0.2447168538 | BN150: 0.02447168538 | BO150: 0.04894337076 | BP150: =$G$60/3600 -> 0.03333333333 | BQ150: 18.23567975 | BR150: 1.33204381 | BS150: 0 | BT150: 3.671112739 | BU150: 7.341505614 | BV150: 0.2447168538 | BW150: 0.02447168538 | BX150: 0.04894337076 | BY150: =$G$61/3600 -> 0 | BZ150: 0 | CA150: 0 | CB150: 0 | CC150: 0 | CD150: 0 | CE150: 0 | CF150: 0 | CG150: 0 | CH150: =$G$62/3600 -> 0 | CI150: 0 | CJ150: 0 | CK150: 0 | CL150: 0 | CM150: 0 | CN150: 0 | CO150: 0 | CP150: 0
W151: 0 | X151: =SUM(X146:X150) -> 1260.151306 | Y151: =SUM(Y146:Y150) -> 32.16718255 | Z151: =SUM(Z146:Z150) -> 0 | AA151: =SUM(AA146:AA150) -> 253.6871438 | AB151: =SUM(AB146:AB150) -> 866.2094623 | AC151: =SUM(AC146:AC150) -> 28.87364874 | AD151: =SUM(AD146:AD150) -> 2.887364874 | AE151: =SUM(AE146:AE150) -> 5.774729749 | AH151: Active Retardation | AI151: =$H$56 -> 210.5263158 | AJ151: 263.466916 | AK151: ='B2'!$K$32 -> 60 | AL151: 74.37671038 | AM151: 337.8436264 | AN151: 0.2036111141 | AO151: 0.3687259977 | AP151: 916.2457447 | AQ151: 66.92810407 | AS151: =AQ151*'B2'!$E$42 -> 184.4538548 | AT151: =AM151*'B2'!$G$42 -> 506.7654396 | AU151: =AM151*'B2'!$I$42 -> 16.89218132 | AV151: =AM151*'B2'!$K$42 -> 1.689218132 | AW151: =AM151*'B2'!$M$42 -> 3.378436264 | AX151: =$H$58/3600 -> 0.008333333333 | AY151: 7.635381205 | AZ151: 0.5577342005 | BA151: 0 | BB151: 1.537115457 | BC151: 4.22304533 | BD151: 0.1407681777 | BE151: 0.01407681777 | BF151: 0.02815363553 | BG151: =$H$59/3600 -> 0.008333333333 | BH151: 7.635381205 | BI151: 0.5577342005 | BJ151: 0 | BK151: 1.537115457 | BL151: 4.22304533 | BM151: 0.1407681777 | BN151: 0.01407681777 | BO151: 0.02815363553 | BP151: =$H$60/3600 -> 0.008333333333 | BQ151: 7.635381205 | BR151: 0.5577342005 | BS151: 0 | BT151: 1.537115457 | BU151: 4.22304533 | BV151: 0.1407681777 | BW151: 0.01407681777 | BX151: 0.02815363553 | BY151: =$H$61/3600 -> 0 | BZ151: 0 | CA151: 0 | CB151: 0 | CC151: 0 | CD151: 0 | CE151: 0 | CF151: 0 | CG151: 0 | CH151: =$H$62/3600 -> 0 | CI151: 0 | CJ151: 0 | CK151: 0 | CL151: 0 | CM151: 0 | CN151: 0 | CO151: 0 | CP151: 0 | DG151: From Battery
C152: =C124 -> Const | D152: =D124 -> x | E152: x2 | F152: x3 | G152: x4 | H152: x5 | I152: x6 | AX152: =SUM(AX146:AX151) -> 0.1094444444 | AY152: =SUM(AY146:AY151) -> 139.7460085 | AZ152: =SUM(AZ146:AZ151) -> 10.20788959 | BA152: =SUM(BA146:BA151) -> 0 | BB152: =SUM(BB146:BB151) -> 28.13294371 | BC152: =SUM(BC146:BC151) -> 88.17647073 | BD152: =SUM(BD146:BD151) -> 2.939215691 | BE152: =SUM(BE146:BE151) -> 0.2939215691 | BF152: =SUM(BF146:BF151) -> 0.5878431382 | BG152: =SUM(BG146:BG151) -> 0.1094444444 | BH152: =SUM(BH146:BH151) -> 139.7460085 | BI152: =SUM(BI146:BI151) -> 10.20788959 | BJ152: =SUM(BJ146:BJ151) -> 0 | BK152: =SUM(BK146:BK151) -> 28.13294371 | BL152: =SUM(BL146:BL151) -> 88.17647073 | BM152: =SUM(BM146:BM151) -> 2.939215691 | BN152: =SUM(BN146:BN151) -> 0.2939215691 | BO152: =SUM(BO146:BO151) -> 0.5878431382 | BP152: =SUM(BP146:BP151) -> 0.1094444444 | BQ152: =SUM(BQ146:BQ151) -> 139.7460085 | BR152: =SUM(BR146:BR151) -> 10.20788959 | BS152: =SUM(BS146:BS151) -> 0 | BT152: =SUM(BT146:BT151) -> 28.13294371 | BU152: =SUM(BU146:BU151) -> 88.17647073 | BV152: =SUM(BV146:BV151) -> 2.939215691 | BW152: =SUM(BW146:BW151) -> 0.2939215691 | BX152: =SUM(BX146:BX151) -> 0.5878431382 | BY152: =SUM(BY146:BY151) -> 0 | BZ152: =SUM(BZ146:BZ151) -> 0 | CA152: =SUM(CA146:CA151) -> 0 | CB152: =SUM(CB146:CB151) -> 0 | CC152: =SUM(CC146:CC151) -> 0 | CD152: =SUM(CD146:CD151) -> 0 | CE152: =SUM(CE146:CE151) -> 0 | CF152: =SUM(CF146:CF151) -> 0 | CG152: =SUM(CG146:CG151) -> 0 | CH152: =SUM(CH146:CH151) -> 0 | CI152: =SUM(CI146:CI151) -> 0 | CJ152: =SUM(CJ146:CJ151) -> 0 | CK152: =SUM(CK146:CK151) -> 0 | CL152: =SUM(CL146:CL151) -> 0 | CM152: =SUM(CM146:CM151) -> 0 | CN152: =SUM(CN146:CN151) -> 0 | CO152: =SUM(CO146:CO151) -> 0 | CP152: =SUM(CP146:CP151) -> 0 | CR152: Roundtrips | CT152: ='B1'!$E$23 -> 18 | CV152: Hours in harbour | CX152: =24-(CT152*$DL$83) -> -3.3 | CZ152: Assuming shore connection | DC152: ='B2'!$K$32*CX152 -> -198 | DD152: kWh | DG152: =SUM(C134:C138) -> 1970 | DH152: kWh
B153: LNG Constant RPM | C153: =C125 -> 0.1406 | D153: =D125 -> 1.7576 | E153: -3.8877 | F153: 4.0406 | G153: -1.5559 | H153: 0 | I153: 0 | K153: Diesel Oil | L153: 13.69 | M153: kWh/kg
A156: Hydrogen | L156: Energy charged | M156: Energy used per tour | N156: By main engine | O156: % By batteries | P156: % By engine
B157: Fuel Cell Stack Calculations | L157: =L130 -> 300 | M157: =X175+AY181+L157 -> 851.7073785 | N157: =X175+AY181 -> 551.7073785 | O157: =IFERROR(L157/M157,0) -> 0.3522336516 | P157: =IFERROR(N157/M157,0) -> 0.6477663484
B158: Everything above sea margin to be covered by batteries | L158: =L131 -> 300 | M158: =X176+BH181+L158 -> 1014.796821 | N158: =X176+$BH$181 -> 714.7968209 | O158: =IFERROR(L158/M158,0) -> 0.2956256798 | P158: =IFERROR(N158/M158,0) -> 0.7043743202
B159: Available Fuel Cell Power | C159: =G36/(1-'B2'!H18) -> 1746.588694 | L159: 300 | M159: =X177+BQ181+L159 -> 636.3090039 | N159: =X177+BQ181 -> 336.3090039 | O159: 0.4714690475 | P159: 0.5285309525
B160: Design Stack Size | C160: =F!C38 -> 120 | L160: 0 | M160: =X178+BZ181+L160 -> 0 | N160: =X178+BZ181 -> 0 | O160: 0 | P160: 0
B161: Number of stacks | C161: =C159/C160 -> 14.55490578 | D161: =ROUNDUP(C161,0) -> 15 | L161: 0 | M161: =X179+CI181+L161 -> 0 | N161: =X179+CI181 -> 0 | O161: 0 | P161: 0
B162: Available Power | C162: =D161*C160 -> 1800
B163: Peak Power Efficiency | C163: =F!K36 -> 35 | D163: =C163/C160 -> 0.2916666667
B164: Peak Efficiency | C164: =F!K37 -> 0.54 | D164: =C164 -> 0.54
B166: From there on | C166: HYDROGENICS
B167: Const | C167: =F!A41 -> 0.44
B168: x | C168: =F!B41 -> 0.84
B169: x2 | C169: =F!C41 -> -2.54
B170: x3 | C170: =F!D41 -> 2.96
B171: x4 | C171: =F!E41 -> -1.25
A173: Diesel variable RPM | AX173: PORT 1 | BG173: PORT 2 | BP173: PORT 3 | BY173: PORT 4 | CH173: PORT 5
B174: Shore charging | C174: Time in port | D174: Transit to next port | E174: Distance to next port | F174: Distance to next port, manouevring | G174: Speed | H174: Propeller power | I174: Hotel power | J174: Propeller incl losses | K174: Hotel incl losses | L174: Total Power | M174: Relative Load | N174: Thermal Efficiency | O174: Energy Consumed | P174: Fuel Consumed | Q174: Liters | R174: CO2, kg | S174: Nox, g | T174: CO, g | U174: PM, g | V174: SO, g | W174: Hours | X174: kWh | Y174: Fuel consumed, kg | Z174: Fuel consumed, liters | AA174: CO2, kg | AB174: Nox, g | AC174: CO, g | AD174: PM, g | AE174: SO, g | AG174: PORTS | AI174: Propeller power | AJ174: Incl losses | AK174: Hotel | AL174: Incl losses | AM174: Total Power | AN174: Relative Load | AO174: Thermal Efficiency | AP174: Energy Consumed | AQ174: Fuel Consumed, kg | AR174: Liters | AS174: CO2, kg | AT174: Nox, g | AU174: CO, g | AV174: PM, g | AW174: SO, g | AX174: Hours | AY174: kWh | AZ174: Fuel consumed, kg | BA174: Fuel consumed, liters | BB174: CO2, kg | BC174: Nox, g | BD174: CO, g | BE174: PM, g | BF174: SO, g | BG174: Hours | BH174: kWh | BI174: Fuel consumed, kg | BJ174: Fuel consumed, liters | BK174: CO2, kg | BL174: Nox, g | BM174: CO, g | BN174: PM, g | BO174: SO, g | BP174: Hours | BQ174: kWh | BR174: Fuel consumed, kg | BS174: Fuel consumed, liters | BT174: CO2, kg | BU174: Nox, g | BV174: CO, g | BW174: PM, g | BX174: SO, g | BY174: Hours | BZ174: kWh | CA174: Fuel consumed, kg | CB174: Fuel consumed, liters | CC174: CO2, kg | CD174: Nox, g | CE174: CO, g | CF174: PM, g | CG174: SO, g | CH174: Hours | CI174: kWh | CJ174: Fuel consumed, kg | CK174: Fuel consumed, liters | CL174: CO2, kg | CM174: Nox, g | CN174: CO, g | CO174: PM, g | CP174: SO, g
A175: =C49 -> Port 1 | B175: =D49 -> 4000 | C175: 10 | D175: 20 | E175: =G49 -> 4 | F175: =H49 -> 3.3 | G175: =I49 -> 14.73945409 | H175: =J49 -> 1365.447143 | I175: =K49 -> 60 | J175: =H175/$T$19 -> 1798.750739 | K175: =I175/$T$30 -> 70.65787486 | L175: =IF(K175+J175-J130>0,K175+J175-J130,0) -> 992.3586135 | M175: =IFERROR(L175/$C$162,0) -> 0.5513103408 | N175: =IF(M175<$D$163,$D$164,$C$167+($C$168*M175)+($C$169*(M175^2))+($C$170*(M175^3))+($C$171*(M175^4))) -> 0.511606709 | O175: =L175/N175 -> 1939.690383 | P175: =O175/$L$182 -> 49.23072039 | W175: =L49/60 -> 0.2238888889 | X175: =$W175*O175 -> 434.2751247 | Y175: =$W175*P175 -> 11.02221129 | Z175: =$W175*Q175 -> 0 | AA175: =$W175*R175 -> 0 | AB175: =$W175*S175 -> 0 | AC175: =$W175*T175 -> 0 | AD175: =$W175*U175 -> 0 | AE175: =$W175*V175 -> 0 | AH175: Loading | AI175: =$C$56 -> 0 | AJ175: =AI175/$T$19 -> 0 | AK175: =IF(B175>'B2'!$K$32,0,'B2'!$K$32) -> 0 | AL175: =AK175/$T$30 -> 0 | AM175: =AJ175+AL175 -> 0 | AN175: =AM175/$C$162 -> 0 | AO175: =IF(AN175<$D$163,$D$164,$C$167+($C$168*AN175)+($C$169*(AN175^2))+($C$170*(AN175^3))+($C$171*(AN175^4))) -> 0.54 | AP175: =AM175/AO175 -> 0 | AQ175: =AP175/$L$182 -> 0 | AX175: =AX146 -> 0 | AY175: =AX175*$AP175 -> 0 | AZ175: =AX175*$AQ175 -> 0 | BA175: =AX175*$AR175 -> 0 | BB175: =AX175*$AS175 -> 0 | BC175: =AX175*$AT175 -> 0 | BD175: =AX175*$AU175 -> 0 | BE175: =AX175*$AV175 -> 0 | BF175: =AX175*$AW175 -> 0 | BG175: =IF('B1'!$E$16>0,0,$C$59/3600) -> 0 | BH175: =BG175*$AP175 -> 0 | BI175: =BG175*$AQ175 -> 0 | BJ175: =BG175*$AR175 -> 0 | BK175: =BG175*$AS175 -> 0 | BL175: =BG175*$AT175 -> 0 | BM175: =BG175*$AU175 -> 0 | BN175: =BG175*$AV175 -> 0 | BO175: =BG175*$AW175 -> 0 | BP175: =IF('B1'!$E$16>0,0,$C$60/3600) -> 0 | BQ175: =BP175*$AP175 -> 0 | BR175: =BP175*$AQ175 -> 0 | BS175: =BP175*$AR175 -> 0 | BT175: =BP175*$AS175 -> 0 | BU175: =BP175*$AT175 -> 0 | BV175: =BP175*$AU175 -> 0 | BW175: =BP175*$AV175 -> 0 | BX175: =BP175*$AW175 -> 0 | BY175: =IF('B1'!$E$16>0,0,$C$61/3600) -> 0 | BZ175: =BY175*$AP175 -> 0 | CA175: =BY175*$AQ175 -> 0 | CB175: =BY175*$AR175 -> 0 | CC175: =BY175*$AS175 -> 0 | CD175: =BY175*$AT175 -> 0 | CE175: =BY175*$AU175 -> 0 | CF175: =BY175*$AV175 -> 0 | CG175: =BY175*$AW175 -> 0 | CH175: =IF('B1'!$E$16>0,0,$C$62/3600) -> 0 | CI175: =CH175*$AP175 -> 0 | CJ175: =CH175*$AQ175 -> 0 | CK175: =CH175*$AR175 -> 0 | CL175: =CH175*$AS175 -> 0 | CM175: =CH175*$AT175 -> 0 | CN175: =CH175*$AU175 -> 0 | CO175: =CH175*$AV175 -> 0 | CP175: =CH175*$AW175 -> 0 | CR175: In and out of port | DA175: TRANSIT | DJ175: SHORE POWER | DL175: Overall
A176: =C50 -> Port 2 | B176: 4000 | C176: 10 | D176: 19 | E176: =G50 -> 4 | F176: 3.3 | G176: 15.92493298 | H176: 1722.120498 | I176: 60 | J176: =H176/$T$19 -> 2268.608883 | K176: =I176/$T$30 -> 70.65787486 | L176: =IF(K176+J176-J131>0,K176+J176-J131,0) -> 1416.056232 | M176: =IFERROR(L176/$C$162,0) -> 0.7866979064 | N176: =IF(M176<$D$163,$D$164,$C$167+($C$168*M176)+($C$169*(M176^2))+($C$170*(M176^3))+($C$171*(M176^4))) -> 0.4912215006 | O176: =L176/N176 -> 2882.724453 | P176: =O176/$L$182 -> 73.16559525 | W176: =L50/60 -> 0.2072222222 | X176: =W176*O176 -> 597.3645671 | Z176: 0 | AA176: 0 | AB176: 0 | AC176: 0 | AD176: 0 | AE176: 0 | AH176: Entering Harbour | AI176: =$D$56 -> 368.4210526 | AJ176: =AI176/$T$19 -> 485.3337926 | AK176: ='B2'!$K$32 -> 60 | AL176: =AK176/$T$30 -> 70.65787486 | AM176: =AJ176+AL176 -> 555.9916675 | AN176: =AM176/$C$162 -> 0.3088842597 | AO176: =IF(AN176<$D$163,$D$164,$C$167+($C$168*AN176)+($C$169*(AN176^2))+($C$170*(AN176^3))+($C$171*(AN176^4))) -> 0.5329766172 | AP176: =AM176/AO176 -> 1043.182101 | AQ176: =AP176/$L$182 -> 26.47670308 | AX176: =AX147 -> 0.025 | AY176: =AX176*$AP176 -> 26.07955253 | AZ176: =AX176*$AQ176 -> 0.661917577 | BA176: =AX176*$AR176 -> 0 | BB176: =AX176*$AS176 -> 0 | BC176: =AX176*$AT176 -> 0 | BD176: =AX176*$AU176 -> 0 | BE176: =AX176*$AV176 -> 0 | BF176: =AX176*$AW176 -> 0 | BG176: =$D$59/3600 -> 0.025 | BH176: =BG176*$AP176 -> 26.07955253 | BI176: =BG176*$AQ176 -> 0.661917577 | BJ176: =BG176*$AR176 -> 0 | BK176: =BG176*$AS176 -> 0 | BL176: =BG176*$AT176 -> 0 | BM176: =BG176*$AU176 -> 0 | BN176: =BG176*$AV176 -> 0 | BO176: =BG176*$AW176 -> 0 | BP176: =$D$60/3600 -> 0.025 | BQ176: =BP176*$AP176 -> 26.07955253 | BR176: =BP176*$AQ176 -> 0.661917577 | BS176: =BP176*$AR176 -> 0 | BT176: =BP176*$AS176 -> 0 | BU176: =BP176*$AT176 -> 0 | BV176: =BP176*$AU176 -> 0 | BW176: =BP176*$AV176 -> 0 | BX176: =BP176*$AW176 -> 0 | BY176: =$D$61/3600 -> 0 | BZ176: =BY176*$AP176 -> 0 | CA176: =BY176*$AQ176 -> 0 | CB176: =BY176*$AR176 -> 0 | CC176: =BY176*$AS176 -> 0 | CD176: =BY176*$AT176 -> 0 | CE176: =BY176*$AU176 -> 0 | CF176: =BY176*$AV176 -> 0 | CG176: =BY176*$AW176 -> 0 | CH176: =$D$62/3600 -> 0 | CI176: =CH176*$AP176 -> 0 | CJ176: =CH176*$AQ176 -> 0 | CK176: =CH176*$AR176 -> 0 | CL176: =CH176*$AS176 -> 0 | CM176: =CH176*$AT176 -> 0 | CN176: =CH176*$AU176 -> 0 | CO176: =CH176*$AV176 -> 0 | CP176: =CH176*$AW176 -> 0 | CR176: Hours | CS176: kWh | CT176: Fuel consumed, kg | CU176: Fuel consumed, liters | CV176: CO2, kg | CW176: Nox, g | CX176: CO, g | CY176: PM, g | CZ176: SO, g | DA176: Hours | DB176: kWh | DC176: Fuel consumed, kg | DD176: Fuel consumed, liters | DE176: CO2, kg | DF176: Nox, g | DG176: CO, g | DH176: PM, g | DI176: SO, g | DJ176: Hours | DK176: kWh | DL176: Hours | DM176: kWh | DN176: Fuel consumed, kg | DO176: Fuel consumed, liters | DP176: CO2, kg | DQ176: Nox, g | DR176: CO, g | DS176: PM, g | DT176: SO, g
A177: Port 3 | B177: 4000 | C177: 10 | D177: 22 | E177: 4 | F177: 3.3 | G177: 12.82937365 | H177: 900.4239922 | I177: 60 | J177: 1186.159662 | K177: 70.65787486 | L177: 459.4993546 | M177: 0.2552774192 | N177: 0.54 | O177: 850.9247308 | P177: 21.59707439 | W177: 0.2572222222 | X177: 218.8767502 | Z177: 0 | AA177: 0 | AB177: 0 | AC177: 0 | AD177: 0 | AE177: 0 | AH177: Leaving Harbour | AI177: =$E$56 -> 263.1578947 | AJ177: 346.6669947 | AK177: ='B2'!$K$32 -> 60 | AL177: 70.65787486 | AM177: 417.3248696 | AN177: =AM177/$C$162 -> 0.2318471498 | AO177: 0.54 | AP177: 772.8238326 | AQ177: 19.61481809 | AX177: 0.008333333333 | AY177: 6.440198605 | AZ177: 0.1634568174 | BA177: 0 | BB177: 0 | BC177: 0 | BD177: 0 | BE177: 0 | BF177: 0 | BG177: =$E$59/3600 -> 0.008333333333 | BH177: 6.440198605 | BI177: 0.1634568174 | BJ177: 0 | BK177: 0 | BL177: 0 | BM177: 0 | BN177: 0 | BO177: 0 | BP177: =$E$60/3600 -> 0.008333333333 | BQ177: 6.440198605 | BR177: 0.1634568174 | BS177: 0 | BT177: 0 | BU177: 0 | BV177: 0 | BW177: 0 | BX177: 0 | BY177: =$E$61/3600 -> 0 | BZ177: 0 | CA177: 0 | CB177: 0 | CC177: 0 | CD177: 0 | CE177: 0 | CF177: 0 | CG177: 0 | CH177: =$E$62/3600 -> 0 | CI177: 0 | CJ177: 0 | CK177: 0 | CL177: 0 | CM177: 0 | CN177: 0 | CO177: 0 | CP177: 0 | CR177: =SUM(AX181,BG181,BP181,BY181,CH181) -> 0.3283333333 | CS177: =SUM(AY181,BH181,BQ181,BZ181,CI181) -> 352.2967611 | CT177: =SUM(AZ181,BI181,BR181,CA181,CJ181) -> 8.941542161 | CU177: =SUM(BA181,BJ181,BS181,CB181,CK181) -> 0 | CV177: =SUM(BB181,BK181,BT181,CC181,CL181) -> 0 | CW177: =SUM(BC181,BL181,BU181,CD181,CM181) -> 0 | CX177: =SUM(BD181,BM181,BV181,CE181,CN181) -> 0 | CY177: =SUM(BE181,BN181,BW181,CF181,CO181) -> 0 | CZ177: =SUM(BF181,BO181,BX181,CG181,CP181) -> 0 | DA177: =W180 -> 0.6883333333 | DB177: =X180 -> 1250.516442 | DC177: =Y180 -> 11.02221129 | DD177: =Z180 -> 0 | DE177: =AA180 -> 0 | DF177: =AB180 -> 0 | DG177: =AC180 -> 0 | DH177: =AD180 -> 0 | DI177: =AE180 -> 0 | DJ177: =SUM($J$57:$J$62) -> 0.5 | DK177: =SUM(I164:I169) -> 0 | DL177: =DJ177+DA177+CR177 -> 1.516666667 | DM177: =DK177+DB177+CS177 -> 1602.813203 | DN177: =DC177+CT177 -> 19.96375345 | DO177: =DD177+CU177 -> 0 | DP177: =DE177+CV177 -> 0 | DQ177: =DF177+CW177 -> 0 | DR177: =DG177+CX177 -> 0 | DS177: =DH177+CY177 -> 0 | DT177: =DI177+CZ177 -> 0
B178: 0 | C178: 0 | D178: 0 | E178: 0 | F178: 0 | G178: 0 | H178: 0 | I178: 0 | J178: 0 | K178: 0 | L178: 0 | M178: 0 | N178: 0.54 | O178: 0 | P178: 0 | W178: 0 | X178: 0 | Z178: 0 | AA178: 0 | AB178: 0 | AC178: 0 | AD178: 0 | AE178: 0 | AH178: Acceleration | AI178: =$F$56 -> 736.8421053 | AJ178: 970.6675852 | AK178: ='B2'!$K$32 -> 60 | AL178: 70.65787486 | AM178: 1041.32546 | AN178: 0.5785141445 | AO178: 0.5089602649 | AP178: 2045.985771 | AQ178: 51.92857288 | AX178: 0.03444444444 | AY178: 70.47284323 | AZ178: 1.788650843 | BA178: 0 | BB178: 0 | BC178: 0 | BD178: 0 | BE178: 0 | BF178: 0 | BG178: =$F$59/3600 -> 0.03444444444 | BH178: 70.47284323 | BI178: 1.788650843 | BJ178: 0 | BK178: 0 | BL178: 0 | BM178: 0 | BN178: 0 | BO178: 0 | BP178: =$F$60/3600 -> 0.03444444444 | BQ178: 70.47284323 | BR178: 1.788650843 | BS178: 0 | BT178: 0 | BU178: 0 | BV178: 0 | BW178: 0 | BX178: 0 | BY178: =$F$61/3600 -> 0 | BZ178: 0 | CA178: 0 | CB178: 0 | CC178: 0 | CD178: 0 | CE178: 0 | CF178: 0 | CG178: 0 | CH178: =$F$62/3600 -> 0 | CI178: 0 | CJ178: 0 | CK178: 0 | CL178: 0 | CM178: 0 | CN178: 0 | CO178: 0 | CP178: 0
B179: 0 | C179: 0 | D179: 0 | E179: 0 | F179: 0 | G179: 0 | H179: 0 | I179: 0 | J179: 0 | K179: 0 | L179: 0 | M179: 0 | N179: 0.54 | O179: 0 | P179: 0 | W179: 0 | X179: 0 | Z179: 0 | AA179: 0 | AB179: 0 | AC179: 0 | AD179: 0 | AE179: 0 | AH179: Passive Retardation | AI179: =$G$56 -> 57.89473684 | AJ179: 76.26673884 | AK179: ='B2'!$K$32 -> 60 | AL179: 70.65787486 | AM179: 146.9246137 | AN179: 0.08162478539 | AO179: 0.54 | AP179: 272.082618 | AQ179: 6.905650202 | AX179: 0.03333333333 | AY179: 9.069420599 | AZ179: 0.2301883401 | BA179: 0 | BB179: 0 | BC179: 0 | BD179: 0 | BE179: 0 | BF179: 0 | BG179: =$G$59/3600 -> 0.03333333333 | BH179: 9.069420599 | BI179: 0.2301883401 | BJ179: 0 | BK179: 0 | BL179: 0 | BM179: 0 | BN179: 0 | BO179: 0 | BP179: =$G$60/3600 -> 0.03333333333 | BQ179: 9.069420599 | BR179: 0.2301883401 | BS179: 0 | BT179: 0 | BU179: 0 | BV179: 0 | BW179: 0 | BX179: 0 | BY179: =$G$61/3600 -> 0 | BZ179: 0 | CA179: 0 | CB179: 0 | CC179: 0 | CD179: 0 | CE179: 0 | CF179: 0 | CG179: 0 | CH179: =$G$62/3600 -> 0 | CI179: 0 | CJ179: 0 | CK179: 0 | CL179: 0 | CM179: 0 | CN179: 0 | CO179: 0 | CP179: 0
W180: =SUM(W175:W179) -> 0.6883333333 | X180: =SUM(X175:X179) -> 1250.516442 | Y180: =SUM(Y175:Y179) -> 11.02221129 | Z180: =SUM(Z175:Z179) -> 0 | AA180: =SUM(AA175:AA179) -> 0 | AB180: =SUM(AB175:AB179) -> 0 | AC180: =SUM(AC175:AC179) -> 0 | AD180: =SUM(AD175:AD179) -> 0 | AE180: =SUM(AE175:AE179) -> 0 | AH180: Active Retardation | AI180: =$H$56 -> 210.5263158 | AJ180: 277.3335958 | AK180: ='B2'!$K$32 -> 60 | AL180: 70.65787486 | AM180: 347.9914706 | AN180: 0.1933285948 | AO180: 0.54 | AP180: 644.4286493 | AQ180: 16.35605709 | AX180: 0.008333333333 | AY180: 5.370238744 | AZ180: 0.1363004757 | BA180: 0 | BB180: 0 | BC180: 0 | BD180: 0 | BE180: 0 | BF180: 0 | BG180: =$H$59/3600 -> 0.008333333333 | BH180: 5.370238744 | BI180: 0.1363004757 | BJ180: 0 | BK180: 0 | BL180: 0 | BM180: 0 | BN180: 0 | BO180: 0 | BP180: =$H$60/3600 -> 0.008333333333 | BQ180: 5.370238744 | BR180: 0.1363004757 | BS180: 0 | BT180: 0 | BU180: 0 | BV180: 0 | BW180: 0 | BX180: 0 | BY180: =$H$61/3600 -> 0 | BZ180: 0 | CA180: 0 | CB180: 0 | CC180: 0 | CD180: 0 | CE180: 0 | CF180: 0 | CG180: 0 | CH180: =$H$62/3600 -> 0 | CI180: 0 | CJ180: 0 | CK180: 0 | CL180: 0 | CM180: 0 | CN180: 0 | CO180: 0 | CP180: 0 | DG180: From Battery
AX181: =SUM(AX175:AX180) -> 0.1094444444 | AY181: =SUM(AY175:AY180) -> 117.4322537 | AZ181: =SUM(AZ175:AZ180) -> 2.980514054 | BA181: =SUM(BA175:BA180) -> 0 | BB181: =SUM(BB175:BB180) -> 0 | BC181: =SUM(BC175:BC180) -> 0 | BD181: =SUM(BD175:BD180) -> 0 | BE181: =SUM(BE175:BE180) -> 0 | BF181: =SUM(BF175:BF180) -> 0 | BG181: =SUM(BG175:BG180) -> 0.1094444444 | BH181: =SUM(BH175:BH180) -> 117.4322537 | BI181: =SUM(BI175:BI180) -> 2.980514054 | BJ181: =SUM(BJ175:BJ180) -> 0 | BK181: =SUM(BK175:BK180) -> 0 | BL181: =SUM(BL175:BL180) -> 0 | BM181: =SUM(BM175:BM180) -> 0 | BN181: =SUM(BN175:BN180) -> 0 | BO181: =SUM(BO175:BO180) -> 0 | BP181: =SUM(BP175:BP180) -> 0.1094444444 | BQ181: =SUM(BQ175:BQ180) -> 117.4322537 | BR181: =SUM(BR175:BR180) -> 2.980514054 | BS181: =SUM(BS175:BS180) -> 0 | BT181: =SUM(BT175:BT180) -> 0 | BU181: =SUM(BU175:BU180) -> 0 | BV181: =SUM(BV175:BV180) -> 0 | BW181: =SUM(BW175:BW180) -> 0 | BX181: =SUM(BX175:BX180) -> 0 | BY181: =SUM(BY175:BY180) -> 0 | BZ181: =SUM(BZ175:BZ180) -> 0 | CA181: =SUM(CA175:CA180) -> 0 | CB181: =SUM(CB175:CB180) -> 0 | CC181: =SUM(CC175:CC180) -> 0 | CD181: =SUM(CD175:CD180) -> 0 | CE181: =SUM(CE175:CE180) -> 0 | CF181: =SUM(CF175:CF180) -> 0 | CG181: =SUM(CG175:CG180) -> 0 | CH181: =SUM(CH175:CH180) -> 0 | CI181: =SUM(CI175:CI180) -> 0 | CJ181: =SUM(CJ175:CJ180) -> 0 | CK181: =SUM(CK175:CK180) -> 0 | CL181: =SUM(CL175:CL180) -> 0 | CM181: =SUM(CM175:CM180) -> 0 | CN181: =SUM(CN175:CN180) -> 0 | CO181: =SUM(CO175:CO180) -> 0 | CP181: =SUM(CP175:CP180) -> 0 | CR181: Roundtrips | CT181: ='B1'!E23 -> 18 | CV181: Hours in harbour | CX181: =24-(CT181*DL177) -> -3.3 | CZ181: Assuming shore connection | DC181: ='B2'!$K$32*CX181 -> -198 | DD181: kWh | DG181: =SUM(C134:C138) -> 1970
K182: Hydrogen | L182: 39.4 | M182: kWh/kg
A184: Batteries | B184: Battery Data | D184: Necessary Size Battery | E184: =C187/C186 -> 3357.011354 | I184: kWh | J184: Enough eneryg?
B185: Cycles | C185: =Table3[[#Totals],[Shore Connection or not]]*'B1'!E23*365 -> 19710 | D185: C-value | E185: =C189/E184 -> 0.1574005634 | G185: necessary kw per harbour | H185: =A193 -> Port 1 | I185: =P201+SUM($X$200:$X$205) -> 464.4372645 | J185: =IF(I185<=C134,"Yes","No") -> Yes
B186: DoD | C186: =IF(C185<6000,"80%",IF(AND(C185<=9000,C185>=6000),"60%",IF(AND(C185<=14000,C185>=9000),"50%",IF(AND(C185<=22000,C185>=14000),"40%",IF(AND(C185<=41000,C185>=22000),"30%",IF(AND(C185<=95000,C185>=41000),"20%",IF(AND(C185<=160000,C185>=95000),"15%",IF(AND(C185<=360000,C185>=160000),"10%","")))))))) -> 40% | D186: Losses | E186: =IF(E185<=0.5,"0,95%",IF(AND(E185<=1,E185>0.5),"1,75%",IF(AND(E185<=1.5,E185>1),"2,55%",IF(AND(E185<=2,E185>1.5),"3,5%",IF(AND(E185<=2.5,E185>2),"4,3%",IF(E185>=2.5,"5,25","")))))) -> 0,95% | H186: =A194 -> Port 2 | I186: =P202+SUM($Y$200:$Y$205) -> 528.3954783 | J186: =IF(I186<=C135,"Yes","No") -> Yes
B187: Necessary Energy | C187: =SUM(N198+AA198) -> 1342.804542 | H187: Port 3 | I187: =P203+SUM($Z200:$Z$205) -> 369.9175935 | J187: =IF(I187<=C136,"Yes","No") -> Yes
B188: Is there sufficient Charging as there is? | C188: =IF(C134>(SUM(P201+SUM(X200:X205))),IF(C135>(SUM(P202+SUM(Y200:Y205))),IF(C136>(SUM(P203+SUM(Z200:Z205))),IF(C137>(SUM(P204+SUM(AA200:AA205))),IF(C139>(SUM(P205+SUM(AB200:AB205))),"Yes"),"No"),"No"),"No"),"No") -> No | D188: Consumption | E188: =P206+AC206 -> 1362.750336 | F188: kWh | I188: =P204+SUM($AA$200:$AA$205) -> 0 | J188: =IF(I188<=C137,"Yes","No") -> Yes
B189: How much charging will we need with the current schedule? | C189: =MAX(I185:I187) -> 528.3954783 | D189: All day | E189: =E188*'B1'!E23 -> 24529.50605 | I189: =P205+SUM($AB$200:$AB$205) -> 0 | J189: =IF(I189<=C138,"Yes","No") -> Yes
D190: Energy in harbour | E190: =((SUM(C193:C197)/60)*CT181)+(CX181*60) -> -189 | M190: MAX value | N190: =MAX(N193:N197) -> 461.2427472 | O190: =MAX(O193:O197) -> 2767.456483
Q191: =AI80 -> Propeller power | R191: =AJ80 -> Incl losses | S191: =AK80 -> Hotel | T191: Hotel Incl Losses | U191: Total power | V191: Port 1 | W191: Port 2 | X191: Port 3 | Y191: Port 4 | Z191: Port 5
B192: =D48 -> Shore Charging [kW] | C192: =E48 -> Time in port [min] | D192: Transit to next port [min] | E192: =G48 -> Distance to next port [nm] | F192: =H48 -> Distance to next port - manouevring | G192: =I48 -> Speed | H192: Propeller power, incl sea margin | I192: Hotel Power | J192: Distance to next port, without manouevring | K192: Propeller power incl losses | L192: Hotel Power incl losses | M192: Total Power [kW] | N192: Energy for transit [kWh] | O192: Neded shore capacity | P192: =AH81 -> Loading | Q192: =AI81 -> 0 | R192: =Q192/$R$19 -> 0 | S192: =AK81 -> 0 | T192: =S192/$R$30 -> 0 | U192: =T192+R192 -> 0 | V192: =U192*AX68 -> 0 | W192: =U192*BG68 -> 0 | X192: =U192*BP68 -> 0 | Y192: =U192*BY68 -> 0 | Z192: =U192*CH68 -> 0
A193: =C49 -> Port 1 | B193: =D49 -> 4000 | C193: =E49 -> 10 | D193: 20 | E193: =G49 -> 4 | F193: 3.3 | G193: 14.73945409 | H193: 1365.447143 | I193: 60 | J193: 13.43333333 | K193: =H193/Data!$R$19 -> 1708.813202 | L193: =I193/Data!$R$30 -> 70.65787486 | M193: =L193+K193 -> 1779.471077 | N193: =M193*(J193/60) -> 398.4038021 | O193: =N193/(C193/60) -> 2390.422813 | P193: =AH82 -> Entering Harbour | Q193: =AI82 -> 368.4210526 | R193: =Q193/$R$19 -> 461.067103 | S193: 60 | T193: =S193/$R$30 -> 70.65787486 | U193: =T193+R193 -> 531.7249778 | V193: =U193*AX69 -> 13.29312445 | W193: =U193*BG69 -> 13.29312445 | X193: =U193*BP69 -> 13.29312445 | Y193: =U193*BY69 -> 0 | Z193: =U193*CH69 -> 0
A194: =C50 -> Port 2 | B194: =D50 -> 4000 | C194: 10 | D194: 19 | E194: =G50 -> 4 | F194: 3.3 | G194: 15.92493298 | H194: 1722.120498 | I194: 60 | J194: 12.43333333 | K194: =H194/Data!$R$19 -> 2155.178439 | L194: =I194/Data!$R$30 -> 70.65787486 | M194: =L194+K194 -> 2225.836314 | N194: =M194*(J194/60) -> 461.2427472 | O194: =N194/(C194/60) -> 2767.456483 | P194: Leaving Harbour | Q194: 263.1578947 | R194: 329.333645 | S194: 60 | T194: 70.65787486 | U194: 399.9915198 | V194: =U194*AX70 -> 3.333262665 | W194: 3.333262665 | X194: 3.333262665 | Y194: 0 | Z194: 0
A195: Port 3 | B195: 4000 | C195: 10 | D195: 22 | E195: 4 | F195: 3.3 | G195: 12.82937365 | H195: 900.4239922 | I195: 60 | J195: 15.43333333 | K195: =H195/Data!$R$19 -> 1126.851679 | L195: =I195/Data!$R$30 -> 70.65787486 | M195: 1197.509553 | N195: 308.0260685 | O195: =IFERROR(N195/(C195/60),"") -> 1848.156411 | P195: Acceleration | Q195: 736.8421053 | R195: 922.134206 | S195: 60 | T195: 70.65787486 | U195: 992.7920808 | V195: 34.19617167 | W195: 34.19617167 | X195: 34.19617167 | Y195: 0 | Z195: 0
B196: 0 | C196: 0 | D196: 0 | E196: 0 | F196: 0 | G196: 0 | H196: 0 | I196: 0 | J196: 0 | K196: =H196/Data!$R$19 -> 0 | L196: =I196/Data!$R$30 -> 0 | M196: 0 | N196: 0 | O196: =IFERROR(N196/(C196/60),"") ->  | P196: Passive Retardation | Q196: 57.89473684 | R196: 72.4534019 | S196: 60 | T196: 70.65787486 | U196: 143.1112768 | V196: 4.770375892 | W196: 4.770375892 | X196: 4.770375892 | Y196: 0 | Z196: 0
B197: 0 | C197: 0 | D197: 0 | E197: 0 | F197: 0 | G197: 0 | H197: 0 | I197: 0 | J197: 0 | K197: =H197/Data!$R$19 -> 0 | L197: =I197/Data!$R$30 -> 0 | M197: 0 | N197: 0 | P197: =AH86 -> Active Retardation | Q197: 210.5263158 | R197: 263.466916 | S197: 60 | T197: 70.65787486 | U197: 334.1247909 | V197: 2.784373257 | W197: 2.784373257 | X197: 2.784373257 | Y197: 0 | Z197: 0
M198: SUM | N198: =SUM(N193:N197) -> 1167.672618 | Z198: Energy Sum | AA198: =SUM(V192:Z197) -> 175.1319238
U199: C-rate | V199: Losses | W199: Real Power | X199: Port 1 | Y199: Port 2 | Z199: Port 3 | AA199: Port 4 | AB199: Port 5
M200: C-value | N200: Losses | O200: Real Energy Consumption | P200: Energy for transit [kWh] | U200: =U192/$E$184 -> 0 | V200: =IF(U200<=0.5,"0,95%",IF(AND(U200<=1,U200>0.5),"1,75%",IF(AND(U200<=1.5,U200>1),"2,55%",IF(AND(U200<=2,U200>1.5),"3,5%",IF(AND(U200<=2.5,U200>2),"4,3%",IF(U200>=2.5,"5,25","")))))) -> 0,95% | W200: =U192/(1-V200) -> 0 | X200: =W200*AX68 -> 0 | Y200: =W200*BG68 -> 0 | Z200: =W200*BP68 -> 0 | AA200: =W200*BY68 -> 0 | AB200: =W200*CH68 -> 0
M201: =M193/$E$184 -> 0.530075978 | N201: =IF(M201<=0.5,"0,95%",IF(AND(M201<=1,M201>0.5),"1,75%",IF(AND(M201<=1.5,M201>1),"2,55%",IF(AND(M201<=2,M201>1.5),"3,5%",IF(AND(M201<=2.5,M201>2),"4,3%",IF(M201>=2.5,"5,25","")))))) -> 1,75% | O201: =M193/(1-N201) -> 1811.16649 | P201: =O201*(J193/60) -> 405.5000531 | U201: =U193/$E$184 -> 0.158392368 | V201: =IF(U201<=0.5,"0,95%",IF(AND(U201<=1,U201>0.5),"1,75%",IF(AND(U201<=1.5,U201>1),"2,55%",IF(AND(U201<=2,U201>1.5),"3,5%",IF(AND(U201<=2.5,U201>2),"4,3%",IF(U201>=2.5,"5,25","")))))) -> 0,95% | W201: =U193/(1-V201) -> 536.8248136 | X201: =W201*AX69 -> 13.42062034 | Y201: =W201*BG69 -> 13.42062034 | Z201: =W201*BP69 -> 13.42062034 | AA201: =W201*BY69 -> 0 | AB201: =W201*CH69 -> 0
M202: =M194/$E$184 -> 0.6630410442 | N202: =IF(M202<=0.5,"0,95%",IF(AND(M202<=1,M202>0.5),"1,75%",IF(AND(M202<=1.5,M202>1),"2,55%",IF(AND(M202<=2,M202>1.5),"3,5%",IF(AND(M202<=2.5,M202>2),"4,3%",IF(M202>=2.5,"5,25","")))))) -> 1,75% | O202: =M194/(1-N202) -> 2265.482253 | P202: =O202*(J194/60) -> 469.4582669 | U202: 0.1191510775 | V202: 0,95% | W202: 403.8278848 | X202: 3.365232373 | Y202: 3.365232373 | Z202: 3.365232373 | AA202: 0 | AB202: 0
M203: 0.3567189464 | N203: 0,95% | O203: 1208.995006 | P203: 310.9803821 | U203: 0.295736885 | V203: 0,95% | W203: 1002.314064 | X203: 34.52415111 | Y203: 34.52415111 | Z203: 34.52415111 | AA203: 0 | AB203: 0
M204: 0 | N204: 0,95% | O204: 0 | P204: 0 | U204: 0.04263056084 | V204: 0,95% | W204: 144.4838736 | X204: 4.816129119 | Y204: 4.816129119 | Z204: 4.816129119 | AA204: 0 | AB204: 0
M205: 0 | N205: 0,95% | O205: 0 | P205: 0 | U205: 0.09953043217 | V205: 0,95% | W205: 337.3294203 | X205: 2.811078503 | Y205: 2.811078503 | Z205: 2.811078503 | AA205: =W205*BY73 -> 0 | AB205: =W205*CH73 -> 0
O206: SUM | P206: =SUM(P201:P205) -> 1185.938702 | AB206: Energy Sum | AC206: =SUM(X200:AB205) -> 176.8116343
A399: Costs
B400: ='G '!C59 -> 0.07 | D400: ='G '!B5 -> Disel Variable RPM | F400: ='G '!D5 -> Diesel Constan RPM | H400: ='G '!F5 -> Diesel Electric | J400: ='G '!H5 -> LNG | L400: ='G '!J5 -> LNG Electric | N400: ='G '!L5 -> Hydrogen | P400: ='G '!N5 -> Batteries
D401: ='G '!B6 -> CAPEX | E401: ='G '!C6 -> OPEX | F401: ='G '!D6 -> CAPEX | G401: ='G '!E6 -> OPEX | H401: ='G '!F6 -> CAPEX | I401: ='G '!G6 -> OPEX | J401: ='G '!H6 -> CAPEX | K401: ='G '!I6 -> OPEX | L401: ='G '!J6 -> CAPEX | M401: ='G '!K6 -> OPEX | N401: ='G '!L6 -> CAPEX | O401: ='G '!M6 -> OPEX | P401: ='G '!N6 -> CAPEX | Q401: ='G '!O6 -> OPEX
C402: ='G '!A7 -> 1 | D402: ='G '!B7 -> 8.462222222 | E402: ='G '!C7 -> 12.0154016 | F402: ='G '!D7 -> 8.462222222 | G402: ='G '!E7 -> 12.54984925 | H402: ='G '!F7 -> 12.55722222 | I402: ='G '!G7 -> 16.57862617 | J402: ='G '!H7 -> 28.20740741 | K402: ='G '!I7 -> 10.19025315 | L402: ='G '!J7 -> 35.03240741 | M402: ='G '!K7 -> 13.89125199 | N402: ='G '!L7 -> 29.53065302 | O402: ='G '!M7 -> 31.38695366 | P402: ='G '!N7 -> 18.32928199 | Q402: ='G '!O7 -> 5.103363735
C403: ='G '!A8 -> 2 | D403: ='G '!B8 -> 0 | E403: ='G '!C8 -> 12.0154016 | F403: ='G '!D8 -> 0 | G403: ='G '!E8 -> 12.54984925 | H403: ='G '!F8 -> 0 | I403: ='G '!G8 -> 16.57862617 | J403: ='G '!H8 -> 0 | K403: ='G '!I8 -> 10.19025315 | L403: ='G '!J8 -> 0 | M403: ='G '!K8 -> 13.89125199 | N403: ='G '!L8 -> 0 | O403: ='G '!M8 -> 31.38695366 | P403: ='G '!N8 -> 0 | Q403: ='G '!O8 -> 5.103363735
C404: ='G '!A9 -> 3 | D404: ='G '!B9 -> 0 | E404: ='G '!C9 -> 12.0154016 | F404: ='G '!D9 -> 0 | G404: ='G '!E9 -> 12.54984925 | H404: ='G '!F9 -> 0 | I404: ='G '!G9 -> 16.57862617 | J404: ='G '!H9 -> 0 | K404: ='G '!I9 -> 10.19025315 | L404: ='G '!J9 -> 0 | M404: ='G '!K9 -> 13.89125199 | N404: ='G '!L9 -> 0 | O404: ='G '!M9 -> 31.38695366 | P404: ='G '!N9 -> 0 | Q404: ='G '!O9 -> 5.103363735
C405: ='G '!A10 -> 4 | D405: ='G '!B10 -> 0 | E405: ='G '!C10 -> 12.0154016 | F405: ='G '!D10 -> 0 | G405: ='G '!E10 -> 12.54984925 | H405: ='G '!F10 -> 0 | I405: ='G '!G10 -> 16.57862617 | J405: ='G '!H10 -> 0 | K405: ='G '!I10 -> 10.19025315 | L405: ='G '!J10 -> 0 | M405: ='G '!K10 -> 13.89125199 | N405: ='G '!L10 -> 22.70565302 | O405: ='G '!M10 -> 31.38695366 | P405: ='G '!N10 -> 0 | Q405: ='G '!O10 -> 5.103363735
C406: ='G '!A11 -> 5 | D406: ='G '!B11 -> 0 | E406: ='G '!C11 -> 12.0154016 | F406: ='G '!D11 -> 0 | G406: ='G '!E11 -> 12.54984925 | H406: ='G '!F11 -> 0 | I406: ='G '!G11 -> 16.57862617 | J406: ='G '!H11 -> 0 | K406: ='G '!I11 -> 10.19025315 | L406: ='G '!J11 -> 0 | M406: ='G '!K11 -> 13.89125199 | N406: ='G '!L11 -> 0 | O406: ='G '!M11 -> 31.38695366 | P406: ='G '!N11 -> 0 | Q406: ='G '!O11 -> 5.103363735
C407: ='G '!A12 -> 6 | D407: ='G '!B12 -> 0 | E407: ='G '!C12 -> 12.0154016 | F407: ='G '!D12 -> 0 | G407: ='G '!E12 -> 12.54984925 | H407: ='G '!F12 -> 0 | I407: ='G '!G12 -> 16.57862617 | J407: ='G '!H12 -> 0 | K407: ='G '!I12 -> 10.19025315 | L407: ='G '!J12 -> 0 | M407: ='G '!K12 -> 13.89125199 | N407: ='G '!L12 -> 0 | O407: ='G '!M12 -> 31.38695366 | P407: ='G '!N12 -> 0 | Q407: ='G '!O12 -> 5.103363735
C408: ='G '!A13 -> 7 | D408: ='G '!B13 -> 0 | E408: ='G '!C13 -> 12.0154016 | F408: ='G '!D13 -> 0 | G408: ='G '!E13 -> 12.54984925 | H408: ='G '!F13 -> 0 | I408: ='G '!G13 -> 16.57862617 | J408: ='G '!H13 -> 0 | K408: ='G '!I13 -> 10.19025315 | L408: ='G '!J13 -> 0 | M408: ='G '!K13 -> 13.89125199 | N408: ='G '!L13 -> 22.70565302 | O408: ='G '!M13 -> 31.38695366 | P408: ='G '!N13 -> 0 | Q408: ='G '!O13 -> 5.103363735
C409: ='G '!A14 -> 8 | D409: ='G '!B14 -> 0 | E409: ='G '!C14 -> 12.0154016 | F409: ='G '!D14 -> 0 | G409: ='G '!E14 -> 12.54984925 | H409: ='G '!F14 -> 0 | I409: ='G '!G14 -> 16.57862617 | J409: ='G '!H14 -> 0 | K409: ='G '!I14 -> 10.19025315 | L409: ='G '!J14 -> 0 | M409: ='G '!K14 -> 13.89125199 | N409: ='G '!L14 -> 0 | O409: ='G '!M14 -> 31.38695366 | P409: ='G '!N14 -> 0 | Q409: ='G '!O14 -> 5.103363735
C410: ='G '!A15 -> 9 | D410: ='G '!B15 -> 0 | E410: ='G '!C15 -> 12.0154016 | F410: ='G '!D15 -> 0 | G410: ='G '!E15 -> 12.54984925 | H410: ='G '!F15 -> 0 | I410: ='G '!G15 -> 16.57862617 | J410: ='G '!H15 -> 0 | K410: ='G '!I15 -> 10.19025315 | L410: ='G '!J15 -> 0 | M410: ='G '!K15 -> 13.89125199 | N410: ='G '!L15 -> 0 | O410: ='G '!M15 -> 31.38695366 | P410: ='G '!N15 -> 0 | Q410: ='G '!O15 -> 5.103363735
... 32 more rows
